Workbook

Sheet Lista (hidden)
A2: 10010001 | B2: SKUPŠTINA ŽUPANIJE POSAVSKE | I2: 1. mjesec | J2: I. kvartal | K2: Siječanj 2022 god.
A3: 11010001 | B3: VLADA ŽUPANIJE POSAVSKE | I3: 2. mjesec | J3: I. kvartal | K3: Veljača 2022. god.
A4: 11010006 | B4: URED ZA OBNOVU, STAMB.ZBRINJAVANJE I RASELJENE OSOBE VLADE ŽP | I4: 3. mjesec | J4: I. kvartal | K4: Ožujak 2022. god.
A5: 11010003 | B5: URED ZA ZAKONODAVSTVOVLADE ŽP | I5: 4. mjesec | J5: II. kvartal | K5: Travanj 2022. god.
A6: 11010004 | B6: SLUŽBA ZA ODNOSE S JAVNOŠĆU VLADE ŽP | I6: 5. mjesec | J6: II. kvartal | K6: Svibanj 2022. god.
A7: 11010005 | B7: URED ZA RAZVOJ I EUROPSKE INTEGRACIJE ŽP | I7: 6. mjesec | J7: II. kvartal | K7: Lipanj 2022. god.
A8: 12010001 | B8: ZAJEDNIČKA SLUŽBA VLADE ŽP | I8: 7. mjesec | J8: III. kvartal | K8: Srpanj 2022. god.
A9: 13010001 | B9: MINISTARSTVO UNUTARNJIH POSLOVA ŽP | I9: 8. mjesec | J9: III. kvartal | K9: Kolovoz 2022. god.
A10: 14010001 | B10: MINISTARSTVO PRAVOSUĐA I UPRAVE ŽP | I10: 9. mjesec | J10: III. kvartal | K10: Rujan 2022. god.
A11: 14020003 | B11: OPĆINSKI SUD U ORAŠJU | I11: 10. mjesec | J11: IV. kvartal | K11: Listopad 2022. god.
A12: 14050001 | B12: OPĆINSKO PRAVOBRANITELJSTVO ORAŠJE | I12: 11. mjesec | J12: IV. kvartal | K12: Studeni 2022. god.
A13: 14050002 | B13: OPĆINSKO PRAVOBRANITELJSTVO ODŽAK | I13: 12. mjesec | J13: IV. kvartal | K13: Prosinac 2022. god.
A14: 14060001 | B14: ŽUPANIJSKI ZAVOD ZA PRUŽANJE PRAVNE POMOĆI
A15: 14070001 | B15: ŽUPANIJSKI ARHIV
A16: 15010001 | B16: MINISTARSTVO GOSPODARSTVA, RADA I PROSTORNOG UREĐENJA ŽP
A17: 16010001 | B17: MINISTARSTVO FINANCIJA ŽP
A18: 17010001 | B18: MINISTARSTVO ZDRAVSTVA I SOCIJALNE POLITIKE ŽP
A19: 18010001 | B19: MINISTARSTVO PROMETA, VEZA I ZAŠTITE OKOLIŠA ŽP
A20: 19010001 | B20: MINISTARSTVO POLJOPRIVREDE, VODOPRIVREDE I ŠUMARSTVA ŽP
A21: 20010001 | B21: MINISTARSTVO PROSVJETE, ZNANOSTI, KULTURE I SPORTA ŽP
A22: 20020002 | B22: SREDNJA ŠKOLA PERE ZEČEVIĆA U ODŽAKU
A23: 20020003 | B23: ŠKOLSKI CENTAR FRA MARTINA NEDIĆA U ORAŠJU
A24: 20020004 | B24: SREDNJA STRUKOVNA ŠKOLA ORAŠJE U ORAŠJU
A25: 20030001 | B25: OSNOVNA ŠKOLA ORAŠJE U ORAŠJU
A26: 20030002 | B26: OSNOVNA ŠKOLA VLADIMIRA NAZORA U ODŽAKU
A27: 20030003 | B27: OSNOVNA ŠKOLA RUĐERA BOŠKOVIĆA U DONJOJ MAHALI
A28: 20030004 | B28: OSNOVNA ŠKOLA FRA ILIJE STARČEVIĆA U TOLISI
A29: 20030005 | B29: OSNOVNAŠKOLA STJEPANA RADIĆA U BOKU
A30: 20030006 | B30: OSNOVNA ŠKOLA ANTUNA GUSTAVA MATOŠA U VIDOVICAMA
A31: 20030007 | B31: OSNOVNA ŠKOLA BRAĆE RADIĆA U DOMALJEVCU
A32: 21010001 | B32: MINISTARSTVO BRANITELJA ŽP
A33: 22010001 | B33: AGENCIJA ZA PRIVATIZACIJU U ŽP
A34: 23010001 | B34: ŽUPANIJSKA UPRAVA CIVILNE ZAŠTITE
A35: 24010001 | B35: KANTONALNI SUD ODŽAK
A36: 26010001 | B36: ŽUPANIJSKO PRAVOBRANITELJSTVO
A37: 27010001 | B37: KANTONALNO TUŽITELJSTVO POSAVSKOG KANTONA ORAŠJE
A38: 28010001 | B38: ŽUPANIJSKA UPRAVA ZA INSPEKCIJSKE POSLOVE
A39: 00000000 | B39: SVE

Sheet Godišnji
A1: PRIJEDLOG GODIŠNJEG OPERATIVNOG PLANA RASHODA I IZDATAKA ZA 2022. GODINU
G2: =E4 -> 00000000
A3: Proračunski korisnik: | E3: =INDEX(Lista!A:B,MATCH($E$4,Lista!A:A,0),2) -> SVE
A4: Organizacijski kod: | E4: 00000000
A6: Razdjel | B6: Glava | C6: Potroš. jedinica | D6: Suban | E6: Ekonom. kod | F6: Opis | H6: Proračun za 2022. godinu | K6: I. kvartal 2022. god. | N6: II. kvartal 2022. god. | Q6: III. kvartal 2022. god. | T6: IV. kvartal 2022. god. | W6: Ukupno za 2022. god.
G7: Rashodi i | H7: Rashodi iz | I7: Ukupni | J7: Rashodi i | K7: Rashodi iz | L7: Ukupni | M7: Rashodi i | N7: Rashodi iz | O7: Ukupni | P7: Rashodi i | Q7: Rashodi iz | R7: Ukupni | S7: Rashodi i | T7: Rashodi iz | U7: Ukupni | V7: Rashodi i | W7: Rashodi iz | X7: Ukupni
G8: izdaci iz | H8: namj.sr., | I8: rashodi i | J8: izdaci iz | K8: namj.sr., | L8: rashodi i | M8: izdaci iz | N8: namj.sr., | O8: rashodi i | P8: izdaci iz | Q8: namj.sr., | R8: rashodi i | S8: izdaci iz | T8: namj.sr., | U8: rashodi i | V8: izdaci iz | W8: namj.sr., | X8: rashodi i
G9: proračuna | H9: tek. trans. i don. | I9: izdaci | J9: proračuna | K9: tek. trans. i don. | L9: izdaci | M9: proračuna | N9: tek. trans. i don. | O9: izdaci | P9: proračuna | Q9: tek. trans. i don. | R9: izdaci | S9: proračuna | T9: tek. trans. i don. | U9: izdaci | V9: proračuna | W9: tek. trans. i don. | X9: izdaci
A10: 1 | B10: 2 | C10: 3 | E10: 4 | F10: 5 | G10: 6 | H10: 7 | I10: 8 | J10: 9 | K10: 10 | L10: 11 | M10: 12 | N10: 13 | O10: 14 | P10: 15 | Q10: 16 | R10: 17 | S10: 18 | T10: 19 | U10: 20 | V10: 21 | W10: 22 | X10: 23
A11: 10 | B11: 01 | C11: 0001 | F11: SKUPŠTINA ŽUPANIJE POSAVSKE
E12: 611000 | F12: Plaće i naknade troškova zaposlenih | G12: =SUM(G13:G15) -> 599730 | H12: =SUM(H13:H15) -> 0 | I12: 599730 | J12: 0 | K12: 0 | L12: 0 | M12: 0 | N12: 0 | O12: 0 | P12: 0 | Q12: 0 | R12: 0 | S12: 0 | T12: 0 | U12: 0 | V12: 0 | W12: 0 | X12: 0 | Y12: =IF(OR(V12>G12, W12>H12),"Ukupni operativni plan je veći od Proračuna!","") -> 
E13: 611100 | F13: Bruto plaće i naknade | G13: 504040 | H13: 0 | I13: =SUM(G13:H13) -> 504040 | L13: =SUM(J13:K13) -> 0 | O13: =SUM(M13:N13) -> 0 | R13: =SUM(P13:Q13) -> 0 | U13: =SUM(S13:T13) -> 0 | V13: =S13+P13+M13+J13 -> 0 | W13: =T13+Q13+N13+K13 -> 0 | X13: =SUM(V13:W13) -> 0
E14: 611200 | F14: Naknade troškova zaposlenih | G14: 95690 | H14: 0 | I14: =SUM(G14:H14) -> 95690 | L14: =SUM(J14:K14) -> 0 | O14: =SUM(M14:N14) -> 0 | R14: =SUM(P14:Q14) -> 0 | U14: =SUM(S14:T14) -> 0 | V14: =S14+P14+M14+J14 -> 0 | W14: 0 | X14: =SUM(V14:W14) -> 0
E15: 611200 | F15: Naknade troškova zaposlenih - volonteri | G15: 0 | H15: 0 | I15: 0 | L15: 0 | O15: 0 | R15: 0 | U15: 0 | V15: 0 | W15: 0 | X15: 0
E16: 612000 | F16: Doprinosi poslodavca | G16: =G17 -> 53260 | H16: =H17 -> 0 | I16: 53260 | J16: 0 | K16: 0 | L16: 0 | M16: 0 | N16: 0 | O16: 0 | P16: 0 | Q16: 0 | R16: 0 | S16: 0 | T16: 0 | U16: 0 | V16: 0 | W16: 0 | X16: 0
E17: 612100 | F17: Doprinosi poslodavca | G17: 53260 | H17: 0 | I17: =SUM(G17:H17) -> 53260 | L17: =SUM(J17:K17) -> 0 | O17: =SUM(M17:N17) -> 0 | R17: =SUM(P17:Q17) -> 0 | U17: =SUM(S17:T17) -> 0 | V17: 0 | W17: 0 | X17: =SUM(V17:W17) -> 0
E18: 613000 | F18: Izdaci za materijal, sitan inventar i usluge | G18: =SUM(G19:G28) -> 261520 | H18: =SUM(H19:H28) -> 0 | I18: 261520 | J18: 0 | K18: 0 | L18: 0 | M18: 0 | N18: 0 | O18: 0 | P18: 0 | Q18: 0 | R18: 0 | S18: 0 | T18: 0 | U18: 0 | V18: 0 | W18: 0 | X18: 0
E19: 613100 | F19: Putni troškovi | G19: 5000 | H19: 0 | I19: =SUM(G19:H19) -> 5000 | L19: =SUM(J19:K19) -> 0 | O19: =SUM(M19:N19) -> 0 | R19: =SUM(P19:Q19) -> 0 | U19: =SUM(S19:T19) -> 0 | V19: 0 | W19: 0 | X19: =SUM(V19:W19) -> 0
E20: 613200 | F20: Izdaci za energiju | G20: 8500 | H20: 0 | I20: 8500 | L20: 0 | O20: 0 | R20: 0 | U20: 0 | V20: 0 | W20: 0 | X20: 0
E21: 613300 | F21: Izdaci za komunikaciju i komunalne usluge | G21: 6500 | H21: 0 | I21: 6500 | L21: 0 | O21: 0 | R21: 0 | U21: 0 | V21: 0 | W21: 0 | X21: 0
E22: 613400 | F22: Nabava materijala i sitnog inventara | G22: 4200 | H22: 0 | I22: 4200 | L22: 0 | O22: 0 | R22: 0 | U22: 0 | V22: 0 | W22: 0 | X22: 0
E23: 613500 | F23: Izdaci za usluge prijevoza i goriva | G23: 9000 | H23: 0 | I23: 9000 | L23: 0 | O23: 0 | R23: 0 | U23: 0 | V23: 0 | W23: 0 | X23: 0
E24: 613600 | F24: Unajmljivanje imovine, opreme i nemat.imovine | G24: 0 | H24: 0 | I24: 0 | L24: 0 | O24: 0 | R24: 0 | U24: 0 | V24: 0 | W24: 0 | X24: 0
E25: 613700 | F25: Izdaci za tekuće održavanje | G25: 4500 | H25: 0 | I25: 4500 | L25: 0 | O25: 0 | R25: 0 | U25: 0 | V25: 0 | W25: 0 | X25: 0
E26: 613800 | F26: Izdaci osiguranja, bank.usluga i usluga PP | G26: 3820 | H26: 0 | I26: 3820 | L26: 0 | O26: 0 | R26: 0 | U26: 0 | V26: 0 | W26: 0 | X26: 0
E27: 613900 | F27: Ugovorene i druge posebne usluge | G27: 220000 | H27: 0 | I27: 220000 | L27: 0 | O27: 0 | R27: 0 | U27: 0 | V27: 0 | W27: 0 | X27: 0
E28: 613900 | F28: Ugovorene i druge posebne usluge - volonteri | G28: 0 | H28: 0 | I28: 0 | L28: 0 | O28: 0 | R28: 0 | U28: 0 | V28: 0 | W28: 0 | X28: 0
E29: 821000 | F29: Izdaci za nabavku stalnih sredstava | G29: =SUM(G30:G32) -> 33000 | H29: =SUM(H30:H32) -> 0 | I29: 33000 | J29: 0 | K29: 0 | L29: 0 | M29: 0 | N29: 0 | O29: 0 | P29: 0 | Q29: 0 | R29: 0 | S29: 0 | T29: 0 | U29: 0 | V29: 0 | W29: 0 | X29: 0
E30: 821200 | F30: Nabavka građevina | G30: 0 | H30: 0 | I30: =SUM(G30:H30) -> 0 | L30: =SUM(J30:K30) -> 0 | O30: =SUM(M30:N30) -> 0 | R30: =SUM(P30:Q30) -> 0 | U30: =SUM(S30:T30) -> 0 | V30: 0 | W30: 0 | X30: =SUM(V30:W30) -> 0
E31: 821300 | F31: Nabavka opreme | G31: 30000 | H31: 0 | I31: =SUM(G31:H31) -> 30000 | L31: =SUM(J31:K31) -> 0 | O31: =SUM(M31:N31) -> 0 | R31: =SUM(P31:Q31) -> 0 | U31: =SUM(S31:T31) -> 0 | V31: 0 | W31: 0 | X31: =SUM(V31:W31) -> 0
E32: 821500 | F32: Nabavka stalnih sredstava u obliku prava | G32: 3000 | H32: 0 | I32: =SUM(G32:H32) -> 3000 | L32: =SUM(J32:K32) -> 0 | O32: =SUM(M32:N32) -> 0 | R32: =SUM(P32:Q32) -> 0 | U32: =SUM(S32:T32) -> 0 | V32: =S32+P32+M32+J32 -> 0 | W32: =T32+Q32+N32+K32 -> 0 | X32: =SUM(V32:W32) -> 0 | Y32: =IF(OR(V32>G32, W32>H32),"Ukupni operativni plan je veći od Proračuna!","") -> 
F33: Ukupno za korisnika Skupština Županije Posavske | G33: =G12+G16+G18+G29 -> 947510 | H33: =H12+H16+H18+H29 -> 0 | I33: 947510 | J33: 0 | K33: 0 | L33: 0 | M33: 0 | N33: 0 | O33: 0 | P33: 0 | Q33: 0 | R33: 0 | S33: 0 | T33: 0 | U33: 0 | V33: 0 | W33: 0 | X33: 0
A35: 11 | B35: 01 | C35: 0001 | F35: VLADA ŽUPANIJE POSAVSKE
E36: 600000 | F36: Rashodi - tekuća pričuva | G36: =SUM(G37:G39) -> 445000 | H36: =SUM(H37:H39) -> 0 | I36: =SUM(I37:I39) -> 445000 | J36: 0 | K36: 0 | L36: 0 | M36: 0 | N36: 0 | O36: 0 | P36: 0 | Q36: 0 | R36: 0 | S36: 0 | T36: 0 | U36: 0 | V36: 0 | W36: 0 | X36: 0 | Y36: =IF(OR(V36>G36, W36>H36),"Ukupni operativni plan je veći od Proračuna!","") -> 
E37: 600000 | F37: Tekuća pričuva Vlade | G37: 400000 | H37: 0 | I37: =SUM(G37:H37) -> 400000 | L37: =SUM(J37:K37) -> 0 | O37: =SUM(M37:N37) -> 0 | R37: =SUM(P37:Q37) -> 0 | U37: =SUM(S37:T37) -> 0 | V37: =S37+P37+M37+J37 -> 0 | W37: =T37+Q37+N37+K37 -> 0 | X37: =SUM(V37:W37) -> 0
E38: 600000 | F38: Tekuća pričuva predsjednika Vlade | G38: 30000 | H38: 0 | I38: =SUM(G38:H38) -> 30000 | L38: =SUM(J38:K38) -> 0 | O38: =SUM(M38:N38) -> 0 | R38: =SUM(P38:Q38) -> 0 | U38: =SUM(S38:T38) -> 0 | V38: =S38+P38+M38+J38 -> 0 | W38: =T38+Q38+N38+K38 -> 0 | X38: =SUM(V38:W38) -> 0
E39: 600000 | F39: Tekuća pričuva zamjenika pred.Vlade | G39: 15000 | H39: 0 | I39: 15000 | L39: 0 | O39: 0 | R39: 0 | U39: 0 | V39: 0 | W39: 0 | X39: 0
E40: 611000 | F40: Plaće i naknade troškova zaposlenih | G40: =SUM(G41:G43) -> 244100 | H40: =SUM(H41:H43) -> 0 | I40: =SUM(I41:I43) -> 244100 | J40: 0 | K40: 0 | L40: 0 | M40: =SUM(M41:M43) -> 0 | N40: 0 | O40: 0 | P40: =SUM(P41:P43) -> 0 | Q40: 0 | R40: 0 | S40: =SUM(S41:S43) -> 0 | T40: 0 | U40: 0 | V40: =SUM(V41:V43) -> 0 | W40: 0 | X40: 0 | Y40: =IF(OR(V40>G40, W40>H40),"Ukupni operativni plan je veći od Proračuna!","") -> 
E41: 611100 | F41: Bruto plaće i naknade | G41: 166050 | H41: 0 | I41: =SUM(G41:H41) -> 166050 | L41: =SUM(J41:K41) -> 0 | O41: =SUM(M41:N41) -> 0 | R41: =SUM(P41:Q41) -> 0 | U41: =SUM(S41:T41) -> 0 | V41: =S41+P41+M41+J41 -> 0 | W41: =T41+Q41+N41+K41 -> 0 | X41: =SUM(V41:W41) -> 0
E42: 611200 | F42: Naknade troškova zaposlenih | G42: 28050 | H42: 0 | I42: =SUM(G42:H42) -> 28050 | L42: =SUM(J42:K42) -> 0 | O42: =SUM(M42:N42) -> 0 | R42: =SUM(P42:Q42) -> 0 | U42: =SUM(S42:T42) -> 0 | V42: =S42+P42+M42+J42 -> 0 | W42: =T42+Q42+N42+K42 -> 0 | X42: =SUM(V42:W42) -> 0
D43: BA6017 | E43: 611200 | F43: Naknade troškova zaposlenih - volonteri | G43: 50000 | H43: 0 | I43: 50000 | L43: 0 | O43: 0 | R43: 0 | U43: 0 | V43: 0 | W43: 0 | X43: 0
E44: 612000 | F44: Doprinosi poslodavca | G44: =G45 -> 17660 | H44: =H45 -> 0 | I44: =I45 -> 17660 | J44: 0 | K44: 0 | L44: 0 | M44: =M45 -> 0 | N44: 0 | O44: 0 | P44: =P45 -> 0 | Q44: 0 | R44: 0 | S44: =S45 -> 0 | T44: 0 | U44: 0 | V44: =V45 -> 0 | W44: 0 | X44: 0
E45: 612100 | F45: Doprinosi poslodavca | G45: 17660 | H45: 0 | I45: =SUM(G45:H45) -> 17660 | L45: =SUM(J45:K45) -> 0 | O45: =SUM(M45:N45) -> 0 | R45: =SUM(P45:Q45) -> 0 | U45: =SUM(S45:T45) -> 0 | V45: 0 | W45: 0 | X45: =SUM(V45:W45) -> 0
E46: 613000 | F46: Izdaci za materijal, sitan inventar i usluge | G46: =SUM(G47:G57) -> 319300 | H46: =SUM(H47:H57) -> 0 | I46: =SUM(I47:I57) -> 319300 | J46: 0 | K46: 0 | L46: 0 | M46: =SUM(M47:M57) -> 0 | N46: 0 | O46: 0 | P46: =SUM(P47:P57) -> 0 | Q46: 0 | R46: 0 | S46: =SUM(S47:S57) -> 0 | T46: 0 | U46: 0 | V46: =SUM(V47:V57) -> 0 | W46: 0 | X46: 0
E47: 613100 | F47: Putni troškovi | G47: 7000 | H47: 0 | I47: =SUM(G47:H47) -> 7000 | L47: =SUM(J47:K47) -> 0 | O47: =SUM(M47:N47) -> 0 | R47: =SUM(P47:Q47) -> 0 | U47: =SUM(S47:T47) -> 0 | V47: 0 | W47: 0 | X47: =SUM(V47:W47) -> 0
E48: 613200 | F48: Izdaci za energiju | G48: 0 | H48: 0 | I48: 0 | L48: 0 | O48: 0 | R48: 0 | U48: 0 | V48: 0 | W48: 0 | X48: 0
E49: 613300 | F49: Izdaci za komunikaciju i komunalne usluge | G49: 5200 | H49: 0 | I49: 5200 | L49: 0 | O49: 0 | R49: 0 | U49: 0 | V49: 0 | W49: 0 | X49: 0
E50: 613400 | F50: Nabava materijala i sitnog inventara | G50: 1200 | H50: 0 | I50: 1200 | L50: 0 | O50: 0 | R50: 0 | U50: 0 | V50: 0 | W50: 0 | X50: 0
E51: 613500 | F51: Izdaci za usluge prijevoza i goriva | G51: 1000 | H51: 0 | I51: 1000 | L51: 0 | O51: 0 | R51: 0 | U51: 0 | V51: 0 | W51: 0 | X51: 0
E52: 613600 | F52: Unajmljivanje imovine, opreme i nemat.imovine | G52: 1200 | H52: 0 | I52: 1200 | L52: 0 | O52: 0 | R52: 0 | U52: 0 | V52: 0 | W52: 0 | X52: 0
E53: 613700 | F53: Izdaci za tekuće održavanje | G53: 3000 | H53: 0 | I53: 3000 | L53: 0 | O53: 0 | R53: 0 | U53: 0 | V53: 0 | W53: 0 | X53: 0
E54: 613800 | F54: Izdaci osiguranja, bank.usluga i usluga PP | G54: 500 | H54: 0 | I54: 500 | L54: 0 | O54: 0 | R54: 0 | U54: 0 | V54: 0 | W54: 0 | X54: 0
E55: 613900 | F55: Ugovorene i druge posebne usluge | G55: 140000 | H55: 0 | I55: 140000 | L55: 0 | O55: 0 | R55: 0 | U55: 0 | V55: 0 | W55: 0 | X55: 0
D56: BA6021 | E56: 613900 | F56: Ug.idr.pos,usluge-sufinanciranje prijema vježbenika | G56: 87000 | H56: 0 | I56: 87000 | L56: 0 | O56: 0 | R56: 0 | U56: 0 | V56: 0 | W56: 0 | X56: 0
D57: BA6017 | E57: 613900 | F57: Ugovorene i druge posebne usluge - volonteri | G57: 73200 | H57: 0 | I57: 73200 | L57: 0 | O57: 0 | R57: 0 | U57: 0 | V57: 0 | W57: 0 | X57: 0
E58: 614000 | F58: Tekući grantovi i drugi tekući rashodi | G58: =SUM(G59:G65) -> 810000 | H58: 0 | I58: 810000 | J58: 0 | K58: 0 | L58: 0 | M58: 0 | N58: 0 | O58: 0 | P58: 0 | Q58: 0 | R58: 0 | S58: 0 | T58: 0 | U58: 0 | V58: 0 | W58: 0 | X58: 0
D59: BA6014 | E59: 614100 | F59: Grant za Sveučilište u Mostaru | G59: 300000 | H59: 0 | I59: =SUM(G59:H59) -> 300000 | L59: =SUM(J59:K59) -> 0 | O59: =SUM(M59:N59) -> 0 | R59: =SUM(P59:Q59) -> 0 | U59: =SUM(S59:T59) -> 0 | V59: 0 | W59: 0 | X59: =SUM(V59:W59) -> 0
D60: BA6016 | E60: 614200 | F60: Grant za sufinanc.nabavke udžbenika učenicima | G60: 220000 | H60: 0 | I60: 220000 | L60: 0 | O60: 0 | R60: 0 | U60: 0 | V60: 0 | W60: 0 | X60: 0
D61: BA6001 | E61: 614300 | F61: Grant nepro.organizacijama i udruženjima građana | G61: 70000 | H61: 0 | I61: 70000 | L61: 0 | O61: 0 | R61: 0 | U61: 0 | V61: 0 | W61: 0 | X61: 0
D62: BA6008 | E62: 614300 | F62: Grant za Crveni križ Županije Posavske | G62: 30000 | H62: 0 | I62: 30000 | L62: 0 | O62: 0 | R62: 0 | U62: 0 | V62: 0 | W62: 0 | X62: 0
D63: BA6007 | E63: 614300 | F63: Grant za Gospodarsku komoru ŽP | G63: 35000 | H63: 0 | I63: 35000 | L63: 0 | O63: 0 | R63: 0 | U63: 0 | V63: 0 | W63: 0 | X63: 0
D64: BA6018 | E64: 614300 | F64: Grant za Obrtničku komoru ŽP | G64: 15000 | H64: 0 | I64: =SUM(G64:H64) -> 15000 | L64: =SUM(J64:K64) -> 0 | O64: =SUM(M64:N64) -> 0 | R64: =SUM(P64:Q64) -> 0 | U64: =SUM(S64:T64) -> 0 | V64: =S64+P64+M64+J64 -> 0 | W64: =T64+Q64+N64+K64 -> 0 | X64: =SUM(V64:W64) -> 0 | Y64: =IF(OR(V64>G64, W64>H64),"Ukupni operativni plan je veći od Proračuna!","") -> 
D65: AA6001 | E65: 614300 | F65: Grantovi političkim strankama | G65: 140000 | H65: 0 | I65: 140000 | L65: 0 | O65: 0 | R65: 0 | U65: 0 | V65: 0 | W65: 0 | X65: 0
E66: 615000 | F66: Kapitalni grantovi | G66: =G67 -> 300000 | H66: =H67 -> 0 | I66: =I67 -> 300000 | J66: =J67 -> 0 | K66: 0 | L66: =L67 -> 0 | M66: =M67 -> 0 | N66: 0 | O66: =O67 -> 0 | P66: =P67 -> 0 | Q66: 0 | R66: =R67 -> 0 | S66: =S67 -> 0 | T66: 0 | U66: =U67 -> 0 | V66: =V67 -> 0 | W66: 0 | X66: =X67 -> 0
E67: 615100 | F67: Kapitalni grant | G67: 300000 | H67: 0 | I67: =SUM(G67:H67) -> 300000 | L67: =SUM(J67:K67) -> 0 | O67: =SUM(M67:N67) -> 0 | R67: =SUM(P67:Q67) -> 0 | U67: =SUM(S67:T67) -> 0 | V67: 0 | W67: 0 | X67: =SUM(V67:W67) -> 0
E68: 821000 | F68: Izdaci za nabavku stalnih sredstava | G68: =SUM(G69:G71) -> 100000 | H68: =SUM(H69:H71) -> 0 | I68: 100000 | J68: 0 | K68: 0 | L68: 0 | M68: 0 | N68: 0 | O68: 0 | P68: 0 | Q68: 0 | R68: 0 | S68: 0 | T68: 0 | U68: 0 | V68: 0 | W68: 0 | X68: 0
E69: 821200 | F69: Nabavka građevina | G69: 70000 | H69: 0 | I69: =SUM(G69:H69) -> 70000 | L69: =SUM(J69:K69) -> 0 | O69: =SUM(M69:N69) -> 0 | R69: =SUM(P69:Q69) -> 0 | U69: =SUM(S69:T69) -> 0 | V69: 0 | W69: 0 | X69: =SUM(V69:W69) -> 0
E70: 821300 | F70: Nabavka opreme | G70: 30000 | H70: 0 | I70: =SUM(G70:H70) -> 30000 | L70: =SUM(J70:K70) -> 0 | O70: =SUM(M70:N70) -> 0 | R70: =SUM(P70:Q70) -> 0 | U70: =SUM(S70:T70) -> 0 | V70: 0 | W70: 0 | X70: =SUM(V70:W70) -> 0
E71: 821500 | F71: Nabavka stalnih sredstava u obliku prava | G71: 0 | H71: 0 | I71: =SUM(G71:H71) -> 0 | L71: =SUM(J71:K71) -> 0 | O71: =SUM(M71:N71) -> 0 | R71: =SUM(P71:Q71) -> 0 | U71: =SUM(S71:T71) -> 0 | V71: =S71+P71+M71+J71 -> 0 | W71: =T71+Q71+N71+K71 -> 0 | X71: =SUM(V71:W71) -> 0 | Y71: =IF(OR(V71>G71, W71>H71),"Ukupni operativni plan je veći od Proračuna!","") -> 
F72: Ukupno za korisnika Vlada Županije Posavske | G72: =G36+G40+G44+G46+G58+G66+G68 -> 2236060 | H72: 0 | I72: 2236060 | J72: 0 | K72: 0 | L72: 0 | M72: 0 | N72: 0 | O72: 0 | P72: 0 | Q72: 0 | R72: 0 | S72: 0 | T72: 0 | U72: 0 | V72: 0 | W72: 0 | X72: 0
A74: 11 | B74: 01 | C74: 0006 | F74: URED ZA OBNOVU, STAMB.ZBRINJ.I RAS.OSOBE
E75: 611000 | F75: Plaće i naknade troškova zaposlenih | G75: =SUM(G76:G78) -> 116200 | H75: =SUM(H76:H78) -> 0 | I75: =SUM(I76:I78) -> 116200 | J75: =SUM(J76:J78) -> 0 | K75: =SUM(K76:K78) -> 0 | L75: =SUM(L76:L78) -> 0 | M75: =SUM(M76:M78) -> 0 | N75: =SUM(N76:N78) -> 0 | O75: =SUM(O76:O78) -> 0 | P75: =SUM(P76:P78) -> 0 | Q75: =SUM(Q76:Q78) -> 0 | R75: =SUM(R76:R78) -> 0 | S75: =SUM(S76:S78) -> 0 | T75: =SUM(T76:T78) -> 0 | U75: =SUM(U76:U78) -> 0 | V75: =SUM(V76:V78) -> 0 | W75: =SUM(W76:W78) -> 0 | X75: =SUM(X76:X78) -> 0
E76: 611100 | F76: Bruto plaće i naknade | G76: 94920 | H76: 0 | I76: =SUM(G76:H76) -> 94920 | L76: =SUM(J76:K76) -> 0 | O76: =SUM(M76:N76) -> 0 | R76: =SUM(P76:Q76) -> 0 | U76: =SUM(S76:T76) -> 0 | V76: =S76+P76+M76+J76 -> 0 | W76: =T76+Q76+N76+K76 -> 0 | X76: =SUM(V76:W76) -> 0
E77: 611200 | F77: Naknade troškova zaposlenih | G77: 21280 | H77: 0 | I77: =SUM(G77:H77) -> 21280 | L77: =SUM(J77:K77) -> 0 | O77: =SUM(M77:N77) -> 0 | R77: =SUM(P77:Q77) -> 0 | U77: =SUM(S77:T77) -> 0 | V77: 0 | W77: 0 | X77: =SUM(V77:W77) -> 0
E78: 611200 | F78: Naknade troškova zaposlenih - volonteri | G78: 0 | H78: 0 | I78: 0 | L78: 0 | O78: 0 | R78: 0 | U78: 0 | V78: 0 | W78: 0 | X78: 0
E79: 612000 | F79: Doprinosi poslodavca | G79: =G80 -> 10080 | H79: =H80 -> 0 | I79: =I80 -> 10080 | J79: =J80 -> 0 | K79: =K80 -> 0 | L79: =L80 -> 0 | M79: =M80 -> 0 | N79: =N80 -> 0 | O79: =O80 -> 0 | P79: =P80 -> 0 | Q79: =Q80 -> 0 | R79: =R80 -> 0 | S79: =S80 -> 0 | T79: =T80 -> 0 | U79: =U80 -> 0 | V79: =V80 -> 0 | W79: =W80 -> 0 | X79: =X80 -> 0
E80: 612100 | F80: Doprinosi poslodavca | G80: 10080 | H80: 0 | I80: =SUM(G80:H80) -> 10080 | L80: =SUM(J80:K80) -> 0 | O80: =SUM(M80:N80) -> 0 | R80: =SUM(P80:Q80) -> 0 | U80: =SUM(S80:T80) -> 0 | V80: =S80+P80+M80+J80 -> 0 | W80: =T80+Q80+N80+K80 -> 0 | X80: =SUM(V80:W80) -> 0
E81: 613000 | F81: Izdaci za materijal, sitan inventar i usluge | G81: =SUM(G82:G91) -> 5500 | H81: =SUM(H82:H91) -> 0 | I81: =SUM(I82:I91) -> 5500 | J81: =SUM(J82:J91) -> 0 | K81: =SUM(K82:K91) -> 0 | L81: =SUM(L82:L91) -> 0 | M81: =SUM(M82:M91) -> 0 | N81: =SUM(N82:N91) -> 0 | O81: =SUM(O82:O91) -> 0 | P81: =SUM(P82:P91) -> 0 | Q81: =SUM(Q82:Q91) -> 0 | R81: =SUM(R82:R91) -> 0 | S81: =SUM(S82:S91) -> 0 | T81: =SUM(T82:T91) -> 0 | U81: =SUM(U82:U91) -> 0 | V81: =SUM(V82:V91) -> 0 | W81: =SUM(W82:W91) -> 0 | X81: =SUM(X82:X91) -> 0
E82: 613100 | F82: Putni troškovi | G82: 500 | H82: 0 | I82: =SUM(G82:H82) -> 500 | L82: =SUM(J82:K82) -> 0 | O82: =SUM(M82:N82) -> 0 | R82: =SUM(P82:Q82) -> 0 | U82: =SUM(S82:T82) -> 0 | V82: =S82+P82+M82+J82 -> 0 | W82: =T82+Q82+N82+K82 -> 0 | X82: =SUM(V82:W82) -> 0
E83: 613200 | F83: Izdaci za energiju | G83: 0 | H83: 0 | I83: 0 | L83: 0 | O83: 0 | R83: 0 | U83: 0 | V83: 0 | W83: 0 | X83: 0
E84: 613300 | F84: Izdaci za komunikaciju i komunalne usluge | G84: 2500 | H84: 0 | I84: 2500 | L84: 0 | O84: 0 | R84: 0 | U84: 0 | V84: 0 | W84: 0 | X84: 0
E85: 613400 | F85: Nabava materijala i sitnog inventara | G85: 600 | H85: 0 | I85: 600 | L85: 0 | O85: 0 | R85: 0 | U85: 0 | V85: 0 | W85: 0 | X85: 0
E86: 613500 | F86: Izdaci za usluge prijevoza i goriva | G86: 0 | H86: 0 | I86: 0 | L86: 0 | O86: 0 | R86: 0 | U86: 0 | V86: 0 | W86: 0 | X86: 0
E87: 613600 | F87: Unajmljivanje imovine, opreme i nemat.imovine | G87: 0 | H87: 0 | I87: 0 | L87: 0 | O87: 0 | R87: 0 | U87: 0 | V87: 0 | W87: 0 | X87: 0
E88: 613700 | F88: Izdaci za tekuće održavanje | G88: 500 | H88: 0 | I88: 500 | L88: 0 | O88: 0 | R88: 0 | U88: 0 | V88: 0 | W88: 0 | X88: 0
E89: 613800 | F89: Izdaci osiguranja, bank.usluga i usluga PP | G89: 0 | H89: 0 | I89: 0 | L89: 0 | O89: 0 | R89: 0 | U89: 0 | V89: 0 | W89: 0 | X89: 0
E90: 613900 | F90: Ugovorene i druge posebne usluge | G90: 1400 | H90: 0 | I90: 1400 | L90: 0 | O90: 0 | R90: 0 | U90: 0 | V90: 0 | W90: 0 | X90: 0
E91: 613900 | F91: Ugovorene i druge posebne usluge - volonteri | G91: 0 | H91: 0 | I91: 0 | L91: 0 | O91: 0 | R91: 0 | U91: 0 | V91: 0 | W91: 0 | X91: 0
E92: 614000 | F92: Tekući grantovi i drugi tekući rashodi | G92: =G93 -> 120000 | H92: 0 | I92: 120000 | J92: 0 | K92: 0 | L92: 0 | M92: 0 | N92: 0 | O92: 0 | P92: 0 | Q92: 0 | R92: 0 | S92: 0 | T92: 0 | U92: 0 | V92: 0 | W92: 0 | X92: 0
D93: BA6020 | E93: 614200 | F93: Grant za pomoć pri stamb.zbrinjav.mladih obitelji i… | G93: 120000 | H93: 0 | I93: =SUM(G93:H93) -> 120000 | L93: =SUM(J93:K93) -> 0 | O93: =SUM(M93:N93) -> 0 | R93: =SUM(P93:Q93) -> 0 | U93: =SUM(S93:T93) -> 0 | V93: =S93+P93+M93+J93 -> 0 | W93: =T93+Q93+N93+K93 -> 0 | X93: =SUM(V93:W93) -> 0
E94: 821000 | F94: Izdaci za nabavku stalnih sredstava | G94: =SUM(G95:G96) -> 1500 | H94: =SUM(H95:H96) -> 0 | I94: =SUM(I95:I96) -> 1500 | J94: =SUM(J95:J96) -> 0 | K94: =SUM(K95:K96) -> 0 | L94: =SUM(L95:L96) -> 0 | M94: =SUM(M95:M96) -> 0 | N94: =SUM(N95:N96) -> 0 | O94: =SUM(O95:O96) -> 0 | P94: =SUM(P95:P96) -> 0 | Q94: =SUM(Q95:Q96) -> 0 | R94: =SUM(R95:R96) -> 0 | S94: =SUM(S95:S96) -> 0 | T94: =SUM(T95:T96) -> 0 | U94: =SUM(U95:U96) -> 0 | V94: =SUM(V95:V96) -> 0 | W94: =SUM(W95:W96) -> 0 | X94: =SUM(X95:X96) -> 0
E95: 821200 | F95: Nabavka građevina | G95: 0 | H95: 0 | I95: =SUM(G95:H95) -> 0 | L95: =SUM(J95:K95) -> 0 | O95: =SUM(M95:N95) -> 0 | R95: =SUM(P95:Q95) -> 0 | U95: =SUM(S95:T95) -> 0 | V95: =S95+P95+M95+J95 -> 0 | W95: =T95+Q95+N95+K95 -> 0 | X95: =SUM(V95:W95) -> 0
E96: 821300 | F96: Nabavka opreme | G96: 1500 | H96: 0 | I96: =SUM(G96:H96) -> 1500 | L96: =SUM(J96:K96) -> 0 | O96: =SUM(M96:N96) -> 0 | R96: =SUM(P96:Q96) -> 0 | U96: =SUM(S96:T96) -> 0 | V96: 0 | W96: 0 | X96: =SUM(V96:W96) -> 0
F97: Ukupno za korisnika Ured za obnovu, stamb.zbrinj.i… | G97: =G75+G79+G81+G92+G94 -> 253280 | H97: =H75+H79+H81+H92+H94 -> 0 | I97: 253280 | J97: 0 | K97: 0 | L97: 0 | M97: 0 | N97: 0 | O97: 0 | P97: 0 | Q97: 0 | R97: 0 | S97: 0 | T97: 0 | U97: 0 | V97: 0 | W97: 0 | X97: 0
A99: 11 | B99: 01 | C99: 0003 | F99: URED ZA ZAKONODAVSTVO VLADE ŽP
E100: 611000 | F100: Plaće i naknade troškova zaposlenih | G100: =SUM(G101:G103) -> 61980 | H100: =SUM(H101:H103) -> 0 | I100: =SUM(I101:I103) -> 61980 | J100: =SUM(J101:J103) -> 0 | K100: =SUM(K101:K103) -> 0 | L100: =SUM(L101:L103) -> 0 | M100: =SUM(M101:M103) -> 0 | N100: =SUM(N101:N103) -> 0 | O100: =SUM(O101:O103) -> 0 | P100: =SUM(P101:P103) -> 0 | Q100: =SUM(Q101:Q103) -> 0 | R100: =SUM(R101:R103) -> 0 | S100: =SUM(S101:S103) -> 0 | T100: =SUM(T101:T103) -> 0 | U100: =SUM(U101:U103) -> 0 | V100: =SUM(V101:V103) -> 0 | W100: =SUM(W101:W103) -> 0 | X100: =SUM(X101:X103) -> 0
E101: 611100 | F101: Bruto plaće i naknade | G101: 53530 | H101: 0 | I101: =SUM(G101:H101) -> 53530 | L101: =SUM(J101:K101) -> 0 | O101: =SUM(M101:N101) -> 0 | R101: =SUM(P101:Q101) -> 0 | U101: =SUM(S101:T101) -> 0 | V101: =S101+P101+M101+J101 -> 0 | W101: =T101+Q101+N101+K101 -> 0 | X101: =SUM(V101:W101) -> 0
E102: 611200 | F102: Naknade troškova zaposlenih | G102: 8450 | H102: 0 | I102: =SUM(G102:H102) -> 8450 | L102: =SUM(J102:K102) -> 0 | O102: =SUM(M102:N102) -> 0 | R102: =SUM(P102:Q102) -> 0 | U102: =SUM(S102:T102) -> 0 | V102: 0 | W102: 0 | X102: =SUM(V102:W102) -> 0 | Y102: =IF(OR(V102>G102, W102>H102),"Ukupni operativni plan je veći od Proračuna!","") -> 
E103: 611200 | F103: Naknade troškova zaposlenih - volonteri | G103: 0 | H103: 0 | I103: 0 | L103: 0 | O103: 0 | R103: 0 | U103: 0 | V103: 0 | W103: 0 | X103: 0
E104: 612000 | F104: Doprinosi poslodavca | G104: =G105 -> 5660 | H104: =H105 -> 0 | I104: =I105 -> 5660 | J104: =J105 -> 0 | K104: =K105 -> 0 | L104: =L105 -> 0 | M104: =M105 -> 0 | N104: =N105 -> 0 | O104: =O105 -> 0 | P104: =P105 -> 0 | Q104: =Q105 -> 0 | R104: =R105 -> 0 | S104: =S105 -> 0 | T104: =T105 -> 0 | U104: =U105 -> 0 | V104: =V105 -> 0 | W104: =W105 -> 0 | X104: =X105 -> 0
E105: 612100 | F105: Doprinosi poslodavca | G105: 5660 | H105: 0 | I105: =SUM(G105:H105) -> 5660 | L105: =SUM(J105:K105) -> 0 | O105: =SUM(M105:N105) -> 0 | R105: =SUM(P105:Q105) -> 0 | U105: =SUM(S105:T105) -> 0 | V105: =S105+P105+M105+J105 -> 0 | W105: =T105+Q105+N105+K105 -> 0 | X105: =SUM(V105:W105) -> 0
E106: 613000 | F106: Izdaci za materijal, sitan inventar i usluge | G106: =SUM(G107:G116) -> 800 | H106: =SUM(H107:H116) -> 0 | I106: =SUM(I107:I116) -> 800 | J106: =SUM(J107:J116) -> 0 | K106: =SUM(K107:K116) -> 0 | L106: =SUM(L107:L116) -> 0 | M106: =SUM(M107:M116) -> 0 | N106: =SUM(N107:N116) -> 0 | O106: =SUM(O107:O116) -> 0 | P106: =SUM(P107:P116) -> 0 | Q106: =SUM(Q107:Q116) -> 0 | R106: =SUM(R107:R116) -> 0 | S106: =SUM(S107:S116) -> 0 | T106: =SUM(T107:T116) -> 0 | U106: =SUM(U107:U116) -> 0 | V106: =SUM(V107:V116) -> 0 | W106: =SUM(W107:W116) -> 0 | X106: =SUM(X107:X116) -> 0
E107: 613100 | F107: Putni troškovi | G107: 300 | H107: 0 | I107: =SUM(G107:H107) -> 300 | L107: =SUM(J107:K107) -> 0 | O107: =SUM(M107:N107) -> 0 | R107: =SUM(P107:Q107) -> 0 | U107: =SUM(S107:T107) -> 0 | V107: =S107+P107+M107+J107 -> 0 | W107: =T107+Q107+N107+K107 -> 0 | X107: =SUM(V107:W107) -> 0
E108: 613200 | F108: Izdaci za energiju | G108: 0 | H108: 0 | I108: 0 | L108: 0 | O108: 0 | R108: 0 | U108: 0 | V108: 0 | W108: 0 | X108: 0
E109: 613300 | F109: Izdaci za komunikaciju i komunalne usluge | G109: 0 | H109: 0 | I109: 0 | L109: 0 | O109: 0 | R109: 0 | U109: 0 | V109: 0 | W109: 0 | X109: 0
E110: 613400 | F110: Nabava materijala i sitnog inventara | G110: 0 | H110: 0 | I110: 0 | L110: 0 | O110: 0 | R110: 0 | U110: 0 | V110: 0 | W110: 0 | X110: 0
E111: 613500 | F111: Izdaci za usluge prijevoza i goriva | G111: 0 | H111: 0 | I111: 0 | L111: 0 | O111: 0 | R111: 0 | U111: 0 | V111: 0 | W111: 0 | X111: 0
E112: 613600 | F112: Unajmljivanje imovine, opreme i nemat.imovine | G112: 0 | H112: 0 | I112: 0 | L112: 0 | O112: 0 | R112: 0 | U112: 0 | V112: 0 | W112: 0 | X112: 0
E113: 613700 | F113: Izdaci za tekuće održavanje | G113: 0 | H113: 0 | I113: 0 | L113: 0 | O113: 0 | R113: 0 | U113: 0 | V113: 0 | W113: 0 | X113: 0
E114: 613800 | F114: Izdaci osiguranja, bank.usluga i usluga PP | G114: 0 | H114: 0 | I114: 0 | L114: 0 | O114: 0 | R114: 0 | U114: 0 | V114: 0 | W114: 0 | X114: 0
E115: 613900 | F115: Ugovorene i druge posebne usluge | G115: 500 | H115: 0 | I115: 500 | L115: 0 | O115: 0 | R115: 0 | U115: 0 | V115: 0 | W115: 0 | X115: 0
E116: 613900 | F116: Ugovorene i druge posebne usluge - volonteri | G116: 0 | H116: 0 | I116: 0 | L116: 0 | O116: 0 | R116: 0 | U116: 0 | V116: 0 | W116: 0 | X116: 0
E117: 821000 | F117: Izdaci za nabavku stalnih sredstava | G117: =SUM(G118:G119) -> 500 | H117: =SUM(H118:H119) -> 0 | I117: =SUM(I118:I119) -> 500 | J117: =SUM(J118:J119) -> 0 | K117: =SUM(K118:K119) -> 0 | L117: =SUM(L118:L119) -> 0 | M117: =SUM(M118:M119) -> 0 | N117: =SUM(N118:N119) -> 0 | O117: =SUM(O118:O119) -> 0 | P117: =SUM(P118:P119) -> 0 | Q117: =SUM(Q118:Q119) -> 0 | R117: =SUM(R118:R119) -> 0 | S117: =SUM(S118:S119) -> 0 | T117: =SUM(T118:T119) -> 0 | U117: =SUM(U118:U119) -> 0 | V117: =SUM(V118:V119) -> 0 | W117: =SUM(W118:W119) -> 0 | X117: =SUM(X118:X119) -> 0
E118: 821200 | F118: Nabavka građevina | G118: 0 | H118: 0 | I118: =SUM(G118:H118) -> 0 | L118: =SUM(J118:K118) -> 0 | O118: =SUM(M118:N118) -> 0 | R118: =SUM(P118:Q118) -> 0 | U118: =SUM(S118:T118) -> 0 | V118: =S118+P118+M118+J118 -> 0 | W118: =T118+Q118+N118+K118 -> 0 | X118: =SUM(V118:W118) -> 0
E119: 821300 | F119: Nabavka opreme | G119: 500 | H119: 0 | I119: =SUM(G119:H119) -> 500 | L119: =SUM(J119:K119) -> 0 | O119: =SUM(M119:N119) -> 0 | R119: =SUM(P119:Q119) -> 0 | U119: =SUM(S119:T119) -> 0 | V119: 0 | W119: 0 | X119: =SUM(V119:W119) -> 0
F120: Ukupno za korisnika Ured za zakonodavstvo Vlade ŽP | G120: =G100+G104+G106+G117 -> 68940 | H120: =H100+H104+H106+H117 -> 0 | I120: 68940 | J120: 0 | K120: 0 | L120: 0 | M120: 0 | N120: 0 | O120: 0 | P120: 0 | Q120: 0 | R120: 0 | S120: 0 | T120: 0 | U120: 0 | V120: 0 | W120: 0 | X120: 0
A122: 11 | B122: 01 | C122: 0004 | F122: SLUŽBA ZA ODNOSE S JAVNOŠĆU VLADE ŽP
E123: 611000 | F123: Plaće i naknade troškova zaposlenih | G123: =SUM(G124:G126) -> 84400 | H123: =SUM(H124:H126) -> 0 | I123: =SUM(I124:I126) -> 84400 | J123: =SUM(J124:J126) -> 0 | K123: =SUM(K124:K126) -> 0 | L123: =SUM(L124:L126) -> 0 | M123: =SUM(M124:M126) -> 0 | N123: =SUM(N124:N126) -> 0 | O123: =SUM(O124:O126) -> 0 | P123: =SUM(P124:P126) -> 0 | Q123: =SUM(Q124:Q126) -> 0 | R123: =SUM(R124:R126) -> 0 | S123: =SUM(S124:S126) -> 0 | T123: =SUM(T124:T126) -> 0 | U123: =SUM(U124:U126) -> 0 | V123: =SUM(V124:V126) -> 0 | W123: =SUM(W124:W126) -> 0 | X123: =SUM(X124:X126) -> 0
E124: 611100 | F124: Bruto plaće i naknade | G124: 73450 | H124: 0 | I124: =SUM(G124:H124) -> 73450 | L124: =SUM(J124:K124) -> 0 | O124: =SUM(M124:N124) -> 0 | R124: =SUM(P124:Q124) -> 0 | U124: =SUM(S124:T124) -> 0 | V124: =S124+P124+M124+J124 -> 0 | W124: =T124+Q124+N124+K124 -> 0 | X124: =SUM(V124:W124) -> 0
E125: 611200 | F125: Naknade troškova zaposlenih | G125: 10950 | H125: 0 | I125: =SUM(G125:H125) -> 10950 | L125: =SUM(J125:K125) -> 0 | O125: =SUM(M125:N125) -> 0 | R125: =SUM(P125:Q125) -> 0 | U125: =SUM(S125:T125) -> 0 | V125: 0 | W125: 0 | X125: =SUM(V125:W125) -> 0
E126: 611200 | F126: Naknade troškova zaposlenih - volonteri | G126: 0 | H126: 0 | I126: =SUM(G126:H126) -> 0 | L126: 0 | O126: 0 | R126: 0 | U126: 0 | V126: 0 | W126: 0 | X126: 0
E127: 612000 | F127: Doprinosi poslodavca | G127: =G128 -> 7800 | H127: =H128 -> 0 | I127: =I128 -> 7800 | J127: =J128 -> 0 | K127: =K128 -> 0 | L127: =L128 -> 0 | M127: =M128 -> 0 | N127: =N128 -> 0 | O127: =O128 -> 0 | P127: =P128 -> 0 | Q127: =Q128 -> 0 | R127: =R128 -> 0 | S127: =S128 -> 0 | T127: =T128 -> 0 | U127: =U128 -> 0 | V127: =V128 -> 0 | W127: =W128 -> 0 | X127: =X128 -> 0
E128: 612100 | F128: Doprinosi poslodavca | G128: 7800 | H128: 0 | I128: =SUM(G128:H128) -> 7800 | L128: =SUM(J128:K128) -> 0 | O128: =SUM(M128:N128) -> 0 | R128: =SUM(P128:Q128) -> 0 | U128: =SUM(S128:T128) -> 0 | V128: =S128+P128+M128+J128 -> 0 | W128: =T128+Q128+N128+K128 -> 0 | X128: =SUM(V128:W128) -> 0
E129: 613000 | F129: Izdaci za materijal, sitan inventar i usluge | G129: =SUM(G130:G139) -> 5500 | H129: =SUM(H130:H139) -> 0 | I129: =SUM(I130:I139) -> 5500 | J129: =SUM(J130:J139) -> 0 | K129: =SUM(K130:K139) -> 0 | L129: =SUM(L130:L139) -> 0 | M129: =SUM(M130:M139) -> 0 | N129: =SUM(N130:N139) -> 0 | O129: =SUM(O130:O139) -> 0 | P129: =SUM(P130:P139) -> 0 | Q129: =SUM(Q130:Q139) -> 0 | R129: =SUM(R130:R139) -> 0 | S129: =SUM(S130:S139) -> 0 | T129: =SUM(T130:T139) -> 0 | U129: =SUM(U130:U139) -> 0 | V129: =SUM(V130:V139) -> 0 | W129: =SUM(W130:W139) -> 0 | X129: =SUM(X130:X139) -> 0
E130: 613100 | F130: Putni troškovi | G130: 700 | H130: 0 | I130: =SUM(G130:H130) -> 700 | L130: =SUM(J130:K130) -> 0 | O130: =SUM(M130:N130) -> 0 | R130: =SUM(P130:Q130) -> 0 | U130: =SUM(S130:T130) -> 0 | V130: =S130+P130+M130+J130 -> 0 | W130: =T130+Q130+N130+K130 -> 0 | X130: =SUM(V130:W130) -> 0
E131: 613200 | F131: Izdaci za energiju | G131: 0 | H131: 0 | I131: 0 | L131: 0 | O131: 0 | R131: 0 | U131: 0 | V131: 0 | W131: 0 | X131: 0
E132: 613300 | F132: Izdaci za komunikaciju i komunalne usluge | G132: 2500 | H132: 0 | I132: 2500 | L132: 0 | O132: 0 | R132: 0 | U132: 0 | V132: 0 | W132: 0 | X132: 0
E133: 613400 | F133: Nabava materijala i sitnog inventara | G133: 300 | H133: 0 | I133: 300 | L133: 0 | O133: 0 | R133: 0 | U133: 0 | V133: 0 | W133: 0 | X133: 0
E134: 613500 | F134: Izdaci za usluge prijevoza i goriva | G134: 0 | H134: 0 | I134: 0 | L134: 0 | O134: 0 | R134: 0 | U134: 0 | V134: 0 | W134: 0 | X134: 0
E135: 613600 | F135: Unajmljivanje imovine, opreme i nemat.imovine | G135: 0 | H135: 0 | I135: 0 | L135: 0 | O135: 0 | R135: 0 | U135: 0 | V135: 0 | W135: 0 | X135: 0
E136: 613700 | F136: Izdaci za tekuće održavanje | G136: 500 | H136: 0 | I136: 500 | L136: 0 | O136: 0 | R136: 0 | U136: 0 | V136: 0 | W136: 0 | X136: 0
E137: 613800 | F137: Izdaci osiguranja, bank.usluga i usluga PP | G137: 0 | H137: 0 | I137: 0 | L137: 0 | O137: 0 | R137: 0 | U137: 0 | V137: 0 | W137: 0 | X137: 0
E138: 613900 | F138: Ugovorene i druge posebne usluge | G138: 1500 | H138: 0 | I138: 1500 | L138: 0 | O138: 0 | R138: 0 | U138: 0 | V138: 0 | W138: 0 | X138: 0
E139: 613900 | F139: Ugovorene i druge posebne usluge - volonteri | G139: 0 | H139: 0 | I139: 0 | L139: 0 | O139: 0 | R139: 0 | U139: 0 | V139: 0 | W139: 0 | X139: 0
E140: 821000 | F140: Izdaci za nabavku stalnih sredstava | G140: =SUM(G141:G142) -> 1500 | H140: =SUM(H141:H142) -> 0 | I140: =SUM(I141:I142) -> 1500 | J140: =SUM(J141:J142) -> 0 | K140: =SUM(K141:K142) -> 0 | L140: =SUM(L141:L142) -> 0 | M140: =SUM(M141:M142) -> 0 | N140: =SUM(N141:N142) -> 0 | O140: =SUM(O141:O142) -> 0 | P140: =SUM(P141:P142) -> 0 | Q140: =SUM(Q141:Q142) -> 0 | R140: =SUM(R141:R142) -> 0 | S140: =SUM(S141:S142) -> 0 | T140: =SUM(T141:T142) -> 0 | U140: =SUM(U141:U142) -> 0 | V140: =SUM(V141:V142) -> 0 | W140: =SUM(W141:W142) -> 0 | X140: =SUM(X141:X142) -> 0
E141: 821200 | F141: Nabavka građevina | G141: 0 | H141: 0 | I141: =SUM(G141:H141) -> 0 | L141: =SUM(J141:K141) -> 0 | O141: =SUM(M141:N141) -> 0 | R141: =SUM(P141:Q141) -> 0 | U141: =SUM(S141:T141) -> 0 | V141: =S141+P141+M141+J141 -> 0 | W141: =T141+Q141+N141+K141 -> 0 | X141: =SUM(V141:W141) -> 0
E142: 821300 | F142: Nabavka opreme | G142: 1500 | H142: 0 | I142: =SUM(G142:H142) -> 1500 | L142: =SUM(J142:K142) -> 0 | O142: =SUM(M142:N142) -> 0 | R142: =SUM(P142:Q142) -> 0 | U142: =SUM(S142:T142) -> 0 | V142: 0 | W142: 0 | X142: =SUM(V142:W142) -> 0
F143: Ukupno za korisnika Služba za odnose s javnošću | G143: =G123+G127+G129+G140 -> 99200 | H143: =H123+H127+H129+H140 -> 0 | I143: 99200 | J143: 0 | K143: 0 | L143: 0 | M143: 0 | N143: 0 | O143: 0 | P143: 0 | Q143: 0 | R143: 0 | S143: 0 | T143: 0 | U143: 0 | V143: 0 | W143: 0 | X143: 0
A145: 11 | B145: 01 | C145: 0005 | F145: URED ZA RAZVOJ I EUROPSKE INTEGRACIJE ŽP
E146: 611000 | F146: Plaće i naknade troškova zaposlenih | G146: =SUM(G147:G149) -> 178010 | H146: =SUM(H147:H149) -> 0 | I146: =SUM(I147:I149) -> 178010 | J146: =SUM(J147:J149) -> 0 | K146: =SUM(K147:K149) -> 0 | L146: =SUM(L147:L149) -> 0 | M146: =SUM(M147:M149) -> 0 | N146: =SUM(N147:N149) -> 0 | O146: =SUM(O147:O149) -> 0 | P146: =SUM(P147:P149) -> 0 | Q146: =SUM(Q147:Q149) -> 0 | R146: =SUM(R147:R149) -> 0 | S146: =SUM(S147:S149) -> 0 | T146: =SUM(T147:T149) -> 0 | U146: =SUM(U147:U149) -> 0 | V146: =SUM(V147:V149) -> 0 | W146: =SUM(W147:W149) -> 0 | X146: =SUM(X147:X149) -> 0
E147: 611100 | F147: Bruto plaće i naknade | G147: 144000 | H147: 0 | I147: =SUM(G147:H147) -> 144000 | L147: =SUM(J147:K147) -> 0 | O147: =SUM(M147:N147) -> 0 | R147: =SUM(P147:Q147) -> 0 | U147: =SUM(S147:T147) -> 0 | V147: =S147+P147+M147+J147 -> 0 | W147: =T147+Q147+N147+K147 -> 0 | X147: =SUM(V147:W147) -> 0
E148: 611200 | F148: Naknade troškova zaposlenih | G148: 34010 | H148: 0 | I148: =SUM(G148:H148) -> 34010 | L148: =SUM(J148:K148) -> 0 | O148: =SUM(M148:N148) -> 0 | R148: =SUM(P148:Q148) -> 0 | U148: =SUM(S148:T148) -> 0 | V148: 0 | W148: 0 | X148: =SUM(V148:W148) -> 0
E149: 611200 | F149: Naknade troškova zaposlenih - volonteri | G149: 0 | H149: 0 | I149: 0 | L149: 0 | O149: 0 | R149: 0 | U149: 0 | V149: 0 | W149: 0 | X149: 0
E150: 612000 | F150: Doprinosi poslodavca | G150: =G151 -> 15380 | H150: =H151 -> 0 | I150: =I151 -> 15380 | J150: =J151 -> 0 | K150: =K151 -> 0 | L150: =L151 -> 0 | M150: =M151 -> 0 | N150: =N151 -> 0 | O150: =O151 -> 0 | P150: =P151 -> 0 | Q150: =Q151 -> 0 | R150: =R151 -> 0 | S150: =S151 -> 0 | T150: =T151 -> 0 | U150: =U151 -> 0 | V150: =V151 -> 0 | W150: =W151 -> 0 | X150: =X151 -> 0
E151: 612100 | F151: Doprinosi poslodavca | G151: 15380 | H151: 0 | I151: =SUM(G151:H151) -> 15380 | L151: =SUM(J151:K151) -> 0 | O151: =SUM(M151:N151) -> 0 | R151: =SUM(P151:Q151) -> 0 | U151: =SUM(S151:T151) -> 0 | V151: =S151+P151+M151+J151 -> 0 | W151: =T151+Q151+N151+K151 -> 0 | X151: =SUM(V151:W151) -> 0
E152: 613000 | F152: Izdaci za materijal, sitan inventar i usluge | G152: =SUM(G153:G162) -> 8500 | H152: =SUM(H153:H162) -> 0 | I152: =SUM(I153:I162) -> 8500 | J152: =SUM(J153:J162) -> 0 | K152: =SUM(K153:K162) -> 0 | L152: =SUM(L153:L162) -> 0 | M152: =SUM(M153:M162) -> 0 | N152: =SUM(N153:N162) -> 0 | O152: =SUM(O153:O162) -> 0 | P152: =SUM(P153:P162) -> 0 | Q152: =SUM(Q153:Q162) -> 0 | R152: =SUM(R153:R162) -> 0 | S152: =SUM(S153:S162) -> 0 | T152: =SUM(T153:T162) -> 0 | U152: =SUM(U153:U162) -> 0 | V152: =SUM(V153:V162) -> 0 | W152: =SUM(W153:W162) -> 0 | X152: =SUM(X153:X162) -> 0
E153: 613100 | F153: Putni troškovi | G153: 3000 | H153: 0 | I153: =SUM(G153:H153) -> 3000 | L153: =SUM(J153:K153) -> 0 | O153: =SUM(M153:N153) -> 0 | R153: =SUM(P153:Q153) -> 0 | U153: =SUM(S153:T153) -> 0 | V153: =S153+P153+M153+J153 -> 0 | W153: =T153+Q153+N153+K153 -> 0 | X153: =SUM(V153:W153) -> 0
E154: 613200 | F154: Izdaci za energiju | G154: 0 | H154: 0 | I154: 0 | L154: 0 | O154: 0 | R154: 0 | U154: 0 | V154: 0 | W154: 0 | X154: 0
E155: 613300 | F155: Izdaci za komunikaciju i komunalne usluge | G155: 500 | H155: 0 | I155: 500 | L155: 0 | O155: 0 | R155: 0 | U155: 0 | V155: 0 | W155: 0 | X155: 0
E156: 613400 | F156: Nabava materijala i sitnog inventara | G156: 1000 | H156: 0 | I156: 1000 | L156: 0 | O156: 0 | R156: 0 | U156: 0 | V156: 0 | W156: 0 | X156: 0
E157: 613500 | F157: Izdaci za usluge prijevoza i goriva | G157: 0 | H157: 0 | I157: 0 | L157: 0 | O157: 0 | R157: 0 | U157: 0 | V157: 0 | W157: 0 | X157: 0
E158: 613600 | F158: Unajmljivanje imovine, opreme i nemat.imovine | G158: 0 | H158: 0 | I158: 0 | L158: 0 | O158: 0 | R158: 0 | U158: 0 | V158: 0 | W158: 0 | X158: 0
E159: 613700 | F159: Izdaci za tekuće održavanje | G159: 1500 | H159: 0 | I159: 1500 | L159: 0 | O159: 0 | R159: 0 | U159: 0 | V159: 0 | W159: 0 | X159: 0
E160: 613800 | F160: Izdaci osiguranja, bank.usluga i usluga PP | G160: 0 | H160: 0 | I160: 0 | L160: 0 | O160: 0 | R160: 0 | U160: 0 | V160: 0 | W160: 0 | X160: 0
E161: 613900 | F161: Ugovorene i druge posebne usluge | G161: 2500 | H161: 0 | I161: 2500 | L161: 0 | O161: 0 | R161: 0 | U161: 0 | V161: 0 | W161: 0 | X161: 0
E162: 613900 | F162: Ugovorene i druge posebne usluge - volonteri | G162: 0 | H162: 0 | I162: 0 | L162: 0 | O162: 0 | R162: 0 | U162: 0 | V162: 0 | W162: 0 | X162: 0
E163: 821000 | F163: Izdaci za nabavku stalnih sredstava | G163: =SUM(G164:G165) -> 5000 | H163: =SUM(H164:H165) -> 0 | I163: =SUM(I164:I165) -> 5000 | J163: =SUM(J164:J165) -> 0 | K163: =SUM(K164:K165) -> 0 | L163: =SUM(L164:L165) -> 0 | M163: =SUM(M164:M165) -> 0 | N163: =SUM(N164:N165) -> 0 | O163: =SUM(O164:O165) -> 0 | P163: =SUM(P164:P165) -> 0 | Q163: =SUM(Q164:Q165) -> 0 | R163: =SUM(R164:R165) -> 0 | S163: =SUM(S164:S165) -> 0 | T163: =SUM(T164:T165) -> 0 | U163: =SUM(U164:U165) -> 0 | V163: =SUM(V164:V165) -> 0 | W163: =SUM(W164:W165) -> 0 | X163: =SUM(X164:X165) -> 0
E164: 821200 | F164: Nabavka građevina | G164: 0 | H164: 0 | I164: =SUM(G164:H164) -> 0 | L164: =SUM(J164:K164) -> 0 | O164: =SUM(M164:N164) -> 0 | R164: =SUM(P164:Q164) -> 0 | U164: =SUM(S164:T164) -> 0 | V164: =S164+P164+M164+J164 -> 0 | W164: =T164+Q164+N164+K164 -> 0 | X164: =SUM(V164:W164) -> 0
E165: 821300 | F165: Nabavka opreme | G165: 5000 | H165: 0 | I165: =SUM(G165:H165) -> 5000 | L165: =SUM(J165:K165) -> 0 | O165: =SUM(M165:N165) -> 0 | R165: =SUM(P165:Q165) -> 0 | U165: =SUM(S165:T165) -> 0 | V165: 0 | W165: 0 | X165: =SUM(V165:W165) -> 0
F166: Ukupno za korisnika Ured za razvoj i EU integrac. ŽP | G166: =G146+G150+G152+G163 -> 206890 | H166: =H146+H150+H152+H163 -> 0 | I166: 206890 | J166: 0 | K166: 0 | L166: 0 | M166: 0 | N166: 0 | O166: 0 | P166: 0 | Q166: 0 | R166: 0 | S166: 0 | T166: 0 | U166: 0 | V166: 0 | W166: 0 | X166: 0 | Y166: =IF(OR(V166>G166, W166>H166),"Ukupni operativni plan je veći od Proračuna!","") -> 
A168: 12 | B168: 01 | C168: 0001 | F168: ZAJEDNIČKA SLUŽBA VLADE ŽP
E169: 611000 | F169: Plaće i naknade troškova zaposlenih | G169: =SUM(G170:G172) -> 376800 | H169: =SUM(H170:H172) -> 0 | I169: =SUM(I170:I172) -> 376800 | J169: =SUM(J170:J172) -> 0 | K169: =SUM(K170:K172) -> 0 | L169: =SUM(L170:L172) -> 0 | M169: =SUM(M170:M172) -> 0 | N169: =SUM(N170:N172) -> 0 | O169: =SUM(O170:O172) -> 0 | P169: =SUM(P170:P172) -> 0 | Q169: =SUM(Q170:Q172) -> 0 | R169: =SUM(R170:R172) -> 0 | S169: =SUM(S170:S172) -> 0 | T169: =SUM(T170:T172) -> 0 | U169: =SUM(U170:U172) -> 0 | V169: =SUM(V170:V172) -> 0 | W169: =SUM(W170:W172) -> 0 | X169: =SUM(X170:X172) -> 0
E170: 611100 | F170: Bruto plaće i naknade | G170: 304390 | H170: 0 | I170: =SUM(G170:H170) -> 304390 | L170: =SUM(J170:K170) -> 0 | O170: =SUM(M170:N170) -> 0 | R170: =SUM(P170:Q170) -> 0 | U170: =SUM(S170:T170) -> 0 | V170: =S170+P170+M170+J170 -> 0 | W170: =T170+Q170+N170+K170 -> 0 | X170: =SUM(V170:W170) -> 0
E171: 611200 | F171: Naknade troškova zaposlenih | G171: 72410 | H171: 0 | I171: =SUM(G171:H171) -> 72410 | L171: =SUM(J171:K171) -> 0 | O171: =SUM(M171:N171) -> 0 | R171: =SUM(P171:Q171) -> 0 | U171: =SUM(S171:T171) -> 0 | V171: 0 | W171: 0 | X171: =SUM(V171:W171) -> 0
E172: 611200 | F172: Naknade troškova zaposlenih - volonteri | G172: 0 | H172: 0 | I172: 0 | L172: 0 | O172: 0 | R172: 0 | U172: 0 | V172: 0 | W172: 0 | X172: 0
E173: 612000 | F173: Doprinosi poslodavca | G173: =G174 -> 32500 | H173: =H174 -> 0 | I173: =I174 -> 32500 | J173: =J174 -> 0 | K173: =K174 -> 0 | L173: =L174 -> 0 | M173: =M174 -> 0 | N173: =N174 -> 0 | O173: =O174 -> 0 | P173: =P174 -> 0 | Q173: =Q174 -> 0 | R173: =R174 -> 0 | S173: =S174 -> 0 | T173: =T174 -> 0 | U173: =U174 -> 0 | V173: =V174 -> 0 | W173: =W174 -> 0 | X173: =X174 -> 0
E174: 612100 | F174: Doprinosi poslodavca | G174: 32500 | H174: 0 | I174: =SUM(G174:H174) -> 32500 | L174: =SUM(J174:K174) -> 0 | O174: =SUM(M174:N174) -> 0 | R174: =SUM(P174:Q174) -> 0 | U174: =SUM(S174:T174) -> 0 | V174: =S174+P174+M174+J174 -> 0 | W174: =T174+Q174+N174+K174 -> 0 | X174: =SUM(V174:W174) -> 0
E175: 613000 | F175: Izdaci za materijal, sitan inventar i usluge | G175: =SUM(G176:G185) -> 385000 | H175: =SUM(H176:H185) -> 0 | I175: =SUM(I176:I185) -> 385000 | J175: =SUM(J176:J185) -> 0 | K175: =SUM(K176:K185) -> 0 | L175: =SUM(L176:L185) -> 0 | M175: =SUM(M176:M185) -> 0 | N175: =SUM(N176:N185) -> 0 | O175: =SUM(O176:O185) -> 0 | P175: =SUM(P176:P185) -> 0 | Q175: =SUM(Q176:Q185) -> 0 | R175: =SUM(R176:R185) -> 0 | S175: =SUM(S176:S185) -> 0 | T175: =SUM(T176:T185) -> 0 | U175: =SUM(U176:U185) -> 0 | V175: =SUM(V176:V185) -> 0 | W175: =SUM(W176:W185) -> 0 | X175: =SUM(X176:X185) -> 0
E176: 613100 | F176: Putni troškovi | G176: 3000 | H176: 0 | I176: =SUM(G176:H176) -> 3000 | L176: =SUM(J176:K176) -> 0 | O176: =SUM(M176:N176) -> 0 | R176: =SUM(P176:Q176) -> 0 | U176: =SUM(S176:T176) -> 0 | V176: =S176+P176+M176+J176 -> 0 | W176: =T176+Q176+N176+K176 -> 0 | X176: =SUM(V176:W176) -> 0
E177: 613200 | F177: Izdaci za energiju | G177: 70000 | H177: 0 | I177: 70000 | L177: 0 | O177: 0 | R177: 0 | U177: 0 | V177: 0 | W177: 0 | X177: 0
E178: 613300 | F178: Izdaci za komunikaciju i komunalne usluge | G178: 50000 | H178: 0 | I178: 50000 | L178: 0 | O178: 0 | R178: 0 | U178: 0 | V178: 0 | W178: 0 | X178: 0
E179: 613400 | F179: Nabava materijala i sitnog inventara | G179: 94000 | H179: 0 | I179: 94000 | L179: 0 | O179: 0 | R179: 0 | U179: 0 | V179: 0 | W179: 0 | X179: 0
E180: 613500 | F180: Izdaci za usluge prijevoza i goriva | G180: 67000 | H180: 0 | I180: 67000 | L180: 0 | O180: 0 | R180: 0 | U180: 0 | V180: 0 | W180: 0 | X180: 0
E181: 613600 | F181: Unajmljivanje imovine, opreme i nemat.imovine | G181: 0 | H181: 0 | I181: 0 | L181: 0 | O181: 0 | R181: 0 | U181: 0 | V181: 0 | W181: 0 | X181: 0
E182: 613700 | F182: Izdaci za tekuće održavanje | G182: 32000 | H182: 0 | I182: 32000 | L182: 0 | O182: 0 | R182: 0 | U182: 0 | V182: 0 | W182: 0 | X182: 0
E183: 613800 | F183: Izdaci osiguranja, bank.usluga i usluga PP | G183: 9000 | H183: 0 | I183: 9000 | L183: 0 | O183: 0 | R183: 0 | U183: 0 | V183: 0 | W183: 0 | X183: 0
E184: 613900 | F184: Ugovorene i druge posebne usluge | G184: 60000 | H184: 0 | I184: 60000 | L184: 0 | O184: 0 | R184: 0 | U184: 0 | V184: 0 | W184: 0 | X184: 0
E185: 613900 | F185: Ugovorene i druge posebne usluge - volonteri | G185: 0 | H185: 0 | I185: 0 | L185: 0 | O185: 0 | R185: 0 | U185: 0 | V185: 0 | W185: 0 | X185: 0
E186: 821000 | F186: Izdaci za nabavku stalnih sredstava | G186: =SUM(G187:G188) -> 53000 | H186: =SUM(H187:H188) -> 0 | I186: =SUM(I187:I188) -> 53000 | J186: =SUM(J187:J188) -> 0 | K186: =SUM(K187:K188) -> 0 | L186: =SUM(L187:L188) -> 0 | M186: =SUM(M187:M188) -> 0 | N186: =SUM(N187:N188) -> 0 | O186: =SUM(O187:O188) -> 0 | P186: =SUM(P187:P188) -> 0 | Q186: =SUM(Q187:Q188) -> 0 | R186: =SUM(R187:R188) -> 0 | S186: =SUM(S187:S188) -> 0 | T186: =SUM(T187:T188) -> 0 | U186: =SUM(U187:U188) -> 0 | V186: =SUM(V187:V188) -> 0 | W186: =SUM(W187:W188) -> 0 | X186: =SUM(X187:X188) -> 0
E187: 821200 | F187: Nabavka građevina | G187: 0 | H187: 0 | I187: =SUM(G187:H187) -> 0 | L187: =SUM(J187:K187) -> 0 | O187: =SUM(M187:N187) -> 0 | R187: =SUM(P187:Q187) -> 0 | U187: =SUM(S187:T187) -> 0 | V187: =S187+P187+M187+J187 -> 0 | W187: =T187+Q187+N187+K187 -> 0 | X187: =SUM(V187:W187) -> 0
E188: 821300 | F188: Nabavka opreme | G188: 53000 | H188: 0 | I188: =SUM(G188:H188) -> 53000 | L188: =SUM(J188:K188) -> 0 | O188: =SUM(M188:N188) -> 0 | R188: =SUM(P188:Q188) -> 0 | U188: =SUM(S188:T188) -> 0 | V188: 0 | W188: 0 | X188: =SUM(V188:W188) -> 0
F189: Ukupno za korisnika Zajednička služba Vlade ŽP | G189: =G169+G173+G175+G186 -> 847300 | H189: =H169+H173+H175+H186 -> 0 | I189: 847300 | J189: 0 | K189: 0 | L189: 0 | M189: 0 | N189: 0 | O189: 0 | P189: 0 | Q189: 0 | R189: 0 | S189: 0 | T189: 0 | U189: 0 | V189: 0 | W189: 0 | X189: 0
A191: 13 | B191: 01 | C191: 0001 | F191: MINISTARSTVO UNUTARNJIH POSLOVA ŽP
E192: 611000 | F192: Plaće i naknade troškova zaposlenih | G192: =SUM(G193:G195) -> 5976060 | H192: =SUM(H193:H195) -> 0 | I192: =SUM(I193:I195) -> 5976060 | J192: =SUM(J193:J195) -> 0 | K192: =SUM(K193:K195) -> 0 | L192: =SUM(L193:L195) -> 0 | M192: =SUM(M193:M195) -> 0 | N192: =SUM(N193:N195) -> 0 | O192: =SUM(O193:O195) -> 0 | P192: =SUM(P193:P195) -> 0 | Q192: =SUM(Q193:Q195) -> 0 | R192: =SUM(R193:R195) -> 0 | S192: =SUM(S193:S195) -> 0 | T192: =SUM(T193:T195) -> 0 | U192: =SUM(U193:U195) -> 0 | V192: =SUM(V193:V195) -> 0 | W192: =SUM(W193:W195) -> 0 | X192: =SUM(X193:X195) -> 0
E193: 611100 | F193: Bruto plaće i naknade | G193: 5078320 | H193: 0 | I193: =SUM(G193:H193) -> 5078320 | L193: =SUM(J193:K193) -> 0 | O193: =SUM(M193:N193) -> 0 | R193: =SUM(P193:Q193) -> 0 | U193: =SUM(S193:T193) -> 0 | V193: =S193+P193+M193+J193 -> 0 | W193: =T193+Q193+N193+K193 -> 0 | X193: =SUM(V193:W193) -> 0
E194: 611200 | F194: Naknade troškova zaposlenih | G194: 897740 | H194: 0 | I194: =SUM(G194:H194) -> 897740 | L194: =SUM(J194:K194) -> 0 | O194: =SUM(M194:N194) -> 0 | R194: =SUM(P194:Q194) -> 0 | U194: =SUM(S194:T194) -> 0 | V194: 0 | W194: 0 | X194: =SUM(V194:W194) -> 0
E195: 611200 | F195: Naknade troškova zaposlenih - volonteri | G195: 0 | H195: 0 | I195: 0 | L195: 0 | O195: 0 | R195: 0 | U195: 0 | V195: 0 | W195: 0 | X195: 0
E196: 612000 | F196: Doprinosi poslodavca | G196: =G197+G198 -> 880400 | H196: =H197+H198 -> 0 | I196: 880400 | J196: 0 | K196: 0 | L196: 0 | M196: 0 | N196: 0 | O196: 0 | P196: 0 | Q196: 0 | R196: 0 | S196: 0 | T196: 0 | U196: 0 | V196: 0 | W196: 0 | X196: 0
E197: 612100 | F197: Doprinosi poslodavca | G197: 780400 | H197: 0 | I197: =SUM(G197:H197) -> 780400 | L197: =SUM(J197:K197) -> 0 | O197: =SUM(M197:N197) -> 0 | R197: =SUM(P197:Q197) -> 0 | U197: =SUM(S197:T197) -> 0 | V197: =S197+P197+M197+J197 -> 0 | W197: =T197+Q197+N197+K197 -> 0 | X197: =SUM(V197:W197) -> 0
D198: DA6001 | E198: 612100 | F198: Doprinosi za beneficirani radni staž 1996-1998 | G198: 100000 | H198: 0 | I198: =SUM(G198:H198) -> 100000 | L198: =SUM(J198:K198) -> 0 | O198: =SUM(M198:N198) -> 0 | R198: =SUM(P198:Q198) -> 0 | U198: =SUM(S198:T198) -> 0 | V198: =S198+P198+M198+J198 -> 0 | W198: =T198+Q198+N198+K198 -> 0 | X198: =SUM(V198:W198) -> 0 | Y198: =IF(OR(V198>G198, W198>H198),"Ukupni operativni plan je veći od Proračuna!","") -> 
E199: 613000 | F199: Izdaci za materijal, sitan inventar i usluge | G199: =SUM(G200:G209) -> 784000 | H199: =SUM(H200:H209) -> 0 | I199: =SUM(I200:I209) -> 784000 | J199: =SUM(J200:J209) -> 0 | K199: =SUM(K200:K209) -> 0 | L199: =SUM(L200:L209) -> 0 | M199: =SUM(M200:M209) -> 0 | N199: =SUM(N200:N209) -> 0 | O199: =SUM(O200:O209) -> 0 | P199: =SUM(P200:P209) -> 0 | Q199: =SUM(Q200:Q209) -> 0 | R199: =SUM(R200:R209) -> 0 | S199: =SUM(S200:S209) -> 0 | T199: =SUM(T200:T209) -> 0 | U199: =SUM(U200:U209) -> 0 | V199: =SUM(V200:V209) -> 0 | W199: =SUM(W200:W209) -> 0 | X199: =SUM(X200:X209) -> 0
E200: 613100 | F200: Putni troškovi | G200: 12000 | H200: 0 | I200: =SUM(G200:H200) -> 12000 | L200: =SUM(J200:K200) -> 0 | O200: =SUM(M200:N200) -> 0 | R200: =SUM(P200:Q200) -> 0 | U200: =SUM(S200:T200) -> 0 | V200: =S200+P200+M200+J200 -> 0 | W200: =T200+Q200+N200+K200 -> 0 | X200: =SUM(V200:W200) -> 0
E201: 613200 | F201: Izdaci za energiju | G201: 78000 | H201: 0 | I201: 78000 | L201: 0 | O201: 0 | R201: 0 | U201: 0 | V201: 0 | W201: 0 | X201: 0
E202: 613300 | F202: Izdaci za komunikaciju i komunalne usluge | G202: 81000 | H202: 0 | I202: 81000 | L202: 0 | O202: 0 | R202: 0 | U202: 0 | V202: 0 | W202: 0 | X202: 0
E203: 613400 | F203: Nabava materijala i sitnog inventara | G203: 172000 | H203: 0 | I203: 172000 | L203: 0 | O203: 0 | R203: 0 | U203: 0 | V203: 0 | W203: 0 | X203: 0
E204: 613500 | F204: Izdaci za usluge prijevoza i goriva | G204: 112000 | H204: 0 | I204: 112000 | L204: 0 | O204: 0 | R204: 0 | U204: 0 | V204: 0 | W204: 0 | X204: 0
E205: 613600 | F205: Unajmljivanje imovine, opreme i nemat.imovine | G205: 27000 | H205: 0 | I205: 27000 | L205: 0 | O205: 0 | R205: 0 | U205: 0 | V205: 0 | W205: 0 | X205: 0
E206: 613700 | F206: Izdaci za tekuće održavanje | G206: 95000 | H206: 0 | I206: 95000 | L206: 0 | O206: 0 | R206: 0 | U206: 0 | V206: 0 | W206: 0 | X206: 0
E207: 613800 | F207: Izdaci osiguranja, bank.usluga i usluga PP | G207: 27000 | H207: 0 | I207: 27000 | L207: 0 | O207: 0 | R207: 0 | U207: 0 | V207: 0 | W207: 0 | X207: 0
E208: 613900 | F208: Ugovorene i druge posebne usluge | G208: 180000 | H208: 0 | I208: 180000 | L208: 0 | O208: 0 | R208: 0 | U208: 0 | V208: 0 | W208: 0 | X208: 0
... 696 more rows

Sheet Kvartalni
A1: ="PRIJEDLOG TROMJESEČNOG OPERATIVNOG PLANA RASHODA I IZDATAKA ZA "&E5&" 2022. GODINE" -> PRIJEDLOG TROMJESEČNOG OPERATIVNOG PLANA RASHODA I IZDATAKA ZA I. kvartal 2022. GODINE
G2: =E4 -> 00000000
A3: Proračunski korisnik: | E3: =INDEX(Lista!A:B,MATCH($E$4,Lista!A:A,0),2) -> SVE
A4: Organizacijski kod: | E4: 00000000
A5: Kvartal: | E5: I. kvartal
A7: Razdjel | B7: Glava | C7: Potroš. jedinica | D7: Suban | E7: Ekonom. kod | F7: Opis | H7: Proračun za 2022. godinu | K7: =INDEX(Lista!J:K,MATCH($E$5,Lista!J:J,0),2) -> Siječanj 2022 god. | N7: =INDEX(Lista!J:K,MATCH($E$5,Lista!J:J,0)+1,2) -> Veljača 2022. god. | Q7: =INDEX(Lista!J:K,MATCH($E$5,Lista!J:J,0)+2,2) -> Ožujak 2022. god. | T7: ="Ukupno za "&E5&" 2022. god." -> Ukupno za I. kvartal 2022. god.
G8: Rashodi i | H8: Rashodi iz | I8: Ukupni | J8: Rashodi i | K8: Rashodi iz | L8: Ukupni | M8: Rashodi i | N8: Rashodi iz | O8: Ukupni | P8: Rashodi i | Q8: Rashodi iz | R8: Ukupni | S8: Rashodi i | T8: Rashodi iz | U8: Ukupni
G9: izdaci iz | H9: namj.sr., | I9: rashodi i | J9: izdaci iz | K9: namj.sr., | L9: rashodi i | M9: izdaci iz | N9: namj.sr., | O9: rashodi i | P9: izdaci iz | Q9: namj.sr., | R9: rashodi i | S9: izdaci iz | T9: namj.sr., | U9: rashodi i
G10: proračuna | H10: tek. trans. i don. | I10: izdaci | J10: proračuna | K10: tek. trans. i don. | L10: izdaci | M10: proračuna | N10: tek. trans. i don. | O10: izdaci | P10: proračuna | Q10: tek. trans. i don. | R10: izdaci | S10: proračuna | T10: tek. trans. i don. | U10: izdaci
A11: 1 | B11: 2 | C11: 3 | E11: 4 | F11: 5 | G11: 6 | H11: 7 | I11: 8 | J11: 9 | K11: 10 | L11: 11 | M11: 12 | N11: 13 | O11: 14 | P11: 15 | Q11: 16 | R11: 17 | S11: 18 | T11: 19 | U11: 20
A12: 10 | B12: 01 | C12: 0001 | F12: SKUPŠTINA ŽUPANIJE POSAVSKE
E13: 611000 | F13: Plaće i naknade troškova zaposlenih | G13: =SUM(G14:G16) -> 599730 | H13: =SUM(H14:H16) -> 0 | I13: 599730 | J13: 0 | K13: 0 | L13: 0 | M13: 0 | N13: 0 | O13: 0 | P13: 0 | Q13: 0 | R13: 0 | S13: 0 | T13: 0 | U13: 0
E14: 611100 | F14: Bruto plaće i naknade | G14: =Godišnji!G13 -> 504040 | H14: 0 | I14: =SUM(G14:H14) -> 504040 | L14: =SUM(J14:K14) -> 0 | O14: =SUM(M14:N14) -> 0 | R14: =SUM(P14:Q14) -> 0 | S14: =P14+M14+J14 -> 0 | T14: =Q14+N14+K14 -> 0 | U14: =SUM(S14:T14) -> 0
E15: 611200 | F15: Naknade troškova zaposlenih | G15: =Godišnji!G14 -> 95690 | H15: 0 | I15: =SUM(G15:H15) -> 95690 | L15: =SUM(J15:K15) -> 0 | O15: =SUM(M15:N15) -> 0 | R15: =SUM(P15:Q15) -> 0 | S15: =P15+M15+J15 -> 0 | T15: =Q15+N15+K15 -> 0 | U15: =SUM(S15:T15) -> 0
E16: 611200 | F16: Naknade troškova zaposlenih - volonteri | G16: =Godišnji!G15 -> 0 | H16: 0 | I16: 0 | L16: 0 | O16: 0 | R16: 0 | S16: 0 | T16: 0 | U16: 0
E17: 612000 | F17: Doprinosi poslodavca | G17: =G18 -> 53260 | H17: =H18 -> 0 | I17: 53260 | J17: 0 | K17: 0 | L17: 0 | M17: 0 | N17: 0 | O17: 0 | P17: 0 | Q17: 0 | R17: 0 | S17: 0 | T17: 0 | U17: 0
E18: 612100 | F18: Doprinosi poslodavca | G18: =Godišnji!G17 -> 53260 | H18: 0 | I18: =SUM(G18:H18) -> 53260 | L18: =SUM(J18:K18) -> 0 | O18: =SUM(M18:N18) -> 0 | R18: =SUM(P18:Q18) -> 0 | S18: =P18+M18+J18 -> 0 | T18: =Q18+N18+K18 -> 0 | U18: =SUM(S18:T18) -> 0
E19: 613000 | F19: Izdaci za materijal, sitan inventar i usluge | G19: =SUM(G20:G29) -> 261520 | H19: =SUM(H20:H29) -> 0 | I19: 261520 | J19: 0 | K19: 0 | L19: 0 | M19: 0 | N19: 0 | O19: 0 | P19: 0 | Q19: 0 | R19: 0 | S19: 0 | T19: 0 | U19: 0
E20: 613100 | F20: Putni troškovi | G20: =Godišnji!G19 -> 5000 | H20: 0 | I20: =SUM(G20:H20) -> 5000 | L20: =SUM(J20:K20) -> 0 | O20: =SUM(M20:N20) -> 0 | R20: =SUM(P20:Q20) -> 0 | S20: =P20+M20+J20 -> 0 | T20: =Q20+N20+K20 -> 0 | U20: =SUM(S20:T20) -> 0
E21: 613200 | F21: Izdaci za energiju | G21: =Godišnji!G20 -> 8500 | H21: 0 | I21: 8500 | L21: 0 | O21: 0 | R21: 0 | S21: 0 | T21: 0 | U21: 0
E22: 613300 | F22: Izdaci za komunikaciju i komunalne usluge | G22: =Godišnji!G21 -> 6500 | H22: 0 | I22: 6500 | L22: 0 | O22: 0 | R22: 0 | S22: 0 | T22: 0 | U22: 0
E23: 613400 | F23: Nabava materijala i sitnog inventara | G23: =Godišnji!G22 -> 4200 | H23: 0 | I23: 4200 | L23: 0 | O23: 0 | R23: 0 | S23: 0 | T23: 0 | U23: 0
E24: 613500 | F24: Izdaci za usluge prijevoza i goriva | G24: =Godišnji!G23 -> 9000 | H24: 0 | I24: 9000 | L24: 0 | O24: 0 | R24: 0 | S24: 0 | T24: 0 | U24: 0
E25: 613600 | F25: Unajmljivanje imovine, opreme i nemat.imovine | G25: =Godišnji!G24 -> 0 | H25: 0 | I25: 0 | L25: 0 | O25: 0 | R25: 0 | S25: 0 | T25: 0 | U25: 0
E26: 613700 | F26: Izdaci za tekuće održavanje | G26: =Godišnji!G25 -> 4500 | H26: 0 | I26: 4500 | L26: 0 | O26: 0 | R26: 0 | S26: 0 | T26: 0 | U26: 0
E27: 613800 | F27: Izdaci osiguranja, bank.usluga i usluga PP | G27: =Godišnji!G26 -> 3820 | H27: 0 | I27: 3820 | L27: 0 | O27: 0 | R27: 0 | S27: 0 | T27: 0 | U27: 0
E28: 613900 | F28: Ugovorene i druge posebne usluge | G28: =Godišnji!G27 -> 220000 | H28: 0 | I28: 220000 | L28: 0 | O28: 0 | R28: 0 | S28: 0 | T28: 0 | U28: 0
E29: 613900 | F29: Ugovorene i druge posebne usluge - volonteri | G29: =Godišnji!G28 -> 0 | H29: 0 | I29: 0 | L29: 0 | O29: 0 | R29: 0 | S29: 0 | T29: 0 | U29: 0
E30: 821000 | F30: Izdaci za nabavku stalnih sredstava | G30: =SUM(G31:G33) -> 33000 | H30: =SUM(H31:H33) -> 0 | I30: 33000 | J30: 0 | K30: 0 | L30: 0 | M30: 0 | N30: 0 | O30: 0 | P30: 0 | Q30: 0 | R30: 0 | S30: 0 | T30: 0 | U30: 0
E31: 821200 | F31: Nabavka građevina | G31: =Godišnji!G30 -> 0 | H31: 0 | I31: =SUM(G31:H31) -> 0 | L31: =SUM(J31:K31) -> 0 | O31: =SUM(M31:N31) -> 0 | R31: =SUM(P31:Q31) -> 0 | S31: =P31+M31+J31 -> 0 | T31: =Q31+N31+K31 -> 0 | U31: =SUM(S31:T31) -> 0
E32: 821300 | F32: Nabavka opreme | G32: =Godišnji!G31 -> 30000 | H32: 0 | I32: =SUM(G32:H32) -> 30000 | L32: =SUM(J32:K32) -> 0 | O32: =SUM(M32:N32) -> 0 | R32: =SUM(P32:Q32) -> 0 | S32: 0 | T32: 0 | U32: =SUM(S32:T32) -> 0
E33: 821500 | F33: Nabavka stalnih sredstava u obliku prava | G33: =Godišnji!G32 -> 3000 | H33: 0 | I33: =SUM(G33:H33) -> 3000 | L33: =SUM(J33:K33) -> 0 | O33: =SUM(M33:N33) -> 0 | R33: =SUM(P33:Q33) -> 0 | S33: =P33+M33+J33 -> 0 | T33: =Q33+N33+K33 -> 0 | U33: =SUM(S33:T33) -> 0
F34: Ukupno za korisnika Skupština Županije Posavske | G34: =G13+G17+G19+G30 -> 947510 | H34: =H13+H17+H19+H30 -> 0 | I34: 947510 | J34: 0 | K34: 0 | L34: 0 | M34: 0 | N34: 0 | O34: 0 | P34: 0 | Q34: 0 | R34: 0 | S34: 0 | T34: 0 | U34: 0
A36: 11 | B36: 01 | C36: 0001 | F36: VLADA ŽUPANIJE POSAVSKE
E37: 600000 | F37: Rashodi - tekuća pričuva | G37: =SUM(G38:G40) -> 445000 | H37: =SUM(H38:H40) -> 0 | I37: =SUM(I38:I40) -> 445000 | J37: 0 | K37: 0 | L37: 0 | M37: 0 | N37: 0 | O37: 0 | P37: 0 | Q37: 0 | R37: 0 | S37: 0 | T37: 0 | U37: 0
E38: 600000 | F38: Tekuća pričuva Vlade | G38: =Godišnji!G37 -> 400000 | H38: 0 | I38: =SUM(G38:H38) -> 400000 | L38: =SUM(J38:K38) -> 0 | O38: =SUM(M38:N38) -> 0 | R38: =SUM(P38:Q38) -> 0 | S38: =P38+M38+J38 -> 0 | T38: =Q38+N38+K38 -> 0 | U38: =SUM(S38:T38) -> 0
E39: 600000 | F39: Tekuća pričuva predsjednika Vlade | G39: =Godišnji!G38 -> 30000 | H39: 0 | I39: =SUM(G39:H39) -> 30000 | L39: =SUM(J39:K39) -> 0 | O39: =SUM(M39:N39) -> 0 | R39: =SUM(P39:Q39) -> 0 | S39: =P39+M39+J39 -> 0 | T39: =Q39+N39+K39 -> 0 | U39: =SUM(S39:T39) -> 0
E40: 600000 | F40: Tekuća pričuva zamjenika pred.Vlade | G40: =Godišnji!G39 -> 15000 | H40: 0 | I40: 15000 | L40: 0 | O40: 0 | R40: 0 | S40: 0 | T40: 0 | U40: 0
E41: 611000 | F41: Plaće i naknade troškova zaposlenih | G41: =SUM(G42:G44) -> 244100 | H41: =SUM(H42:H44) -> 0 | I41: =SUM(I42:I44) -> 244100 | J41: 0 | K41: 0 | L41: 0 | M41: 0 | N41: 0 | O41: 0 | P41: 0 | Q41: 0 | R41: 0 | S41: 0 | T41: 0 | U41: 0
E42: 611100 | F42: Bruto plaće i naknade | G42: =Godišnji!G41 -> 166050 | H42: 0 | I42: =SUM(G42:H42) -> 166050 | L42: =SUM(J42:K42) -> 0 | O42: =SUM(M42:N42) -> 0 | R42: =SUM(P42:Q42) -> 0 | S42: =P42+M42+J42 -> 0 | T42: =Q42+N42+K42 -> 0 | U42: =SUM(S42:T42) -> 0
E43: 611200 | F43: Naknade troškova zaposlenih | G43: =Godišnji!G42 -> 28050 | H43: 0 | I43: =SUM(G43:H43) -> 28050 | L43: =SUM(J43:K43) -> 0 | O43: =SUM(M43:N43) -> 0 | R43: =SUM(P43:Q43) -> 0 | S43: =P43+M43+J43 -> 0 | T43: =Q43+N43+K43 -> 0 | U43: =SUM(S43:T43) -> 0
D44: BA6017 | E44: 611200 | F44: Naknade troškova zaposlenih - volonteri | G44: =Godišnji!G43 -> 50000 | H44: 0 | I44: 50000 | L44: 0 | O44: 0 | R44: 0 | S44: 0 | T44: 0 | U44: 0
E45: 612000 | F45: Doprinosi poslodavca | G45: =G46 -> 17660 | H45: =H46 -> 0 | I45: =I46 -> 17660 | J45: 0 | K45: 0 | L45: 0 | M45: 0 | N45: 0 | O45: 0 | P45: 0 | Q45: 0 | R45: 0 | S45: 0 | T45: 0 | U45: 0
E46: 612100 | F46: Doprinosi poslodavca | G46: =Godišnji!G45 -> 17660 | H46: 0 | I46: =SUM(G46:H46) -> 17660 | L46: =SUM(J46:K46) -> 0 | O46: =SUM(M46:N46) -> 0 | R46: =SUM(P46:Q46) -> 0 | S46: =P46+M46+J46 -> 0 | T46: =Q46+N46+K46 -> 0 | U46: =SUM(S46:T46) -> 0
E47: 613000 | F47: Izdaci za materijal, sitan inventar i usluge | G47: =SUM(G48:G58) -> 319300 | H47: =SUM(H48:H58) -> 0 | I47: =SUM(I48:I58) -> 319300 | J47: 0 | K47: 0 | L47: 0 | M47: 0 | N47: 0 | O47: 0 | P47: 0 | Q47: 0 | R47: 0 | S47: 0 | T47: 0 | U47: 0
E48: 613100 | F48: Putni troškovi | G48: =Godišnji!G47 -> 7000 | H48: 0 | I48: =SUM(G48:H48) -> 7000 | L48: =SUM(J48:K48) -> 0 | O48: =SUM(M48:N48) -> 0 | R48: =SUM(P48:Q48) -> 0 | S48: =P48+M48+J48 -> 0 | T48: =Q48+N48+K48 -> 0 | U48: =SUM(S48:T48) -> 0
E49: 613200 | F49: Izdaci za energiju | G49: =Godišnji!G48 -> 0 | H49: 0 | I49: 0 | L49: 0 | O49: 0 | R49: 0 | S49: 0 | T49: 0 | U49: 0
E50: 613300 | F50: Izdaci za komunikaciju i komunalne usluge | G50: 5200 | H50: 0 | I50: 5200 | L50: 0 | O50: 0 | R50: 0 | S50: 0 | T50: 0 | U50: 0
E51: 613400 | F51: Nabava materijala i sitnog inventara | G51: =Godišnji!G50 -> 1200 | H51: 0 | I51: 1200 | L51: 0 | O51: 0 | R51: 0 | S51: 0 | T51: 0 | U51: 0
E52: 613500 | F52: Izdaci za usluge prijevoza i goriva | G52: =Godišnji!G51 -> 1000 | H52: 0 | I52: 1000 | L52: 0 | O52: 0 | R52: 0 | S52: 0 | T52: 0 | U52: 0
E53: 613600 | F53: Unajmljivanje imovine, opreme i nemat.imovine | G53: =Godišnji!G52 -> 1200 | H53: 0 | I53: 1200 | L53: 0 | O53: 0 | R53: 0 | S53: 0 | T53: 0 | U53: 0
E54: 613700 | F54: Izdaci za tekuće održavanje | G54: =Godišnji!G53 -> 3000 | H54: 0 | I54: 3000 | L54: 0 | O54: 0 | R54: 0 | S54: 0 | T54: 0 | U54: 0
E55: 613800 | F55: Izdaci osiguranja, bank.usluga i usluga PP | G55: =Godišnji!G54 -> 500 | H55: 0 | I55: 500 | L55: 0 | O55: 0 | R55: 0 | S55: 0 | T55: 0 | U55: 0
E56: 613900 | F56: Ugovorene i druge posebne usluge | G56: =Godišnji!G55 -> 140000 | H56: 0 | I56: 140000 | L56: 0 | O56: 0 | R56: 0 | S56: 0 | T56: 0 | U56: 0
D57: BA6020 | E57: 613900 | F57: Ug.idr.pos,usluge-sufinanciranje prijema vježbenika | G57: =Godišnji!G56 -> 87000 | H57: 0 | I57: 87000 | L57: 0 | O57: 0 | R57: 0 | S57: 0 | T57: 0 | U57: 0
D58: BA6017 | E58: 613900 | F58: Ugovorene i druge posebne usluge - volonteri | G58: =Godišnji!G57 -> 73200 | H58: 0 | I58: 73200 | L58: 0 | O58: 0 | R58: 0 | S58: 0 | T58: 0 | U58: 0
E59: 614000 | F59: Tekući grantovi i drugi tekući rashodi | G59: =SUM(G60:G66) -> 810000 | H59: 0 | I59: 810000 | J59: 0 | K59: 0 | L59: 0 | M59: 0 | N59: 0 | O59: 0 | P59: 0 | Q59: 0 | R59: 0 | S59: 0 | T59: 0 | U59: 0
D60: BA6014 | E60: 614100 | F60: Grant za Sveučilište u Mostaru | G60: =Godišnji!G59 -> 300000 | H60: 0 | I60: =SUM(G60:H60) -> 300000 | L60: =SUM(J60:K60) -> 0 | O60: =SUM(M60:N60) -> 0 | R60: =SUM(P60:Q60) -> 0 | S60: =P60+M60+J60 -> 0 | T60: =Q60+N60+K60 -> 0 | U60: =SUM(S60:T60) -> 0
D61: BA6016 | E61: 614200 | F61: Grant za sufinanc.nabavke udžbenika učenicima | G61: =Godišnji!G60 -> 220000 | H61: 0 | I61: 220000 | L61: 0 | O61: 0 | R61: 0 | S61: 0 | T61: 0 | U61: 0
D62: BA6001 | E62: 614300 | F62: Grant nepro.organizacijama i udruženjima građana | G62: =Godišnji!G61 -> 70000 | H62: 0 | I62: 70000 | L62: 0 | O62: 0 | R62: 0 | S62: 0 | T62: 0 | U62: 0
D63: BA6008 | E63: 614300 | F63: Grant za Crveni križ Županije Posavske | G63: =Godišnji!G62 -> 30000 | H63: 0 | I63: 30000 | L63: 0 | O63: 0 | R63: 0 | S63: 0 | T63: 0 | U63: 0
D64: BA6007 | E64: 614300 | F64: Grant za Gospodarsku komoru ŽP | G64: =Godišnji!G63 -> 35000 | H64: 0 | I64: 35000 | L64: 0 | O64: 0 | R64: 0 | S64: 0 | T64: 0 | U64: 0
D65: BA6018 | E65: 614300 | F65: Grant za Obrtničku komoru ŽP | G65: =Godišnji!G64 -> 15000 | H65: 0 | I65: =SUM(G65:H65) -> 15000 | L65: =SUM(J65:K65) -> 0 | O65: =SUM(M65:N65) -> 0 | R65: =SUM(P65:Q65) -> 0 | S65: =P65+M65+J65 -> 0 | T65: =Q65+N65+K65 -> 0 | U65: =SUM(S65:T65) -> 0
D66: AA6001 | E66: 614300 | F66: Grant političkim strankama | G66: =Godišnji!G65 -> 140000 | H66: 0 | I66: 140000 | L66: 0 | O66: 0 | R66: 0 | S66: 0 | T66: 0 | U66: 0
E67: 615000 | F67: Kapitalni grantovi | G67: =G68 -> 300000 | H67: =H68 -> 0 | I67: =I68 -> 300000 | J67: =J68 -> 0 | K67: 0 | L67: =L68 -> 0 | M67: =M68 -> 0 | N67: 0 | O67: =O68 -> 0 | P67: =P68 -> 0 | Q67: 0 | R67: =R68 -> 0 | S67: =S68 -> 0 | T67: 0 | U67: =U68 -> 0
E68: 615100 | F68: Kapitalni grant | G68: =Godišnji!G67 -> 300000 | H68: 0 | I68: =SUM(G68:H68) -> 300000 | L68: =SUM(J68:K68) -> 0 | O68: =SUM(M68:N68) -> 0 | R68: =SUM(P68:Q68) -> 0 | S68: =P68+M68+J68 -> 0 | T68: =Q68+N68+K68 -> 0 | U68: =SUM(S68:T68) -> 0
E69: 821000 | F69: Izdaci za nabavku stalnih sredstava | G69: =SUM(G70:G72) -> 100000 | H69: =SUM(H70:H72) -> 0 | I69: 100000 | J69: 0 | K69: 0 | L69: 0 | M69: 0 | N69: 0 | O69: 0 | P69: 0 | Q69: 0 | R69: 0 | S69: 0 | T69: 0 | U69: 0
E70: 821200 | F70: Nabavka građevina | G70: =Godišnji!G69 -> 70000 | H70: 0 | I70: =SUM(G70:H70) -> 70000 | L70: =SUM(J70:K70) -> 0 | O70: =SUM(M70:N70) -> 0 | R70: =SUM(P70:Q70) -> 0 | S70: =P70+M70+J70 -> 0 | T70: =Q70+N70+K70 -> 0 | U70: =SUM(S70:T70) -> 0
E71: 821300 | F71: Nabavka opreme | G71: =Godišnji!G70 -> 30000 | H71: 0 | I71: =SUM(G71:H71) -> 30000 | L71: =SUM(J71:K71) -> 0 | O71: =SUM(M71:N71) -> 0 | R71: =SUM(P71:Q71) -> 0 | S71: 0 | T71: 0 | U71: =SUM(S71:T71) -> 0
E72: 821500 | F72: Nabavka stalnih sredstava u obliku prava | G72: =Godišnji!G71 -> 0 | H72: =Godišnji!H71 -> 0 | I72: =SUM(G72:H72) -> 0 | L72: =SUM(J72:K72) -> 0 | O72: =SUM(M72:N72) -> 0 | R72: =SUM(P72:Q72) -> 0 | S72: =P72+M72+J72 -> 0 | T72: =Q72+N72+K72 -> 0 | U72: =SUM(S72:T72) -> 0
F73: Ukupno za korisnika Vlada Županije Posavske | G73: =G37+G41+G45+G47+G59+G67+G69 -> 2236060 | H73: 0 | I73: 2236060 | J73: 0 | K73: 0 | L73: 0 | M73: 0 | N73: 0 | O73: 0 | P73: 0 | Q73: 0 | R73: 0 | S73: 0 | T73: 0 | U73: 0
A75: 11 | B75: 01 | C75: 0006 | F75: =Godišnji!F74 -> URED ZA OBNOVU, STAMB.ZBRINJ.I RAS.OSOBE
E76: 611000 | F76: Plaće i naknade troškova zaposlenih | G76: =SUM(G77:G79) -> 116200 | H76: =SUM(H77:H79) -> 0 | I76: 116200 | J76: 0 | K76: 0 | L76: 0 | M76: 0 | N76: 0 | O76: 0 | P76: 0 | Q76: 0 | R76: 0 | S76: 0 | T76: 0 | U76: 0
E77: 611100 | F77: Bruto plaće i naknade | G77: =Godišnji!G76 -> 94920 | H77: 0 | I77: =SUM(G77:H77) -> 94920 | L77: =SUM(J77:K77) -> 0 | O77: =SUM(M77:N77) -> 0 | R77: =SUM(P77:Q77) -> 0 | S77: =P77+M77+J77 -> 0 | T77: =Q77+N77+K77 -> 0 | U77: =SUM(S77:T77) -> 0
E78: 611200 | F78: Naknade troškova zaposlenih | G78: =Godišnji!G77 -> 21280 | H78: 0 | I78: =SUM(G78:H78) -> 21280 | L78: =SUM(J78:K78) -> 0 | O78: =SUM(M78:N78) -> 0 | R78: =SUM(P78:Q78) -> 0 | S78: =P78+M78+J78 -> 0 | T78: =Q78+N78+K78 -> 0 | U78: =SUM(S78:T78) -> 0
E79: 611200 | F79: Naknade troškova zaposlenih - volonteri | G79: =Godišnji!G78 -> 0 | H79: 0 | I79: 0 | L79: 0 | O79: 0 | R79: 0 | S79: 0 | T79: 0 | U79: 0
E80: 612000 | F80: Doprinosi poslodavca | G80: =G81 -> 10080 | H80: =H81 -> 0 | I80: 10080 | J80: 0 | K80: 0 | L80: 0 | M80: 0 | N80: 0 | O80: 0 | P80: 0 | Q80: 0 | R80: 0 | S80: 0 | T80: 0 | U80: 0
E81: 612100 | F81: Doprinosi poslodavca | G81: =Godišnji!G80 -> 10080 | H81: 0 | I81: =SUM(G81:H81) -> 10080 | L81: =SUM(J81:K81) -> 0 | O81: =SUM(M81:N81) -> 0 | R81: =SUM(P81:Q81) -> 0 | S81: =P81+M81+J81 -> 0 | T81: =Q81+N81+K81 -> 0 | U81: =SUM(S81:T81) -> 0
E82: 613000 | F82: Izdaci za materijal, sitan inventar i usluge | G82: =SUM(G83:G92) -> 5500 | H82: =SUM(H83:H92) -> 0 | I82: 5500 | J82: 0 | K82: 0 | L82: 0 | M82: 0 | N82: 0 | O82: 0 | P82: 0 | Q82: 0 | R82: 0 | S82: 0 | T82: 0 | U82: 0
E83: 613100 | F83: Putni troškovi | G83: =Godišnji!G82 -> 500 | H83: 0 | I83: =SUM(G83:H83) -> 500 | L83: =SUM(J83:K83) -> 0 | O83: =SUM(M83:N83) -> 0 | R83: =SUM(P83:Q83) -> 0 | S83: =P83+M83+J83 -> 0 | T83: =Q83+N83+K83 -> 0 | U83: =SUM(S83:T83) -> 0
E84: 613200 | F84: Izdaci za energiju | G84: =Godišnji!G83 -> 0 | H84: 0 | I84: 0 | L84: 0 | O84: 0 | R84: 0 | S84: 0 | T84: 0 | U84: 0
E85: 613300 | F85: Izdaci za komunikaciju i komunalne usluge | G85: =Godišnji!G84 -> 2500 | H85: 0 | I85: 2500 | L85: 0 | O85: 0 | R85: 0 | S85: 0 | T85: 0 | U85: 0
E86: 613400 | F86: Nabava materijala i sitnog inventara | G86: =Godišnji!G85 -> 600 | H86: 0 | I86: 600 | L86: 0 | O86: 0 | R86: 0 | S86: 0 | T86: 0 | U86: 0
E87: 613500 | F87: Izdaci za usluge prijevoza i goriva | G87: =Godišnji!G86 -> 0 | H87: 0 | I87: 0 | L87: 0 | O87: 0 | R87: 0 | S87: 0 | T87: 0 | U87: 0
E88: 613600 | F88: Unajmljivanje imovine, opreme i nemat.imovine | G88: =Godišnji!G87 -> 0 | H88: 0 | I88: 0 | L88: 0 | O88: 0 | R88: 0 | S88: 0 | T88: 0 | U88: 0
E89: 613700 | F89: Izdaci za tekuće održavanje | G89: =Godišnji!G88 -> 500 | H89: 0 | I89: 500 | L89: 0 | O89: 0 | R89: 0 | S89: 0 | T89: 0 | U89: 0
E90: 613800 | F90: Izdaci osiguranja, bank.usluga i usluga PP | G90: =Godišnji!G89 -> 0 | H90: 0 | I90: 0 | L90: 0 | O90: 0 | R90: 0 | S90: 0 | T90: 0 | U90: 0
E91: 613900 | F91: Ugovorene i druge posebne usluge | G91: =Godišnji!G90 -> 1400 | H91: 0 | I91: 1400 | L91: 0 | O91: 0 | R91: 0 | S91: 0 | T91: 0 | U91: 0
E92: 613900 | F92: Ugovorene i druge posebne usluge - volonteri | G92: =Godišnji!G91 -> 0 | H92: 0 | I92: 0 | L92: 0 | O92: 0 | R92: 0 | S92: 0 | T92: 0 | U92: 0
E93: 614000 | F93: Tekući grantovi i drugi tekući rashodi | G93: =G94 -> 120000 | H93: 0 | I93: 120000 | J93: 0 | K93: 0 | L93: 0 | M93: 0 | N93: 0 | O93: 0 | P93: 0 | Q93: 0 | R93: 0 | S93: 0 | T93: 0 | U93: 0
D94: BA6020 | E94: 614200 | F94: =Godišnji!F93 -> Grant za pomoć pri stamb.zbrinjav.mladih obitelji i… | G94: =Godišnji!G93 -> 120000 | H94: 0 | I94: =SUM(G94:H94) -> 120000 | L94: =SUM(J94:K94) -> 0 | O94: =SUM(M94:N94) -> 0 | R94: =SUM(P94:Q94) -> 0 | S94: =P94+M94+J94 -> 0 | T94: =Q94+N94+K94 -> 0 | U94: =SUM(S94:T94) -> 0
E95: 821000 | F95: Izdaci za nabavku stalnih sredstava | G95: =SUM(G96:G97) -> 1500 | H95: =SUM(H96:H97) -> 0 | I95: 1500 | J95: 0 | K95: 0 | L95: 0 | M95: 0 | N95: 0 | O95: 0 | P95: 0 | Q95: 0 | R95: 0 | S95: 0 | T95: 0 | U95: 0
E96: 821200 | F96: Nabavka građevina | G96: =Godišnji!G95 -> 0 | H96: 0 | I96: =SUM(G96:H96) -> 0 | L96: =SUM(J96:K96) -> 0 | O96: =SUM(M96:N96) -> 0 | R96: =SUM(P96:Q96) -> 0 | S96: =P96+M96+J96 -> 0 | T96: =Q96+N96+K96 -> 0 | U96: =SUM(S96:T96) -> 0
E97: 821300 | F97: Nabavka opreme | G97: =Godišnji!G96 -> 1500 | H97: 0 | I97: =SUM(G97:H97) -> 1500 | L97: =SUM(J97:K97) -> 0 | O97: =SUM(M97:N97) -> 0 | R97: =SUM(P97:Q97) -> 0 | S97: 0 | T97: 0 | U97: =SUM(S97:T97) -> 0
F98: Ukupno za korisnika Ured za raseljene | G98: =G76+G80+G82+G93+G95 -> 253280 | H98: =H76+H80+H82+H93+H95 -> 0 | I98: 253280 | J98: 0 | K98: 0 | L98: 0 | M98: 0 | N98: 0 | O98: 0 | P98: 0 | Q98: 0 | R98: 0 | S98: 0 | T98: 0 | U98: 0
A100: 11 | B100: 01 | C100: 0003 | F100: URED ZA ZAKONODAVSTVO VLADE ŽP
E101: 611000 | F101: Plaće i naknade troškova zaposlenih | G101: =SUM(G102:G104) -> 61980 | H101: =SUM(H102:H104) -> 0 | I101: 61980 | J101: 0 | K101: 0 | L101: 0 | M101: 0 | N101: 0 | O101: 0 | P101: 0 | Q101: 0 | R101: 0 | S101: 0 | T101: 0 | U101: 0
E102: 611100 | F102: Bruto plaće i naknade | G102: =Godišnji!G101 -> 53530 | H102: 0 | I102: =SUM(G102:H102) -> 53530 | L102: =SUM(J102:K102) -> 0 | O102: =SUM(M102:N102) -> 0 | R102: =SUM(P102:Q102) -> 0 | S102: =P102+M102+J102 -> 0 | T102: =Q102+N102+K102 -> 0 | U102: =SUM(S102:T102) -> 0
E103: 611200 | F103: Naknade troškova zaposlenih | G103: =Godišnji!G102 -> 8450 | H103: 0 | I103: =SUM(G103:H103) -> 8450 | L103: =SUM(J103:K103) -> 0 | O103: =SUM(M103:N103) -> 0 | R103: =SUM(P103:Q103) -> 0 | S103: =P103+M103+J103 -> 0 | T103: =Q103+N103+K103 -> 0 | U103: =SUM(S103:T103) -> 0
E104: 611200 | F104: Naknade troškova zaposlenih - volonteri | G104: =Godišnji!G103 -> 0 | H104: 0 | I104: 0 | L104: 0 | O104: 0 | R104: 0 | S104: 0 | T104: 0 | U104: 0
E105: 612000 | F105: Doprinosi poslodavca | G105: =G106 -> 5660 | H105: =H106 -> 0 | I105: 5660 | J105: 0 | K105: 0 | L105: 0 | M105: 0 | N105: 0 | O105: 0 | P105: 0 | Q105: 0 | R105: 0 | S105: 0 | T105: 0 | U105: 0
E106: 612100 | F106: Doprinosi poslodavca | G106: =Godišnji!G105 -> 5660 | H106: 0 | I106: =SUM(G106:H106) -> 5660 | L106: =SUM(J106:K106) -> 0 | O106: =SUM(M106:N106) -> 0 | R106: =SUM(P106:Q106) -> 0 | S106: =P106+M106+J106 -> 0 | T106: =Q106+N106+K106 -> 0 | U106: =SUM(S106:T106) -> 0
E107: 613000 | F107: Izdaci za materijal, sitan inventar i usluge | G107: =SUM(G108:G117) -> 800 | H107: =SUM(H108:H117) -> 0 | I107: 800 | J107: 0 | K107: 0 | L107: 0 | M107: 0 | N107: 0 | O107: 0 | P107: 0 | Q107: 0 | R107: 0 | S107: 0 | T107: 0 | U107: 0
E108: 613100 | F108: Putni troškovi | G108: =Godišnji!G107 -> 300 | H108: 0 | I108: =SUM(G108:H108) -> 300 | L108: =SUM(J108:K108) -> 0 | O108: =SUM(M108:N108) -> 0 | R108: =SUM(P108:Q108) -> 0 | S108: =P108+M108+J108 -> 0 | T108: =Q108+N108+K108 -> 0 | U108: =SUM(S108:T108) -> 0
E109: 613200 | F109: Izdaci za energiju | G109: =Godišnji!G108 -> 0 | H109: 0 | I109: 0 | L109: 0 | O109: 0 | R109: 0 | S109: 0 | T109: 0 | U109: 0
E110: 613300 | F110: Izdaci za komunikaciju i komunalne usluge | G110: =Godišnji!G109 -> 0 | H110: 0 | I110: 0 | L110: 0 | O110: 0 | R110: 0 | S110: 0 | T110: 0 | U110: 0
E111: 613400 | F111: Nabava materijala i sitnog inventara | G111: =Godišnji!G110 -> 0 | H111: 0 | I111: 0 | L111: 0 | O111: 0 | R111: 0 | S111: 0 | T111: 0 | U111: 0
E112: 613500 | F112: Izdaci za usluge prijevoza i goriva | G112: =Godišnji!G111 -> 0 | H112: 0 | I112: 0 | L112: 0 | O112: 0 | R112: 0 | S112: 0 | T112: 0 | U112: 0
E113: 613600 | F113: Unajmljivanje imovine, opreme i nemat.imovine | G113: =Godišnji!G112 -> 0 | H113: 0 | I113: 0 | L113: 0 | O113: 0 | R113: 0 | S113: 0 | T113: 0 | U113: 0
E114: 613700 | F114: Izdaci za tekuće održavanje | G114: =Godišnji!G113 -> 0 | H114: 0 | I114: 0 | L114: 0 | O114: 0 | R114: 0 | S114: 0 | T114: 0 | U114: 0
E115: 613800 | F115: Izdaci osiguranja, bank.usluga i usluga PP | G115: =Godišnji!G114 -> 0 | H115: 0 | I115: 0 | L115: 0 | O115: 0 | R115: 0 | S115: 0 | T115: 0 | U115: 0
E116: 613900 | F116: Ugovorene i druge posebne usluge | G116: =Godišnji!G115 -> 500 | H116: 0 | I116: 500 | L116: 0 | O116: 0 | R116: 0 | S116: 0 | T116: 0 | U116: 0
E117: 613900 | F117: Ugovorene i druge posebne usluge - volonteri | G117: =Godišnji!G116 -> 0 | H117: 0 | I117: 0 | L117: 0 | O117: 0 | R117: 0 | S117: 0 | T117: 0 | U117: 0
E118: 821000 | F118: Izdaci za nabavku stalnih sredstava | G118: =SUM(G119:G120) -> 500 | H118: =SUM(H119:H120) -> 0 | I118: 500 | J118: 0 | K118: 0 | L118: 0 | M118: 0 | N118: 0 | O118: 0 | P118: 0 | Q118: 0 | R118: 0 | S118: 0 | T118: 0 | U118: 0
E119: 821200 | F119: Nabavka građevina | G119: =Godišnji!G118 -> 0 | H119: 0 | I119: =SUM(G119:H119) -> 0 | L119: =SUM(J119:K119) -> 0 | O119: =SUM(M119:N119) -> 0 | R119: =SUM(P119:Q119) -> 0 | S119: =P119+M119+J119 -> 0 | T119: =Q119+N119+K119 -> 0 | U119: =SUM(S119:T119) -> 0
E120: 821300 | F120: Nabavka opreme | G120: =Godišnji!G119 -> 500 | H120: 0 | I120: =SUM(G120:H120) -> 500 | L120: =SUM(J120:K120) -> 0 | O120: =SUM(M120:N120) -> 0 | R120: =SUM(P120:Q120) -> 0 | S120: 0 | T120: 0 | U120: =SUM(S120:T120) -> 0
F121: Ukupno za korisnika Ured za zakonodavstvo Vlade ŽP | G121: =G101+G105+G107+G118 -> 68940 | H121: =H101+H105+H107+H118 -> 0 | I121: 68940 | J121: 0 | K121: 0 | L121: 0 | M121: 0 | N121: 0 | O121: 0 | P121: 0 | Q121: 0 | R121: 0 | S121: 0 | T121: 0 | U121: 0
A123: 11 | B123: 01 | C123: 0004 | F123: SLUŽBA ZA ODNOSE S JAVNOŠĆU VLADE ŽP
E124: 611000 | F124: Plaće i naknade troškova zaposlenih | G124: =SUM(G125:G127) -> 84400 | H124: =SUM(H125:H127) -> 0 | I124: 84400 | J124: 0 | K124: 0 | L124: 0 | M124: 0 | N124: 0 | O124: 0 | P124: 0 | Q124: 0 | R124: 0 | S124: 0 | T124: 0 | U124: 0
E125: 611100 | F125: Bruto plaće i naknade | G125: =Godišnji!G124 -> 73450 | H125: 0 | I125: =SUM(G125:H125) -> 73450 | L125: =SUM(J125:K125) -> 0 | O125: =SUM(M125:N125) -> 0 | R125: =SUM(P125:Q125) -> 0 | S125: =P125+M125+J125 -> 0 | T125: =Q125+N125+K125 -> 0 | U125: =SUM(S125:T125) -> 0
E126: 611200 | F126: Naknade troškova zaposlenih | G126: =Godišnji!G125 -> 10950 | H126: 0 | I126: =SUM(G126:H126) -> 10950 | L126: =SUM(J126:K126) -> 0 | O126: =SUM(M126:N126) -> 0 | R126: =SUM(P126:Q126) -> 0 | S126: =P126+M126+J126 -> 0 | T126: =Q126+N126+K126 -> 0 | U126: =SUM(S126:T126) -> 0
E127: 611200 | F127: Naknade troškova zaposlenih - volonteri | G127: =Godišnji!G126 -> 0 | H127: 0 | I127: 0 | L127: 0 | O127: 0 | R127: 0 | S127: 0 | T127: 0 | U127: 0
E128: 612000 | F128: Doprinosi poslodavca | G128: =G129 -> 7800 | H128: =H129 -> 0 | I128: 7800 | J128: 0 | K128: 0 | L128: 0 | M128: 0 | N128: 0 | O128: 0 | P128: 0 | Q128: 0 | R128: 0 | S128: 0 | T128: 0 | U128: 0
E129: 612100 | F129: Doprinosi poslodavca | G129: =Godišnji!G128 -> 7800 | H129: 0 | I129: =SUM(G129:H129) -> 7800 | L129: =SUM(J129:K129) -> 0 | O129: =SUM(M129:N129) -> 0 | R129: =SUM(P129:Q129) -> 0 | S129: =P129+M129+J129 -> 0 | T129: =Q129+N129+K129 -> 0 | U129: =SUM(S129:T129) -> 0
E130: 613000 | F130: Izdaci za materijal, sitan inventar i usluge | G130: =SUM(G131:G140) -> 5500 | H130: =SUM(H131:H140) -> 0 | I130: 5500 | J130: 0 | K130: 0 | L130: 0 | M130: 0 | N130: 0 | O130: 0 | P130: 0 | Q130: 0 | R130: 0 | S130: 0 | T130: 0 | U130: 0
E131: 613100 | F131: Putni troškovi | G131: =Godišnji!G130 -> 700 | H131: 0 | I131: =SUM(G131:H131) -> 700 | L131: =SUM(J131:K131) -> 0 | O131: =SUM(M131:N131) -> 0 | R131: =SUM(P131:Q131) -> 0 | S131: =P131+M131+J131 -> 0 | T131: =Q131+N131+K131 -> 0 | U131: =SUM(S131:T131) -> 0
E132: 613200 | F132: Izdaci za energiju | G132: =Godišnji!G131 -> 0 | H132: 0 | I132: 0 | L132: 0 | O132: 0 | R132: 0 | S132: 0 | T132: 0 | U132: 0
E133: 613300 | F133: Izdaci za komunikaciju i komunalne usluge | G133: =Godišnji!G132 -> 2500 | H133: 0 | I133: 2500 | L133: 0 | O133: 0 | R133: 0 | S133: 0 | T133: 0 | U133: 0
E134: 613400 | F134: Nabava materijala i sitnog inventara | G134: =Godišnji!G133 -> 300 | H134: 0 | I134: 300 | L134: 0 | O134: 0 | R134: 0 | S134: 0 | T134: 0 | U134: 0
E135: 613500 | F135: Izdaci za usluge prijevoza i goriva | G135: =Godišnji!G134 -> 0 | H135: 0 | I135: 0 | L135: 0 | O135: 0 | R135: 0 | S135: 0 | T135: 0 | U135: 0
E136: 613600 | F136: Unajmljivanje imovine, opreme i nemat.imovine | G136: =Godišnji!G135 -> 0 | H136: 0 | I136: 0 | L136: 0 | O136: 0 | R136: 0 | S136: 0 | T136: 0 | U136: 0
E137: 613700 | F137: Izdaci za tekuće održavanje | G137: =Godišnji!G136 -> 500 | H137: 0 | I137: 500 | L137: 0 | O137: 0 | R137: 0 | S137: 0 | T137: 0 | U137: 0
E138: 613800 | F138: Izdaci osiguranja, bank.usluga i usluga PP | G138: =Godišnji!G137 -> 0 | H138: 0 | I138: 0 | L138: 0 | O138: 0 | R138: 0 | S138: 0 | T138: 0 | U138: 0
E139: 613900 | F139: Ugovorene i druge posebne usluge | G139: =Godišnji!G138 -> 1500 | H139: 0 | I139: 1500 | L139: 0 | O139: 0 | R139: 0 | S139: 0 | T139: 0 | U139: 0
E140: 613900 | F140: Ugovorene i druge posebne usluge - volonteri | G140: =Godišnji!G139 -> 0 | H140: 0 | I140: 0 | L140: 0 | O140: 0 | R140: 0 | S140: 0 | T140: 0 | U140: 0
E141: 821000 | F141: Izdaci za nabavku stalnih sredstava | G141: =SUM(G142:G143) -> 1500 | H141: =SUM(H142:H143) -> 0 | I141: 1500 | J141: 0 | K141: 0 | L141: 0 | M141: 0 | N141: 0 | O141: 0 | P141: 0 | Q141: 0 | R141: 0 | S141: 0 | T141: 0 | U141: 0
E142: 821200 | F142: Nabavka građevina | G142: =Godišnji!G141 -> 0 | H142: 0 | I142: =SUM(G142:H142) -> 0 | L142: =SUM(J142:K142) -> 0 | O142: =SUM(M142:N142) -> 0 | R142: =SUM(P142:Q142) -> 0 | S142: =P142+M142+J142 -> 0 | T142: =Q142+N142+K142 -> 0 | U142: =SUM(S142:T142) -> 0
E143: 821300 | F143: Nabavka opreme | G143: =Godišnji!G142 -> 1500 | H143: 0 | I143: =SUM(G143:H143) -> 1500 | L143: =SUM(J143:K143) -> 0 | O143: =SUM(M143:N143) -> 0 | R143: =SUM(P143:Q143) -> 0 | S143: 0 | T143: 0 | U143: =SUM(S143:T143) -> 0
F144: Ukupno za korisnika Služba za odnose s javnošću Vlade ŽP | G144: =G124+G128+G130+G141 -> 99200 | H144: =H124+H128+H130+H141 -> 0 | I144: 99200 | J144: 0 | K144: 0 | L144: 0 | M144: 0 | N144: 0 | O144: 0 | P144: 0 | Q144: 0 | R144: 0 | S144: 0 | T144: 0 | U144: 0
A146: 11 | B146: 01 | C146: 0005 | F146: URED ZA RAZVOJ I EUROPSKE INTEGRACIJE ŽP
E147: 611000 | F147: Plaće i naknade troškova zaposlenih | G147: =SUM(G148:G150) -> 178010 | H147: =SUM(H148:H150) -> 0 | I147: 178010 | J147: 0 | K147: 0 | L147: 0 | M147: 0 | N147: 0 | O147: 0 | P147: 0 | Q147: 0 | R147: 0 | S147: 0 | T147: 0 | U147: 0
E148: 611100 | F148: Bruto plaće i naknade | G148: =Godišnji!G147 -> 144000 | H148: 0 | I148: =SUM(G148:H148) -> 144000 | L148: =SUM(J148:K148) -> 0 | O148: =SUM(M148:N148) -> 0 | R148: =SUM(P148:Q148) -> 0 | S148: =P148+M148+J148 -> 0 | T148: =Q148+N148+K148 -> 0 | U148: =SUM(S148:T148) -> 0
E149: 611200 | F149: Naknade troškova zaposlenih | G149: =Godišnji!G148 -> 34010 | H149: 0 | I149: =SUM(G149:H149) -> 34010 | L149: =SUM(J149:K149) -> 0 | O149: =SUM(M149:N149) -> 0 | R149: =SUM(P149:Q149) -> 0 | S149: =P149+M149+J149 -> 0 | T149: =Q149+N149+K149 -> 0 | U149: =SUM(S149:T149) -> 0
E150: 611200 | F150: Naknade troškova zaposlenih - volonteri | G150: =Godišnji!G149 -> 0 | H150: 0 | I150: 0 | L150: 0 | O150: 0 | R150: 0 | S150: 0 | T150: 0 | U150: 0
E151: 612000 | F151: Doprinosi poslodavca | G151: =G152 -> 15380 | H151: =H152 -> 0 | I151: 15380 | J151: 0 | K151: 0 | L151: 0 | M151: 0 | N151: 0 | O151: 0 | P151: 0 | Q151: 0 | R151: 0 | S151: 0 | T151: 0 | U151: 0
E152: 612100 | F152: Doprinosi poslodavca | G152: =Godišnji!G151 -> 15380 | H152: 0 | I152: =SUM(G152:H152) -> 15380 | L152: =SUM(J152:K152) -> 0 | O152: =SUM(M152:N152) -> 0 | R152: =SUM(P152:Q152) -> 0 | S152: =P152+M152+J152 -> 0 | T152: =Q152+N152+K152 -> 0 | U152: =SUM(S152:T152) -> 0
E153: 613000 | F153: Izdaci za materijal, sitan inventar i usluge | G153: =SUM(G154:G163) -> 8500 | H153: =SUM(H154:H163) -> 0 | I153: 8500 | J153: 0 | K153: 0 | L153: 0 | M153: 0 | N153: 0 | O153: 0 | P153: 0 | Q153: 0 | R153: 0 | S153: 0 | T153: 0 | U153: 0
E154: 613100 | F154: Putni troškovi | G154: =Godišnji!G153 -> 3000 | H154: 0 | I154: =SUM(G154:H154) -> 3000 | L154: =SUM(J154:K154) -> 0 | O154: =SUM(M154:N154) -> 0 | R154: =SUM(P154:Q154) -> 0 | S154: =P154+M154+J154 -> 0 | T154: =Q154+N154+K154 -> 0 | U154: =SUM(S154:T154) -> 0
E155: 613200 | F155: Izdaci za energiju | G155: =Godišnji!G154 -> 0 | H155: 0 | I155: 0 | L155: 0 | O155: 0 | R155: 0 | S155: 0 | T155: 0 | U155: 0
E156: 613300 | F156: Izdaci za komunikaciju i komunalne usluge | G156: =Godišnji!G155 -> 500 | H156: 0 | I156: 500 | L156: 0 | O156: 0 | R156: 0 | S156: 0 | T156: 0 | U156: 0
E157: 613400 | F157: Nabava materijala i sitnog inventara | G157: =Godišnji!G156 -> 1000 | H157: 0 | I157: 1000 | L157: 0 | O157: 0 | R157: 0 | S157: 0 | T157: 0 | U157: 0
E158: 613500 | F158: Izdaci za usluge prijevoza i goriva | G158: =Godišnji!G157 -> 0 | H158: 0 | I158: 0 | L158: 0 | O158: 0 | R158: 0 | S158: 0 | T158: 0 | U158: 0
E159: 613600 | F159: Unajmljivanje imovine, opreme i nemat.imovine | G159: =Godišnji!G158 -> 0 | H159: 0 | I159: 0 | L159: 0 | O159: 0 | R159: 0 | S159: 0 | T159: 0 | U159: 0
E160: 613700 | F160: Izdaci za tekuće održavanje | G160: =Godišnji!G159 -> 1500 | H160: 0 | I160: 1500 | L160: 0 | O160: 0 | R160: 0 | S160: 0 | T160: 0 | U160: 0
E161: 613800 | F161: Izdaci osiguranja, bank.usluga i usluga PP | G161: =Godišnji!G160 -> 0 | H161: 0 | I161: 0 | L161: 0 | O161: 0 | R161: 0 | S161: 0 | T161: 0 | U161: 0
E162: 613900 | F162: Ugovorene i druge posebne usluge | G162: =Godišnji!G161 -> 2500 | H162: 0 | I162: 2500 | L162: 0 | O162: 0 | R162: 0 | S162: 0 | T162: 0 | U162: 0
E163: 613900 | F163: Ugovorene i druge posebne usluge - volonteri | G163: =Godišnji!G162 -> 0 | H163: 0 | I163: 0 | L163: 0 | O163: 0 | R163: 0 | S163: 0 | T163: 0 | U163: 0
E164: 821000 | F164: Izdaci za nabavku stalnih sredstava | G164: =SUM(G165:G166) -> 5000 | H164: =SUM(H165:H166) -> 0 | I164: 5000 | J164: 0 | K164: 0 | L164: 0 | M164: 0 | N164: 0 | O164: 0 | P164: 0 | Q164: 0 | R164: 0 | S164: 0 | T164: 0 | U164: 0
E165: 821200 | F165: Nabavka građevina | G165: =Godišnji!G164 -> 0 | H165: 0 | I165: =SUM(G165:H165) -> 0 | L165: =SUM(J165:K165) -> 0 | O165: =SUM(M165:N165) -> 0 | R165: =SUM(P165:Q165) -> 0 | S165: =P165+M165+J165 -> 0 | T165: =Q165+N165+K165 -> 0 | U165: =SUM(S165:T165) -> 0
E166: 821300 | F166: Nabavka opreme | G166: =Godišnji!G165 -> 5000 | H166: 0 | I166: =SUM(G166:H166) -> 5000 | L166: =SUM(J166:K166) -> 0 | O166: =SUM(M166:N166) -> 0 | R166: =SUM(P166:Q166) -> 0 | S166: 0 | T166: 0 | U166: =SUM(S166:T166) -> 0
F167: Ukupno za korisnika Ured za razvoj i EU integrac. ŽP | G167: =G147+G151+G153+G164 -> 206890 | H167: =H147+H151+H153+H164 -> 0 | I167: 206890 | J167: 0 | K167: 0 | L167: 0 | M167: 0 | N167: 0 | O167: 0 | P167: 0 | Q167: 0 | R167: 0 | S167: 0 | T167: 0 | U167: 0
A169: 12 | B169: 01 | C169: 0001 | F169: ZAJEDNIČKA SLUŽBA VLADE ŽP
E170: 611000 | F170: Plaće i naknade troškova zaposlenih | G170: =SUM(G171:G173) -> 376800 | H170: =SUM(H171:H173) -> 0 | I170: 376800 | J170: 0 | K170: 0 | L170: 0 | M170: 0 | N170: 0 | O170: 0 | P170: 0 | Q170: 0 | R170: 0 | S170: 0 | T170: 0 | U170: 0
E171: 611100 | F171: Bruto plaće i naknade | G171: =Godišnji!G170 -> 304390 | H171: 0 | I171: =SUM(G171:H171) -> 304390 | L171: =SUM(J171:K171) -> 0 | O171: =SUM(M171:N171) -> 0 | R171: =SUM(P171:Q171) -> 0 | S171: =P171+M171+J171 -> 0 | T171: =Q171+N171+K171 -> 0 | U171: =SUM(S171:T171) -> 0
E172: 611200 | F172: Naknade troškova zaposlenih | G172: =Godišnji!G171 -> 72410 | H172: 0 | I172: =SUM(G172:H172) -> 72410 | L172: =SUM(J172:K172) -> 0 | O172: =SUM(M172:N172) -> 0 | R172: =SUM(P172:Q172) -> 0 | S172: =P172+M172+J172 -> 0 | T172: =Q172+N172+K172 -> 0 | U172: =SUM(S172:T172) -> 0
E173: 611200 | F173: Naknade troškova zaposlenih - volonteri | G173: =Godišnji!G172 -> 0 | H173: 0 | I173: 0 | L173: 0 | O173: 0 | R173: 0 | S173: 0 | T173: 0 | U173: 0
E174: 612000 | F174: Doprinosi poslodavca | G174: =G175 -> 32500 | H174: =H175 -> 0 | I174: 32500 | J174: 0 | K174: 0 | L174: 0 | M174: 0 | N174: 0 | O174: 0 | P174: 0 | Q174: 0 | R174: 0 | S174: 0 | T174: 0 | U174: 0
E175: 612100 | F175: Doprinosi poslodavca | G175: =Godišnji!G174 -> 32500 | H175: 0 | I175: =SUM(G175:H175) -> 32500 | L175: =SUM(J175:K175) -> 0 | O175: =SUM(M175:N175) -> 0 | R175: =SUM(P175:Q175) -> 0 | S175: =P175+M175+J175 -> 0 | T175: =Q175+N175+K175 -> 0 | U175: =SUM(S175:T175) -> 0
E176: 613000 | F176: Izdaci za materijal, sitan inventar i usluge | G176: =SUM(G177:G186) -> 385000 | H176: =SUM(H177:H186) -> 0 | I176: 385000 | J176: 0 | K176: 0 | L176: 0 | M176: 0 | N176: 0 | O176: 0 | P176: 0 | Q176: 0 | R176: 0 | S176: 0 | T176: 0 | U176: 0
E177: 613100 | F177: Putni troškovi | G177: =Godišnji!G176 -> 3000 | H177: 0 | I177: =SUM(G177:H177) -> 3000 | L177: =SUM(J177:K177) -> 0 | O177: =SUM(M177:N177) -> 0 | R177: =SUM(P177:Q177) -> 0 | S177: =P177+M177+J177 -> 0 | T177: =Q177+N177+K177 -> 0 | U177: =SUM(S177:T177) -> 0
E178: 613200 | F178: Izdaci za energiju | G178: =Godišnji!G177 -> 70000 | H178: 0 | I178: 70000 | L178: 0 | O178: 0 | R178: 0 | S178: 0 | T178: 0 | U178: 0
E179: 613300 | F179: Izdaci za komunikaciju i komunalne usluge | G179: =Godišnji!G178 -> 50000 | H179: 0 | I179: 50000 | L179: 0 | O179: 0 | R179: 0 | S179: 0 | T179: 0 | U179: 0
E180: 613400 | F180: Nabava materijala i sitnog inventara | G180: =Godišnji!G179 -> 94000 | H180: 0 | I180: 94000 | L180: 0 | O180: 0 | R180: 0 | S180: 0 | T180: 0 | U180: 0
E181: 613500 | F181: Izdaci za usluge prijevoza i goriva | G181: =Godišnji!G180 -> 67000 | H181: 0 | I181: 67000 | L181: 0 | O181: 0 | R181: 0 | S181: 0 | T181: 0 | U181: 0
E182: 613600 | F182: Unajmljivanje imovine, opreme i nemat.imovine | G182: =Godišnji!G181 -> 0 | H182: 0 | I182: 0 | L182: 0 | O182: 0 | R182: 0 | S182: 0 | T182: 0 | U182: 0
E183: 613700 | F183: Izdaci za tekuće održavanje | G183: =Godišnji!G182 -> 32000 | H183: 0 | I183: 32000 | L183: 0 | O183: 0 | R183: 0 | S183: 0 | T183: 0 | U183: 0
E184: 613800 | F184: Izdaci osiguranja, bank.usluga i usluga PP | G184: =Godišnji!G183 -> 9000 | H184: 0 | I184: 9000 | L184: 0 | O184: 0 | R184: 0 | S184: 0 | T184: 0 | U184: 0
E185: 613900 | F185: Ugovorene i druge posebne usluge | G185: =Godišnji!G184 -> 60000 | H185: 0 | I185: 60000 | L185: 0 | O185: 0 | R185: 0 | S185: 0 | T185: 0 | U185: 0
E186: 613900 | F186: Ugovorene i druge posebne usluge - volonteri | G186: =Godišnji!G185 -> 0 | H186: 0 | I186: 0 | L186: 0 | O186: 0 | R186: 0 | S186: 0 | T186: 0 | U186: 0
E187: 821000 | F187: Izdaci za nabavku stalnih sredstava | G187: =SUM(G188:G189) -> 53000 | H187: =SUM(H188:H189) -> 0 | I187: 53000 | J187: 0 | K187: 0 | L187: 0 | M187: 0 | N187: 0 | O187: 0 | P187: 0 | Q187: 0 | R187: 0 | S187: 0 | T187: 0 | U187: 0
E188: 821200 | F188: Nabavka građevina | G188: =Godišnji!G187 -> 0 | H188: 0 | I188: =SUM(G188:H188) -> 0 | L188: =SUM(J188:K188) -> 0 | O188: =SUM(M188:N188) -> 0 | R188: =SUM(P188:Q188) -> 0 | S188: =P188+M188+J188 -> 0 | T188: =Q188+N188+K188 -> 0 | U188: =SUM(S188:T188) -> 0
E189: 821300 | F189: Nabavka opreme | G189: =Godišnji!G188 -> 53000 | H189: 0 | I189: =SUM(G189:H189) -> 53000 | L189: =SUM(J189:K189) -> 0 | O189: =SUM(M189:N189) -> 0 | R189: =SUM(P189:Q189) -> 0 | S189: 0 | T189: 0 | U189: =SUM(S189:T189) -> 0
F190: Ukupno za korisnika Zajednička služba Vlade ŽP | G190: =G170+G174+G176+G187 -> 847300 | H190: =H170+H174+H176+H187 -> 0 | I190: 847300 | J190: 0 | K190: 0 | L190: 0 | M190: 0 | N190: 0 | O190: 0 | P190: 0 | Q190: 0 | R190: 0 | S190: 0 | T190: 0 | U190: 0
A192: 13 | B192: 01 | C192: 0001 | F192: MINISTARSTVO UNUTARNJIH POSLOVA ŽP
E193: 611000 | F193: Plaće i naknade troškova zaposlenih | G193: =SUM(G194:G196) -> 5976060 | H193: =SUM(H194:H196) -> 0 | I193: 5976060 | J193: 0 | K193: 0 | L193: 0 | M193: 0 | N193: 0 | O193: 0 | P193: 0 | Q193: 0 | R193: 0 | S193: 0 | T193: 0 | U193: 0
E194: 611100 | F194: Bruto plaće i naknade | G194: =Godišnji!G193 -> 5078320 | H194: 0 | I194: =SUM(G194:H194) -> 5078320 | L194: =SUM(J194:K194) -> 0 | O194: =SUM(M194:N194) -> 0 | R194: =SUM(P194:Q194) -> 0 | S194: =P194+M194+J194 -> 0 | T194: =Q194+N194+K194 -> 0 | U194: =SUM(S194:T194) -> 0
E195: 611200 | F195: Naknade troškova zaposlenih | G195: =Godišnji!G194 -> 897740 | H195: 0 | I195: =SUM(G195:H195) -> 897740 | L195: =SUM(J195:K195) -> 0 | O195: =SUM(M195:N195) -> 0 | R195: =SUM(P195:Q195) -> 0 | S195: =P195+M195+J195 -> 0 | T195: =Q195+N195+K195 -> 0 | U195: =SUM(S195:T195) -> 0
E196: 611200 | F196: Naknade troškova zaposlenih - volonteri | G196: =Godišnji!G195 -> 0 | H196: 0 | I196: 0 | L196: 0 | O196: 0 | R196: 0 | S196: 0 | T196: 0 | U196: 0
E197: 612000 | F197: Doprinosi poslodavca | G197: =G198+G199 -> 880400 | H197: =H198+H199 -> 0 | I197: 880400 | J197: 0 | K197: 0 | L197: 0 | M197: 0 | N197: 0 | O197: 0 | P197: 0 | Q197: 0 | R197: 0 | S197: 0 | T197: 0 | U197: 0
E198: 612100 | F198: Doprinosi poslodavca | G198: =Godišnji!G197 -> 780400 | H198: 0 | I198: =SUM(G198:H198) -> 780400 | L198: =SUM(J198:K198) -> 0 | O198: =SUM(M198:N198) -> 0 | R198: =SUM(P198:Q198) -> 0 | S198: =P198+M198+J198 -> 0 | T198: =Q198+N198+K198 -> 0 | U198: =SUM(S198:T198) -> 0
D199: DA6001 | E199: 612100 | F199: Doprinosi za beneficirani radni staž 1996-1998 | G199: =Godišnji!G198 -> 100000 | H199: 0 | I199: =SUM(G199:H199) -> 100000 | L199: =SUM(J199:K199) -> 0 | O199: =SUM(M199:N199) -> 0 | R199: =SUM(P199:Q199) -> 0 | S199: =P199+M199+J199 -> 0 | T199: =Q199+N199+K199 -> 0 | U199: =SUM(S199:T199) -> 0
E200: 613000 | F200: Izdaci za materijal, sitan inventar i usluge | G200: =SUM(G201:G210) -> 784000 | H200: =SUM(H201:H210) -> 0 | I200: 784000 | J200: 0 | K200: 0 | L200: 0 | M200: 0 | N200: 0 | O200: 0 | P200: 0 | Q200: 0 | R200: 0 | S200: 0 | T200: 0 | U200: 0
E201: 613100 | F201: Putni troškovi | G201: =Godišnji!G200 -> 12000 | H201: 0 | I201: =SUM(G201:H201) -> 12000 | L201: =SUM(J201:K201) -> 0 | O201: =SUM(M201:N201) -> 0 | R201: =SUM(P201:Q201) -> 0 | S201: =P201+M201+J201 -> 0 | T201: =Q201+N201+K201 -> 0 | U201: =SUM(S201:T201) -> 0
E202: 613200 | F202: Izdaci za energiju | G202: =Godišnji!G201 -> 78000 | H202: 0 | I202: 78000 | L202: 0 | O202: 0 | R202: 0 | S202: 0 | T202: 0 | U202: 0
E203: 613300 | F203: Izdaci za komunikaciju i komunalne usluge | G203: =Godišnji!G202 -> 81000 | H203: 0 | I203: 81000 | L203: 0 | O203: 0 | R203: 0 | S203: 0 | T203: 0 | U203: 0
E204: 613400 | F204: Nabava materijala i sitnog inventara | G204: =Godišnji!G203 -> 172000 | H204: 0 | I204: 172000 | L204: 0 | O204: 0 | R204: 0 | S204: 0 | T204: 0 | U204: 0
E205: 613500 | F205: Izdaci za usluge prijevoza i goriva | G205: =Godišnji!G204 -> 112000 | H205: 0 | I205: 112000 | L205: 0 | O205: 0 | R205: 0 | S205: 0 | T205: 0 | U205: 0
E206: 613600 | F206: Unajmljivanje imovine, opreme i nemat.imovine | G206: =Godišnji!G205 -> 27000 | H206: 0 | I206: 27000 | L206: 0 | O206: 0 | R206: 0 | S206: 0 | T206: 0 | U206: 0
E207: 613700 | F207: Izdaci za tekuće održavanje | G207: =Godišnji!G206 -> 95000 | H207: 0 | I207: 95000 | L207: 0 | O207: 0 | R207: 0 | S207: 0 | T207: 0 | U207: 0
E208: 613800 | F208: Izdaci osiguranja, bank.usluga i usluga PP | G208: =Godišnji!G207 -> 27000 | H208: 0 | I208: 27000 | L208: 0 | O208: 0 | R208: 0 | S208: 0 | T208: 0 | U208: 0
... 697 more rows

Sheet Mjesecni
F1: ="PRIJEDLOG MJESEČNOG OPERATIVNOG PLANA RASHODA I IZDATAKA ZA "&E5&" 2022. GODINE" -> PRIJEDLOG MJESEČNOG OPERATIVNOG PLANA RASHODA I IZDATAKA ZA 7. mjesec 2022. GODINE
G2: =E4 -> 00000000
A3: Proračunski korisnik: | E3: =INDEX(Lista!A:B,MATCH($E$4,Lista!A:A,0),2) -> SVE
A4: Organizacijski kod: | E4: 00000000
A5: Mjesec: | E5: 7. mjesec
A7: Razdjel | B7: Glava | C7: Potroš. jedinica | D7: Suban | E7: Ekonom. kod | F7: Opis | H7: Proračun za 2022. godinu | K7: =INDEX(Lista!I:K,MATCH($E$5,Lista!I:I,0),3) -> Srpanj 2022. god.
G8: Rashodi i | H8: Rashodi iz | I8: Ukupni | J8: Rashodi i | K8: Rashodi iz | L8: Ukupni
G9: izdaci iz | H9: namj.sr., | I9: rashodi i | J9: izdaci iz | K9: namj.sr., | L9: rashodi i
G10: proračuna | H10: tek. trans. i don. | I10: izdaci | J10: proračuna | K10: tek. trans. i don. | L10: izdaci
A11: 1 | B11: 2 | C11: 3 | E11: 4 | F11: 5 | G11: 6 | H11: 7 | I11: 8 | J11: 9 | K11: 10 | L11: 11
A12: 10 | B12: 01 | C12: 0001 | F12: SKUPŠTINA ŽUPANIJE POSAVSKE
E13: 611000 | F13: Plaće i naknade troškova zaposlenih | G13: =SUM(G14:G16) -> 599730 | H13: =SUM(H14:H16) -> 0 | I13: 599730 | J13: 0 | K13: 0 | L13: 0
E14: 611100 | F14: Bruto plaće i naknade | G14: =Godišnji!G13 -> 504040 | H14: =Godišnji!H13 -> 0 | I14: =SUM(G14:H14) -> 504040 | L14: =SUM(J14:K14) -> 0
E15: 611200 | F15: Naknade troškova zaposlenih | G15: =Godišnji!G14 -> 95690 | H15: =Godišnji!H14 -> 0 | I15: =SUM(G15:H15) -> 95690 | L15: =SUM(J15:K15) -> 0
E16: 611200 | F16: Naknade troškova zaposlenih - volonteri | G16: =Godišnji!G15 -> 0 | H16: =Godišnji!H15 -> 0 | I16: 0 | L16: 0
E17: 612000 | F17: Doprinosi poslodavca | G17: =G18 -> 53260 | H17: =H18 -> 0 | I17: 53260 | J17: 0 | K17: 0 | L17: 0
E18: 612100 | F18: Doprinosi poslodavca | G18: =Godišnji!G17 -> 53260 | H18: =Godišnji!H17 -> 0 | I18: =SUM(G18:H18) -> 53260 | L18: =SUM(J18:K18) -> 0
E19: 613000 | F19: Izdaci za materijal, sitan inventar i usluge | G19: =SUM(G20:G29) -> 261520 | H19: =SUM(H20:H29) -> 0 | I19: 261520 | J19: 0 | K19: 0 | L19: 0
E20: 613100 | F20: Putni troškovi | G20: =Godišnji!G19 -> 5000 | H20: =Godišnji!H19 -> 0 | I20: =SUM(G20:H20) -> 5000 | L20: =SUM(J20:K20) -> 0
E21: 613200 | F21: Izdaci za energiju | G21: =Godišnji!G20 -> 8500 | H21: =Godišnji!H20 -> 0 | I21: 8500 | L21: 0
E22: 613300 | F22: Izdaci za komunikaciju i komunalne usluge | G22: =Godišnji!G21 -> 6500 | H22: =Godišnji!H21 -> 0 | I22: 6500 | L22: 0
E23: 613400 | F23: Nabava materijala i sitnog inventara | G23: =Godišnji!G22 -> 4200 | H23: =Godišnji!H22 -> 0 | I23: 4200 | L23: 0
E24: 613500 | F24: Izdaci za usluge prijevoza i goriva | G24: =Godišnji!G23 -> 9000 | H24: =Godišnji!H23 -> 0 | I24: 9000 | L24: 0
E25: 613600 | F25: Unajmljivanje imovine, opreme i nemat.imovine | G25: =Godišnji!G24 -> 0 | H25: =Godišnji!H24 -> 0 | I25: 0 | L25: 0
E26: 613700 | F26: Izdaci za tekuće održavanje | G26: =Godišnji!G25 -> 4500 | H26: =Godišnji!H25 -> 0 | I26: 4500 | L26: 0
E27: 613800 | F27: Izdaci osiguranja, bank.usluga i usluga PP | G27: =Godišnji!G26 -> 3820 | H27: =Godišnji!H26 -> 0 | I27: 3820 | L27: 0
E28: 613900 | F28: Ugovorene i druge posebne usluge | G28: =Godišnji!G27 -> 220000 | H28: =Godišnji!H27 -> 0 | I28: 220000 | L28: 0
E29: 613900 | F29: Ugovorene i druge posebne usluge - volonteri | G29: =Godišnji!G28 -> 0 | H29: =Godišnji!H28 -> 0 | I29: 0 | L29: 0
E30: 821000 | F30: Izdaci za nabavku stalnih sredstava | G30: =SUM(G31:G33) -> 33000 | H30: =SUM(H31:H33) -> 0 | I30: 33000 | J30: 0 | K30: 0 | L30: 0
E31: 821200 | F31: Nabavka građevina | G31: =Godišnji!G30 -> 0 | H31: =Godišnji!H30 -> 0 | I31: =SUM(G31:H31) -> 0 | L31: =SUM(J31:K31) -> 0
E32: 821300 | F32: Nabavka opreme | G32: =Godišnji!G31 -> 30000 | H32: =Godišnji!H31 -> 0 | I32: =SUM(G32:H32) -> 30000 | L32: =SUM(J32:K32) -> 0
E33: 821500 | F33: Nabavka stalnih sredstava u obliku prava | G33: =Godišnji!G32 -> 3000 | H33: =Godišnji!H32 -> 0 | I33: =SUM(G33:H33) -> 3000 | L33: =SUM(J33:K33) -> 0
F34: Ukupno za korisnika Skupština Županije Posavske | G34: =G13+G17+G19+G30 -> 947510 | H34: =H13+H17+H19+H30 -> 0 | I34: 947510 | J34: 0 | K34: 0 | L34: 0
A36: 11 | B36: 01 | C36: 0001 | F36: VLADA ŽUPANIJE POSAVSKE
E37: 600000 | F37: Rashodi - tekuća pričuva | G37: =SUM(G38:G40) -> 445000 | H37: =SUM(H38:H40) -> 0 | I37: =SUM(I38:I40) -> 445000 | J37: 0 | K37: 0 | L37: 0
E38: 600000 | F38: Tekuća pričuva Vlade | G38: =Godišnji!G37 -> 400000 | H38: =Godišnji!H37 -> 0 | I38: =SUM(G38:H38) -> 400000 | L38: =SUM(J38:K38) -> 0
E39: 600000 | F39: Tekuća pričuva predsjednika Vlade | G39: =Godišnji!G38 -> 30000 | H39: =Godišnji!H38 -> 0 | I39: =SUM(G39:H39) -> 30000 | L39: =SUM(J39:K39) -> 0
E40: 600000 | F40: Tekuća pričuva zamjenika pred.Vlade | G40: =Godišnji!G39 -> 15000 | H40: =Godišnji!H39 -> 0 | I40: 15000 | L40: 0
E41: 611000 | F41: Plaće i naknade troškova zaposlenih | G41: =SUM(G42:G44) -> 244100 | H41: =SUM(H42:H44) -> 0 | I41: =SUM(I42:I44) -> 244100 | J41: 0 | K41: 0 | L41: 0
E42: 611100 | F42: Bruto plaće i naknade | G42: =Godišnji!G41 -> 166050 | H42: =Godišnji!H41 -> 0 | I42: =SUM(G42:H42) -> 166050 | L42: =SUM(J42:K42) -> 0
E43: 611200 | F43: Naknade troškova zaposlenih | G43: =Godišnji!G42 -> 28050 | H43: =Godišnji!H42 -> 0 | I43: =SUM(G43:H43) -> 28050 | L43: =SUM(J43:K43) -> 0
D44: BA6017 | E44: 611200 | F44: Naknade troškova zaposlenih - volonteri | G44: =Godišnji!G43 -> 50000 | H44: =Godišnji!H43 -> 0 | I44: 50000 | L44: 0
E45: 612000 | F45: Doprinosi poslodavca | G45: =G46 -> 17660 | H45: =H46 -> 0 | I45: =I46 -> 17660 | J45: 0 | K45: 0 | L45: 0
E46: 612100 | F46: Doprinosi poslodavca | G46: =Godišnji!G45 -> 17660 | H46: =Godišnji!H45 -> 0 | I46: =SUM(G46:H46) -> 17660 | L46: =SUM(J46:K46) -> 0
E47: 613000 | F47: Izdaci za materijal, sitan inventar i usluge | G47: =SUM(G48:G58) -> 319300 | H47: =SUM(H48:H58) -> 0 | I47: =SUM(I48:I58) -> 319300 | J47: 0 | K47: 0 | L47: 0
E48: 613100 | F48: Putni troškovi | G48: =Godišnji!G47 -> 7000 | H48: =Godišnji!H47 -> 0 | I48: =SUM(G48:H48) -> 7000 | L48: =SUM(J48:K48) -> 0
E49: 613200 | F49: Izdaci za energiju | G49: =Godišnji!G48 -> 0 | H49: =Godišnji!H48 -> 0 | I49: 0 | L49: 0
E50: 613300 | F50: Izdaci za komunikaciju i komunalne usluge | G50: =Godišnji!G49 -> 5200 | H50: =Godišnji!H49 -> 0 | I50: 5200 | L50: 0
E51: 613400 | F51: Nabava materijala i sitnog inventara | G51: =Godišnji!G50 -> 1200 | H51: =Godišnji!H50 -> 0 | I51: 1200 | L51: 0
E52: 613500 | F52: Izdaci za usluge prijevoza i goriva | G52: =Godišnji!G51 -> 1000 | H52: =Godišnji!H51 -> 0 | I52: 1000 | L52: 0
E53: 613600 | F53: Unajmljivanje imovine, opreme i nemat.imovine | G53: =Godišnji!G52 -> 1200 | H53: =Godišnji!H52 -> 0 | I53: 1200 | L53: 0
E54: 613700 | F54: Izdaci za tekuće održavanje | G54: =Godišnji!G53 -> 3000 | H54: =Godišnji!H53 -> 0 | I54: 3000 | L54: 0
E55: 613800 | F55: Izdaci osiguranja, bank.usluga i usluga PP | G55: =Godišnji!G54 -> 500 | H55: =Godišnji!H54 -> 0 | I55: 500 | L55: 0
E56: 613900 | F56: Ugovorene i druge posebne usluge | G56: =Godišnji!G55 -> 140000 | H56: =Godišnji!H55 -> 0 | I56: 140000 | L56: 0
D57: BA6020 | E57: 613900 | F57: Ug.idr.pos,usluge-sufinanciranje prijema vježbenika | G57: =Godišnji!G56 -> 87000 | H57: =Godišnji!H56 -> 0 | I57: 87000 | L57: 0
D58: BA6017 | E58: 613900 | F58: Ugovorene i druge posebne usluge - volonteri | G58: =Godišnji!G57 -> 73200 | H58: =Godišnji!H57 -> 0 | I58: 73200 | L58: 0
E59: 614000 | F59: Tekući grantovi i drugi tekući rashodi | G59: =SUM(G60:G66) -> 810000 | H59: 0 | I59: 810000 | J59: 0 | K59: 0 | L59: 0
D60: BA6014 | E60: 614100 | F60: Grant za Sveučilište u Mostaru | G60: =Godišnji!G59 -> 300000 | H60: =Godišnji!H59 -> 0 | I60: =SUM(G60:H60) -> 300000 | L60: =SUM(J60:K60) -> 0
D61: BA6016 | E61: 614200 | F61: Grant za sufinanc.nabavke udžbenika učenicima | G61: =Godišnji!G60 -> 220000 | H61: =Godišnji!H60 -> 0 | I61: 220000 | L61: 0
D62: BA6001 | E62: 614300 | F62: Grant nepro.organizacijama i udruženjima građana | G62: =Godišnji!G61 -> 70000 | H62: =Godišnji!H61 -> 0 | I62: 70000 | L62: 0
D63: BA6008 | E63: 614300 | F63: Grant za Crveni križ Županije Posavske | G63: =Godišnji!G62 -> 30000 | H63: =Godišnji!H62 -> 0 | I63: 30000 | L63: 0
D64: BA6007 | E64: 614300 | F64: Grant za Gospodarsku komoru ŽP | G64: =Godišnji!G63 -> 35000 | H64: =Godišnji!H63 -> 0 | I64: 35000 | L64: 0
D65: BA6018 | E65: 614300 | F65: Grant za Obrtničku komoru ŽP | G65: =Godišnji!G64 -> 15000 | H65: =Godišnji!H64 -> 0 | I65: =SUM(G65:H65) -> 15000 | L65: =SUM(J65:K65) -> 0
D66: AA6001 | E66: 614300 | F66: Grant političkim strankama | G66: =Godišnji!G65 -> 140000 | H66: =Godišnji!H65 -> 0 | I66: 140000 | L66: 0
E67: 615000 | F67: Kapitalni grantovi | G67: =G68 -> 300000 | H67: =H68 -> 0 | I67: =I68 -> 300000 | J67: =J68 -> 0 | K67: 0 | L67: =L68 -> 0
E68: 615100 | F68: Kapitalni grant | G68: =Godišnji!G67 -> 300000 | H68: =Godišnji!H67 -> 0 | I68: =SUM(G68:H68) -> 300000 | L68: =SUM(J68:K68) -> 0
E69: 821000 | F69: Izdaci za nabavku stalnih sredstava | G69: =SUM(G70:G72) -> 100000 | H69: =SUM(H70:H72) -> 0 | I69: 100000 | J69: 0 | K69: 0 | L69: 0
E70: 821200 | F70: Nabavka građevina | G70: =Godišnji!G69 -> 70000 | H70: =Godišnji!H69 -> 0 | I70: =SUM(G70:H70) -> 70000 | L70: =SUM(J70:K70) -> 0
E71: 821300 | F71: Nabavka opreme | G71: =Godišnji!G70 -> 30000 | H71: =Godišnji!H70 -> 0 | I71: =SUM(G71:H71) -> 30000 | L71: =SUM(J71:K71) -> 0
E72: 821500 | F72: Nabavka stalnih sredstava u obliku prava | G72: =Godišnji!G71 -> 0 | H72: =Godišnji!H71 -> 0 | I72: =SUM(G72:H72) -> 0 | L72: =SUM(J72:K72) -> 0
F73: Ukupno za korisnika Vlada Županije Posavske | G73: =G37+G41+G45+G47+G59+G67+G69 -> 2236060 | H73: 0 | I73: 2236060 | J73: 0 | K73: 0 | L73: 0
A75: 11 | B75: 01 | C75: 0006 | F75: =Godišnji!F74 -> URED ZA OBNOVU, STAMB.ZBRINJ.I RAS.OSOBE
E76: 611000 | F76: Plaće i naknade troškova zaposlenih | G76: =SUM(G77:G79) -> 116200 | H76: =SUM(H77:H79) -> 0 | I76: 116200 | J76: 0 | K76: 0 | L76: 0
E77: 611100 | F77: Bruto plaće i naknade | G77: =Godišnji!G76 -> 94920 | H77: =Godišnji!H76 -> 0 | I77: =SUM(G77:H77) -> 94920 | L77: =SUM(J77:K77) -> 0
E78: 611200 | F78: Naknade troškova zaposlenih | G78: =Godišnji!G77 -> 21280 | H78: =Godišnji!H77 -> 0 | I78: =SUM(G78:H78) -> 21280 | L78: =SUM(J78:K78) -> 0
E79: 611200 | F79: Naknade troškova zaposlenih - volonteri | G79: =Godišnji!G78 -> 0 | H79: =Godišnji!H78 -> 0 | I79: 0 | L79: 0
E80: 612000 | F80: Doprinosi poslodavca | G80: =G81 -> 10080 | H80: =H81 -> 0 | I80: 10080 | J80: 0 | K80: 0 | L80: 0
E81: 612100 | F81: Doprinosi poslodavca | G81: =Godišnji!G80 -> 10080 | H81: =Godišnji!H80 -> 0 | I81: =SUM(G81:H81) -> 10080 | L81: =SUM(J81:K81) -> 0
E82: 613000 | F82: Izdaci za materijal, sitan inventar i usluge | G82: =SUM(G83:G92) -> 5500 | H82: =SUM(H83:H92) -> 0 | I82: 5500 | J82: 0 | K82: 0 | L82: 0
E83: 613100 | F83: Putni troškovi | G83: =Godišnji!G82 -> 500 | H83: =Godišnji!H82 -> 0 | I83: =SUM(G83:H83) -> 500 | L83: =SUM(J83:K83) -> 0
E84: 613200 | F84: Izdaci za energiju | G84: =Godišnji!G83 -> 0 | H84: =Godišnji!H83 -> 0 | I84: 0 | L84: 0
E85: 613300 | F85: Izdaci za komunikaciju i komunalne usluge | G85: =Godišnji!G84 -> 2500 | H85: =Godišnji!H84 -> 0 | I85: 2500 | L85: 0
E86: 613400 | F86: Nabava materijala i sitnog inventara | G86: =Godišnji!G85 -> 600 | H86: =Godišnji!H85 -> 0 | I86: 600 | L86: 0
E87: 613500 | F87: Izdaci za usluge prijevoza i goriva | G87: =Godišnji!G86 -> 0 | H87: =Godišnji!H86 -> 0 | I87: 0 | L87: 0
E88: 613600 | F88: Unajmljivanje imovine, opreme i nemat.imovine | G88: =Godišnji!G87 -> 0 | H88: =Godišnji!H87 -> 0 | I88: 0 | L88: 0
E89: 613700 | F89: Izdaci za tekuće održavanje | G89: =Godišnji!G88 -> 500 | H89: =Godišnji!H88 -> 0 | I89: 500 | L89: 0
E90: 613800 | F90: Izdaci osiguranja, bank.usluga i usluga PP | G90: =Godišnji!G89 -> 0 | H90: =Godišnji!H89 -> 0 | I90: 0 | L90: 0
E91: 613900 | F91: Ugovorene i druge posebne usluge | G91: =Godišnji!G90 -> 1400 | H91: =Godišnji!H90 -> 0 | I91: 1400 | L91: 0
E92: 613900 | F92: Ugovorene i druge posebne usluge - volonteri | G92: =Godišnji!G91 -> 0 | H92: =Godišnji!H91 -> 0 | I92: 0 | L92: 0
E93: 614000 | F93: Tekući grantovi i drugi tekući rashodi | G93: =G94 -> 120000 | H93: 0 | I93: 120000 | J93: 0 | K93: 0 | L93: 0
D94: BA6020 | E94: 614200 | F94: =Godišnji!F93 -> Grant za pomoć pri stamb.zbrinjav.mladih obitelji i… | G94: =Godišnji!G93 -> 120000 | H94: =Godišnji!H93 -> 0 | I94: =SUM(G94:H94) -> 120000 | L94: =SUM(J94:K94) -> 0
E95: 821000 | F95: Izdaci za nabavku stalnih sredstava | G95: =SUM(G96:G97) -> 1500 | H95: =SUM(H96:H97) -> 0 | I95: 1500 | J95: 0 | K95: 0 | L95: 0
E96: 821200 | F96: Nabavka građevina | G96: =Godišnji!G95 -> 0 | H96: =Godišnji!H95 -> 0 | I96: =SUM(G96:H96) -> 0 | L96: =SUM(J96:K96) -> 0
E97: 821300 | F97: Nabavka opreme | G97: =Godišnji!G96 -> 1500 | H97: =Godišnji!H96 -> 0 | I97: =SUM(G97:H97) -> 1500 | L97: =SUM(J97:K97) -> 0
F98: Ukupno za korisnika Ured za raseljene | G98: =G76+G80+G82+G93+G95 -> 253280 | H98: =H76+H80+H82+H93+H95 -> 0 | I98: 253280 | J98: 0 | K98: 0 | L98: 0
A100: 11 | B100: 01 | C100: 0003 | F100: URED ZA ZAKONODAVSTVO VLADE ŽP
E101: 611000 | F101: Plaće i naknade troškova zaposlenih | G101: =SUM(G102:G104) -> 61980 | H101: =SUM(H102:H104) -> 0 | I101: 61980 | J101: 0 | K101: 0 | L101: 0
E102: 611100 | F102: Bruto plaće i naknade | G102: =Godišnji!G101 -> 53530 | H102: =Godišnji!H101 -> 0 | I102: =SUM(G102:H102) -> 53530 | L102: =SUM(J102:K102) -> 0
E103: 611200 | F103: Naknade troškova zaposlenih | G103: =Godišnji!G102 -> 8450 | H103: =Godišnji!H102 -> 0 | I103: =SUM(G103:H103) -> 8450 | L103: =SUM(J103:K103) -> 0
E104: 611200 | F104: Naknade troškova zaposlenih - volonteri | G104: =Godišnji!G103 -> 0 | H104: =Godišnji!H103 -> 0 | I104: 0 | L104: 0
E105: 612000 | F105: Doprinosi poslodavca | G105: =G106 -> 5660 | H105: =H106 -> 0 | I105: 5660 | J105: 0 | K105: 0 | L105: 0
E106: 612100 | F106: Doprinosi poslodavca | G106: =Godišnji!G105 -> 5660 | H106: =Godišnji!H105 -> 0 | I106: =SUM(G106:H106) -> 5660 | L106: =SUM(J106:K106) -> 0
E107: 613000 | F107: Izdaci za materijal, sitan inventar i usluge | G107: =SUM(G108:G117) -> 800 | H107: =SUM(H108:H117) -> 0 | I107: 800 | J107: 0 | K107: 0 | L107: 0
E108: 613100 | F108: Putni troškovi | G108: =Godišnji!G107 -> 300 | H108: =Godišnji!H107 -> 0 | I108: =SUM(G108:H108) -> 300 | L108: =SUM(J108:K108) -> 0
E109: 613200 | F109: Izdaci za energiju | G109: =Godišnji!G108 -> 0 | H109: =Godišnji!H108 -> 0 | I109: 0 | L109: 0
E110: 613300 | F110: Izdaci za komunikaciju i komunalne usluge | G110: =Godišnji!G109 -> 0 | H110: =Godišnji!H109 -> 0 | I110: 0 | L110: 0
E111: 613400 | F111: Nabava materijala i sitnog inventara | G111: =Godišnji!G110 -> 0 | H111: =Godišnji!H110 -> 0 | I111: 0 | L111: 0
E112: 613500 | F112: Izdaci za usluge prijevoza i goriva | G112: =Godišnji!G111 -> 0 | H112: =Godišnji!H111 -> 0 | I112: 0 | L112: 0
E113: 613600 | F113: Unajmljivanje imovine, opreme i nemat.imovine | G113: =Godišnji!G112 -> 0 | H113: =Godišnji!H112 -> 0 | I113: 0 | L113: 0
E114: 613700 | F114: Izdaci za tekuće održavanje | G114: =Godišnji!G113 -> 0 | H114: =Godišnji!H113 -> 0 | I114: 0 | L114: 0
E115: 613800 | F115: Izdaci osiguranja, bank.usluga i usluga PP | G115: =Godišnji!G114 -> 0 | H115: =Godišnji!H114 -> 0 | I115: 0 | L115: 0
E116: 613900 | F116: Ugovorene i druge posebne usluge | G116: =Godišnji!G115 -> 500 | H116: =Godišnji!H115 -> 0 | I116: 500 | L116: 0
E117: 613900 | F117: Ugovorene i druge posebne usluge - volonteri | G117: =Godišnji!G116 -> 0 | H117: =Godišnji!H116 -> 0 | I117: 0 | L117: 0
E118: 821000 | F118: Izdaci za nabavku stalnih sredstava | G118: =SUM(G119:G120) -> 500 | H118: =SUM(H119:H120) -> 0 | I118: 500 | J118: 0 | K118: 0 | L118: 0
E119: 821200 | F119: Nabavka građevina | G119: =Godišnji!G118 -> 0 | H119: =Godišnji!H118 -> 0 | I119: =SUM(G119:H119) -> 0 | L119: =SUM(J119:K119) -> 0
E120: 821300 | F120: Nabavka opreme | G120: =Godišnji!G119 -> 500 | H120: =Godišnji!H119 -> 0 | I120: =SUM(G120:H120) -> 500 | L120: =SUM(J120:K120) -> 0
F121: Ukupno za korisnika Ured za zakonodavstvo Vlade ŽP | G121: =G101+G105+G107+G118 -> 68940 | H121: =H101+H105+H107+H118 -> 0 | I121: 68940 | J121: 0 | K121: 0 | L121: 0
A123: 11 | B123: 01 | C123: 0004 | F123: SLUŽBA ZA ODNOSE S JAVNOŠĆU VLADE ŽP
E124: 611000 | F124: Plaće i naknade troškova zaposlenih | G124: =SUM(G125:G127) -> 84400 | H124: =SUM(H125:H127) -> 0 | I124: 84400 | J124: 0 | K124: 0 | L124: 0
E125: 611100 | F125: Bruto plaće i naknade | G125: =Godišnji!G124 -> 73450 | H125: =Godišnji!H124 -> 0 | I125: =SUM(G125:H125) -> 73450 | L125: =SUM(J125:K125) -> 0
E126: 611200 | F126: Naknade troškova zaposlenih | G126: =Godišnji!G125 -> 10950 | H126: =Godišnji!H125 -> 0 | I126: =SUM(G126:H126) -> 10950 | L126: =SUM(J126:K126) -> 0
E127: 611200 | F127: Naknade troškova zaposlenih - volonteri | G127: =Godišnji!G126 -> 0 | H127: =Godišnji!H126 -> 0 | I127: 0 | L127: 0
E128: 612000 | F128: Doprinosi poslodavca | G128: =G129 -> 7800 | H128: =H129 -> 0 | I128: 7800 | J128: 0 | K128: 0 | L128: 0
E129: 612100 | F129: Doprinosi poslodavca | G129: =Godišnji!G128 -> 7800 | H129: =Godišnji!H128 -> 0 | I129: =SUM(G129:H129) -> 7800 | L129: =SUM(J129:K129) -> 0
E130: 613000 | F130: Izdaci za materijal, sitan inventar i usluge | G130: =SUM(G131:G140) -> 5500 | H130: =SUM(H131:H140) -> 0 | I130: 5500 | J130: 0 | K130: 0 | L130: 0
E131: 613100 | F131: Putni troškovi | G131: =Godišnji!G130 -> 700 | H131: =Godišnji!H130 -> 0 | I131: =SUM(G131:H131) -> 700 | L131: =SUM(J131:K131) -> 0
E132: 613200 | F132: Izdaci za energiju | G132: =Godišnji!G131 -> 0 | H132: =Godišnji!H131 -> 0 | I132: 0 | L132: 0
E133: 613300 | F133: Izdaci za komunikaciju i komunalne usluge | G133: =Godišnji!G132 -> 2500 | H133: =Godišnji!H132 -> 0 | I133: 2500 | L133: 0
E134: 613400 | F134: Nabava materijala i sitnog inventara | G134: =Godišnji!G133 -> 300 | H134: =Godišnji!H133 -> 0 | I134: 300 | L134: 0
E135: 613500 | F135: Izdaci za usluge prijevoza i goriva | G135: =Godišnji!G134 -> 0 | H135: =Godišnji!H134 -> 0 | I135: 0 | L135: 0
E136: 613600 | F136: Unajmljivanje imovine, opreme i nemat.imovine | G136: =Godišnji!G135 -> 0 | H136: =Godišnji!H135 -> 0 | I136: 0 | L136: 0
E137: 613700 | F137: Izdaci za tekuće održavanje | G137: =Godišnji!G136 -> 500 | H137: =Godišnji!H136 -> 0 | I137: 500 | L137: 0
E138: 613800 | F138: Izdaci osiguranja, bank.usluga i usluga PP | G138: =Godišnji!G137 -> 0 | H138: =Godišnji!H137 -> 0 | I138: 0 | L138: 0
E139: 613900 | F139: Ugovorene i druge posebne usluge | G139: =Godišnji!G138 -> 1500 | H139: =Godišnji!H138 -> 0 | I139: 1500 | L139: 0
E140: 613900 | F140: Ugovorene i druge posebne usluge - volonteri | G140: =Godišnji!G139 -> 0 | H140: =Godišnji!H139 -> 0 | I140: 0 | L140: 0
E141: 821000 | F141: Izdaci za nabavku stalnih sredstava | G141: =SUM(G142:G143) -> 1500 | H141: =SUM(H142:H143) -> 0 | I141: 1500 | J141: 0 | K141: 0 | L141: 0
E142: 821200 | F142: Nabavka građevina | G142: =Godišnji!G141 -> 0 | H142: =Godišnji!H141 -> 0 | I142: =SUM(G142:H142) -> 0 | L142: =SUM(J142:K142) -> 0
E143: 821300 | F143: Nabavka opreme | G143: =Godišnji!G142 -> 1500 | H143: =Godišnji!H142 -> 0 | I143: =SUM(G143:H143) -> 1500 | L143: =SUM(J143:K143) -> 0
F144: Ukupno za korisnika Služba za odnose s javnošću | G144: =G124+G128+G130+G141 -> 99200 | H144: =H124+H128+H130+H141 -> 0 | I144: 99200 | J144: 0 | K144: 0 | L144: 0
A146: 11 | B146: 01 | C146: 0005 | F146: URED ZA RAZVOJ I EUROPSKE INTEGRACIJE ŽP
E147: 611000 | F147: Plaće i naknade troškova zaposlenih | G147: =SUM(G148:G150) -> 178010 | H147: =SUM(H148:H150) -> 0 | I147: 178010 | J147: 0 | K147: 0 | L147: 0
E148: 611100 | F148: Bruto plaće i naknade | G148: =Godišnji!G147 -> 144000 | H148: =Godišnji!H147 -> 0 | I148: =SUM(G148:H148) -> 144000 | L148: =SUM(J148:K148) -> 0
E149: 611200 | F149: Naknade troškova zaposlenih | G149: =Godišnji!G148 -> 34010 | H149: =Godišnji!H148 -> 0 | I149: =SUM(G149:H149) -> 34010 | L149: =SUM(J149:K149) -> 0
E150: 611200 | F150: Naknade troškova zaposlenih - volonteri | G150: =Godišnji!G149 -> 0 | H150: =Godišnji!H149 -> 0 | I150: 0 | L150: 0
E151: 612000 | F151: Doprinosi poslodavca | G151: =G152 -> 15380 | H151: =H152 -> 0 | I151: 15380 | J151: 0 | K151: 0 | L151: 0
E152: 612100 | F152: Doprinosi poslodavca | G152: =Godišnji!G151 -> 15380 | H152: =Godišnji!H151 -> 0 | I152: =SUM(G152:H152) -> 15380 | L152: =SUM(J152:K152) -> 0
E153: 613000 | F153: Izdaci za materijal, sitan inventar i usluge | G153: =SUM(G154:G163) -> 8500 | H153: =SUM(H154:H163) -> 0 | I153: 8500 | J153: 0 | K153: 0 | L153: 0
E154: 613100 | F154: Putni troškovi | G154: =Godišnji!G153 -> 3000 | H154: =Godišnji!H153 -> 0 | I154: =SUM(G154:H154) -> 3000 | L154: =SUM(J154:K154) -> 0
E155: 613200 | F155: Izdaci za energiju | G155: =Godišnji!G154 -> 0 | H155: =Godišnji!H154 -> 0 | I155: 0 | L155: 0
E156: 613300 | F156: Izdaci za komunikaciju i komunalne usluge | G156: =Godišnji!G155 -> 500 | H156: =Godišnji!H155 -> 0 | I156: 500 | L156: 0
E157: 613400 | F157: Nabava materijala i sitnog inventara | G157: =Godišnji!G156 -> 1000 | H157: =Godišnji!H156 -> 0 | I157: 1000 | L157: 0
E158: 613500 | F158: Izdaci za usluge prijevoza i goriva | G158: =Godišnji!G157 -> 0 | H158: =Godišnji!H157 -> 0 | I158: 0 | L158: 0
E159: 613600 | F159: Unajmljivanje imovine, opreme i nemat.imovine | G159: =Godišnji!G158 -> 0 | H159: =Godišnji!H158 -> 0 | I159: 0 | L159: 0
E160: 613700 | F160: Izdaci za tekuće održavanje | G160: =Godišnji!G159 -> 1500 | H160: =Godišnji!H159 -> 0 | I160: 1500 | L160: 0
E161: 613800 | F161: Izdaci osiguranja, bank.usluga i usluga PP | G161: =Godišnji!G160 -> 0 | H161: =Godišnji!H160 -> 0 | I161: 0 | L161: 0
E162: 613900 | F162: Ugovorene i druge posebne usluge | G162: =Godišnji!G161 -> 2500 | H162: =Godišnji!H161 -> 0 | I162: 2500 | L162: 0
E163: 613900 | F163: Ugovorene i druge posebne usluge - volonteri | G163: =Godišnji!G162 -> 0 | H163: =Godišnji!H162 -> 0 | I163: 0 | L163: 0
E164: 821000 | F164: Izdaci za nabavku stalnih sredstava | G164: =SUM(G165:G166) -> 5000 | H164: =SUM(H165:H166) -> 0 | I164: 5000 | J164: 0 | K164: 0 | L164: 0
E165: 821200 | F165: Nabavka građevina | G165: =Godišnji!G164 -> 0 | H165: =Godišnji!H164 -> 0 | I165: =SUM(G165:H165) -> 0 | L165: =SUM(J165:K165) -> 0
E166: 821300 | F166: Nabavka opreme | G166: =Godišnji!G165 -> 5000 | H166: =Godišnji!H165 -> 0 | I166: =SUM(G166:H166) -> 5000 | L166: =SUM(J166:K166) -> 0
F167: Ukupno za korisnika Ured za razvo i EU integracijej ŽP | G167: =G147+G151+G153+G164 -> 206890 | H167: =H147+H151+H153+H164 -> 0 | I167: 206890 | J167: 0 | K167: 0 | L167: 0
A169: 12 | B169: 01 | C169: 0001 | F169: ZAJEDNIČKA SLUŽBA VLADE ŽP
E170: 611000 | F170: Plaće i naknade troškova zaposlenih | G170: =SUM(G171:G173) -> 376800 | H170: =SUM(H171:H173) -> 0 | I170: 376800 | J170: 0 | K170: 0 | L170: 0
E171: 611100 | F171: Bruto plaće i naknade | G171: =Godišnji!G170 -> 304390 | H171: =Godišnji!H170 -> 0 | I171: =SUM(G171:H171) -> 304390 | L171: =SUM(J171:K171) -> 0
E172: 611200 | F172: Naknade troškova zaposlenih | G172: =Godišnji!G171 -> 72410 | H172: =Godišnji!H171 -> 0 | I172: =SUM(G172:H172) -> 72410 | L172: =SUM(J172:K172) -> 0
E173: 611200 | F173: Naknade troškova zaposlenih - volonteri | G173: =Godišnji!G172 -> 0 | H173: =Godišnji!H172 -> 0 | I173: 0 | L173: 0
E174: 612000 | F174: Doprinosi poslodavca | G174: =G175 -> 32500 | H174: =H175 -> 0 | I174: 32500 | J174: 0 | K174: 0 | L174: 0
E175: 612100 | F175: Doprinosi poslodavca | G175: =Godišnji!G174 -> 32500 | H175: =Godišnji!H174 -> 0 | I175: =SUM(G175:H175) -> 32500 | L175: =SUM(J175:K175) -> 0
E176: 613000 | F176: Izdaci za materijal, sitan inventar i usluge | G176: =SUM(G177:G186) -> 385000 | H176: =SUM(H177:H186) -> 0 | I176: 385000 | J176: 0 | K176: 0 | L176: 0
E177: 613100 | F177: Putni troškovi | G177: =Godišnji!G176 -> 3000 | H177: =Godišnji!H176 -> 0 | I177: =SUM(G177:H177) -> 3000 | L177: =SUM(J177:K177) -> 0
E178: 613200 | F178: Izdaci za energiju | G178: =Godišnji!G177 -> 70000 | H178: =Godišnji!H177 -> 0 | I178: 70000 | L178: 0
E179: 613300 | F179: Izdaci za komunikaciju i komunalne usluge | G179: =Godišnji!G178 -> 50000 | H179: =Godišnji!H178 -> 0 | I179: 50000 | L179: 0
E180: 613400 | F180: Nabava materijala i sitnog inventara | G180: =Godišnji!G179 -> 94000 | H180: =Godišnji!H179 -> 0 | I180: 94000 | L180: 0
E181: 613500 | F181: Izdaci za usluge prijevoza i goriva | G181: =Godišnji!G180 -> 67000 | H181: =Godišnji!H180 -> 0 | I181: 67000 | L181: 0
E182: 613600 | F182: Unajmljivanje imovine, opreme i nemat.imovine | G182: =Godišnji!G181 -> 0 | H182: =Godišnji!H181 -> 0 | I182: 0 | L182: 0
E183: 613700 | F183: Izdaci za tekuće održavanje | G183: =Godišnji!G182 -> 32000 | H183: =Godišnji!H182 -> 0 | I183: 32000 | L183: 0
E184: 613800 | F184: Izdaci osiguranja, bank.usluga i usluga PP | G184: =Godišnji!G183 -> 9000 | H184: =Godišnji!H183 -> 0 | I184: 9000 | L184: 0
E185: 613900 | F185: Ugovorene i druge posebne usluge | G185: =Godišnji!G184 -> 60000 | H185: =Godišnji!H184 -> 0 | I185: 60000 | L185: 0
E186: 613900 | F186: Ugovorene i druge posebne usluge - volonteri | G186: =Godišnji!G185 -> 0 | H186: =Godišnji!H185 -> 0 | I186: 0 | L186: 0
E187: 821000 | F187: Izdaci za nabavku stalnih sredstava | G187: =SUM(G188:G189) -> 53000 | H187: =SUM(H188:H189) -> 0 | I187: 53000 | J187: 0 | K187: 0 | L187: 0
E188: 821200 | F188: Nabavka građevina | G188: =Godišnji!G187 -> 0 | H188: =Godišnji!H187 -> 0 | I188: =SUM(G188:H188) -> 0 | L188: =SUM(J188:K188) -> 0
E189: 821300 | F189: Nabavka opreme | G189: =Godišnji!G188 -> 53000 | H189: =Godišnji!H188 -> 0 | I189: =SUM(G189:H189) -> 53000 | L189: =SUM(J189:K189) -> 0
F190: Ukupno za korisnika Zajednička služba Vlade ŽP | G190: =G170+G174+G176+G187 -> 847300 | H190: =H170+H174+H176+H187 -> 0 | I190: 847300 | J190: 0 | K190: 0 | L190: 0
A192: 13 | B192: 01 | C192: 0001 | F192: MINISTARSTVO UNUTARNJIH POSLOVA ŽP
E193: 611000 | F193: Plaće i naknade troškova zaposlenih | G193: =SUM(G194:G196) -> 5976060 | H193: =SUM(H194:H196) -> 0 | I193: 5976060 | J193: 0 | K193: 0 | L193: 0
E194: 611100 | F194: Bruto plaće i naknade | G194: =Godišnji!G193 -> 5078320 | H194: =Godišnji!H193 -> 0 | I194: =SUM(G194:H194) -> 5078320 | L194: =SUM(J194:K194) -> 0
E195: 611200 | F195: Naknade troškova zaposlenih | G195: =Godišnji!G194 -> 897740 | H195: =Godišnji!H194 -> 0 | I195: =SUM(G195:H195) -> 897740 | L195: =SUM(J195:K195) -> 0
E196: 611200 | F196: Naknade troškova zaposlenih - volonteri | G196: =Godišnji!G195 -> 0 | H196: =Godišnji!H195 -> 0 | I196: 0 | L196: 0
E197: 612000 | F197: Doprinosi poslodavca | G197: =G199+G198 -> 880400 | H197: =H199+H198 -> 0 | I197: 880400 | J197: 0 | K197: 0 | L197: 0
E198: 612100 | F198: Doprinosi poslodavca | G198: =Godišnji!G197 -> 780400 | H198: =Godišnji!H197 -> 0 | I198: =SUM(G198:H198) -> 780400 | L198: =SUM(J198:K198) -> 0
D199: DA6001 | E199: 612100 | F199: Doprinosi za beneficirani radni staž 1996-1998 | G199: =Godišnji!G198 -> 100000 | H199: =Godišnji!H198 -> 0 | I199: =SUM(G199:H199) -> 100000 | L199: =SUM(J199:K199) -> 0
E200: 613000 | F200: Izdaci za materijal, sitan inventar i usluge | G200: =SUM(G201:G210) -> 784000 | H200: =SUM(H201:H210) -> 0 | I200: 784000 | J200: 0 | K200: 0 | L200: 0
E201: 613100 | F201: Putni troškovi | G201: =Godišnji!G200 -> 12000 | H201: =Godišnji!H200 -> 0 | I201: =SUM(G201:H201) -> 12000 | L201: =SUM(J201:K201) -> 0
E202: 613200 | F202: Izdaci za energiju | G202: =Godišnji!G201 -> 78000 | H202: =Godišnji!H201 -> 0 | I202: 78000 | L202: 0
E203: 613300 | F203: Izdaci za komunikaciju i komunalne usluge | G203: =Godišnji!G202 -> 81000 | H203: =Godišnji!H202 -> 0 | I203: 81000 | L203: 0
E204: 613400 | F204: Nabava materijala i sitnog inventara | G204: =Godišnji!G203 -> 172000 | H204: =Godišnji!H203 -> 0 | I204: 172000 | L204: 0
E205: 613500 | F205: Izdaci za usluge prijevoza i goriva | G205: =Godišnji!G204 -> 112000 | H205: =Godišnji!H204 -> 0 | I205: 112000 | L205: 0
E206: 613600 | F206: Unajmljivanje imovine, opreme i nemat.imovine | G206: =Godišnji!G205 -> 27000 | H206: =Godišnji!H205 -> 0 | I206: 27000 | L206: 0
E207: 613700 | F207: Izdaci za tekuće održavanje | G207: =Godišnji!G206 -> 95000 | H207: =Godišnji!H206 -> 0 | I207: 95000 | L207: 0
E208: 613800 | F208: Izdaci osiguranja, bank.usluga i usluga PP | G208: =Godišnji!G207 -> 27000 | H208: =Godišnji!H207 -> 0 | I208: 27000 | L208: 0
... 697 more rows

Sheet test (hidden)
C1: GOD | D1: KVART | E1: MJES
B2: UKUPNI IZDACI | C2: =C4+C10+C16+C20+C44+C84+C90+C94+C102 -> 49776740 | D2: =D4+D10+D16+D20+D44+D84+D90+D94+D102 -> 49776740 | E2: =E4+E10+E16+E20+E44+E84+E90+E94+E102 -> 49776740
A4: 600000 | B4: Rashodi - Tekuća pričuva | C4: =C5+C6+C7+C8 -> 460000 | D4: =D5+D6+D7+D8 -> 460000 | E4: =E5+E6+E7+E8 -> 460000
A5: 600000 | B5: Tekuća pričuva Vlade | C5: =Godišnji!G37 -> 400000 | D5: =Kvartalni!I38 -> 400000 | E5: =Mjesecni!I38 -> 400000
A6: 600000 | B6: Tekuća pričuva predsjednika Vlade | C6: =Godišnji!G38 -> 30000 | D6: =Kvartalni!I39 -> 30000 | E6: =Mjesecni!I39 -> 30000
A7: 600000 | B7: Tekuća pričuva zamjenika pred. Vlade | C7: =Godišnji!G39 -> 15000 | D7: =Kvartalni!I40 -> 15000 | E7: =Mjesecni!I40 -> 15000
A8: 600000 | B8: Tekuća pričuva ministra financija | C8: =Godišnji!G361 -> 15000 | D8: =Kvartalni!I362 -> 15000 | E8: =Mjesecni!I362 -> 15000
A10: 611000 | B10: Plaće i naknade troškova zaposlenih | C10: =C11+C12 -> 24964290 | D10: =D11+D12 -> 24964290 | E10: =E11+E12 -> 24964290
A11: 611100 | B11: Bruto plaće i naknade plaća | C11: =SUMIF(Godišnji!$E$12:$E$953,611100,Godišnji!$I$12:$I$953) -> 20958970 | D11: =SUMIF(Kvartalni!$E$12:$E$954,611100,Kvartalni!$I$12:$I$954) -> 20958970 | E11: =SUMIF(Mjesecni!$E$12:$E$954,611100,Mjesecni!$I$12:$I$954) -> 20958970
A12: 611200 | B12: Naknade troškova zaposlenih | C12: =C13+C14 -> 4005320 | D12: =D13+D14 -> 4005320 | E12: =E13+E14 -> 4005320
A13: 611200 | B13: Naknade troškova zaposlenih | C13: =SUMIF(Godišnji!$E$12:$E$953,611200,Godišnji!$I$12:$I$953)-C14 -> 3955320 | D13: =SUMIF(Kvartalni!$E$12:$E$954,611200,Kvartalni!$I$12:$I$954)-D14 -> 3955320 | E13: =SUMIF(Mjesecni!$E$12:$E$954,611200,Mjesecni!$I$12:$I$954)-E14 -> 3955320
A14: 611200 | B14: Naknade troškova zaposlenih - volonteri (61) (60) | C14: =Godišnji!I43 -> 50000 | D14: =Kvartalni!I44 -> 50000 | E14: =Mjesecni!I44 -> 50000
A16: 612000 | B16: Doprinosi poslodavca i ostali doprinosi | C16: =C17 -> 2556670 | D16: =D17 -> 2556670 | E16: =E17 -> 2556670
A17: 612100 | B17: Doprinosi poslodavca | C17: =SUMIF(Godišnji!$E$12:$E$953,612100,Godišnji!$I$12:$I$953) -> 2556670 | D17: =SUMIF(Kvartalni!$E$12:$E$954,612100,Kvartalni!$I$12:$I$954) -> 2556670 | E17: =SUMIF(Mjesecni!$E$12:$E$954,612100,Mjesecni!$I$12:$I$954) -> 2556670
A18: 612100 | B18: Doprinosi za beneficirani radni staž 1996-1998 | C18: =Godišnji!I198 -> 100000 | D18: =Kvartalni!I199 -> 100000 | E18: =Mjesecni!I199 -> 100000
A20: 613000 | B20: Izdaci za materijal, sitan inv. i usluge | C20: =C21+C22+C23+C24+C26+C27+C28+C31+C34 -> 4878260 | D20: =D21+D22+D23+D24+D26+D27+D28+D31+D34 -> 4878260 | E20: =E21+E22+E23+E24+E26+E27+E28+E31+E34 -> 4878260
A21: 613100 | B21: Putni troškovi | C21: =SUMIF(Godišnji!$E$12:$E$953,613100,Godišnji!$I$12:$I$953) -> 96300 | D21: =SUMIF(Kvartalni!$E$12:$E$954,613100,Kvartalni!$I$12:$I$954) -> 96300 | E21: =SUMIF(Mjesecni!$E$12:$E$954,613100,Mjesecni!$I$12:$I$954) -> 96300
A22: 613200 | B22: Izdaci za energiju | C22: =SUMIF(Godišnji!$E$12:$E$953,613200,Godišnji!$I$12:$I$953) -> 775700 | D22: =SUMIF(Kvartalni!$E$12:$E$954,613200,Kvartalni!$I$12:$I$954) -> 775700 | E22: =SUMIF(Mjesecni!$E$12:$E$953,613200,Mjesecni!$I$12:$I$953) -> 775700
A23: 613300 | B23: Izdaci za komunikaciju i komunalne usluge | C23: =SUMIF(Godišnji!$E$12:$E$953,613300,Godišnji!$I$12:$I$953) -> 376950 | D23: =SUMIF(Kvartalni!$E$12:$E$954,613300,Kvartalni!$I$12:$I$954) -> 376950 | E23: =SUMIF(Mjesecni!$E$12:$E$954,613300,Mjesecni!$I$12:$I$954) -> 376950
A24: 613400 | B24: Nabavka materijala i sitnog inventara | C24: =SUMIF(Godišnji!$E$12:$E$953,613400,Godišnji!$I$12:$I$953) -> 671700 | D24: =SUMIF(Kvartalni!$E$12:$E$954,613400,Kvartalni!$I$12:$I$954) -> 671700 | E24: =SUMIF(Mjesecni!$E$12:$E$954,613400,Mjesecni!$I$12:$I$954) -> 671700
A25: 613400 | B25: Nabavka materijala i sitnog inventara - obroci za učenike | C25: =Godišnji!I493 -> 143000 | D25: =Kvartalni!I494 -> 143000 | E25: =Mjesecni!I494 -> 143000
A26: 613500 | B26: Izdaci za usluge prijevoza i goriva | C26: =SUMIF(Godišnji!$E$12:$E$953,613500,Godišnji!$I$12:$I$953) -> 224700 | D26: =SUMIF(Kvartalni!$E$12:$E$954,613500,Kvartalni!$I$12:$I$954) -> 224700 | E26: =SUMIF(Mjesecni!$E$12:$E$954,613500,Mjesecni!$I$12:$I$954) -> 224700
A27: 613600 | B27: Unajmljivanje imovine, opreme i nemat.imovine | C27: =SUMIF(Godišnji!$E$12:$E$953,613600,Godišnji!$I$12:$I$953) -> 33700 | D27: =SUMIF(Kvartalni!$E$12:$E$954,613600,Kvartalni!$I$12:$I$954) -> 33700 | E27: =SUMIF(Mjesecni!$E$12:$E$954,613600,Mjesecni!$I$12:$I$954) -> 33700
A28: 613700 | B28: Izdaci za tekuće održavanje | C28: =C29+C30 -> 711650 | D28: =D29+D30 -> 711650 | E28: =E29+E30 -> 711650
A29: 613700 | B29: o/č Izdaci za tekuće održavanje | C29: =SUMIF(Godišnji!$E$12:$E$953,613700,Godišnji!$I$12:$I$953)-C30 -> 361650 | D29: =SUMIF(Kvartalni!$E$12:$E$954,613700,Kvartalni!$I$12:$I$954)-D30 -> 361650 | E29: =SUMIF(Mjesecni!$E$12:$E$954,613700,Mjesecni!$I$12:$I$954)-E30 -> 361650
A30: 613700 | B30: o/č Tekuće održavanje cesta | C30: =Godišnji!I437 -> 350000 | D30: =Kvartalni!I438 -> 350000 | E30: =Mjesecni!I438 -> 350000
A31: 613800 | B31: Izdaci osiguranja, bank. usluga i usluga p.p. | C31: =C32+C33 -> 101740 | D31: =D32+D33 -> 101740 | E31: =E32+E33 -> 101740
A32: 613800 | B32: o/č Izdaci osiguranja, bank. usluga i usluga p.p. | C32: =SUMIF(Godišnji!$E$12:$E$953,613800,Godišnji!$I$12:$I$953) -> 101740 | D32: =SUMIF(Kvartalni!$E$12:$E$954,613800,Kvartalni!$I$12:$I$954) -> 101740 | E32: =SUMIF(Mjesecni!$E$12:$E$954,613800,Mjesecni!$I$12:$I$954) -> 101740
A33: 613800 | B33: o/č Izdaci za negativne tečajne razlike | C33: 0 | D33: 0 | E33: 0
A34: 613900 | B34: Ugovorene i druge posebne usluge | C34: =SUM(C35:C42) -> 1885820 | D34: =SUM(D35:D42) -> 1885820 | E34: =SUM(E35:E42) -> 1885820
A35: 613900 | B35: o/č Ugovorene i druge posebne usluge | C35: =SUMIF(Godišnji!$E$12:$E$953,613900,Godišnji!$I$12:$I$953)-C36-C37-C38-C39-C40-C41-C42 -> 1323810 | D35: =SUMIF(Kvartalni!$E$12:$E$954,613900,Kvartalni!$I$12:$I$954)-D36-D37-D38-D39-D40-D41-D42 -> 1323810 | E35: =SUMIF(Mjesecni!$E$12:$E$954,613900,Mjesecni!$I$12:$I$954)-E36-E37-E38-E39-E40-E41-E42 -> 1323810
A36: 613900 | B36: o/č UiDPU- vježbenici | C36: =Godišnji!I56 -> 87000 | D36: =Kvartalni!I57 -> 87000 | E36: =Mjesecni!I57 -> 87000
A37: 613900 | B37: o/č Povjerenstva po Zakonu o DS i namještenicima | C37: =Godišnji!I232 -> 42500 | D37: =Kvartalni!I233 -> 42500 | E37: =Mjesecni!I233 -> 42500
A38: 613900 | B38: o/č Potpora riznici | C38: =Godišnji!I378 -> 229210 | D38: =Kvartalni!I379 -> 229210 | E38: =Mjesecni!I379 -> 229210
A39: 613900 | B39: o/č Vozački ispiti-vlastiti prihodi | C39: =Godišnji!I499 -> 55000 | D39: =Kvartalni!I500 -> 55000 | E39: =Mjesecni!I500 -> 55000
A40: 613900 | B40: o/č Ugovorene i druge posebne usluge-volonterski rad (61) (60) | C40: =Godišnji!I57 -> 73200 | D40: =Kvartalni!I58 -> 73200 | E40: =Mjesecni!I58 -> 73200
A41: 613900 | B41: o/č Ugovorene i druge posebne usluge-prostorni plan | C41: =Godišnji!I348 -> 30100 | D41: =Kvartalni!I349 -> 30100 | E41: =Mjesecni!I349 -> 30100
A42: 613900 | B42: o/č Ugovorene i druge posebne usluge-- mjere pritovra | C42: =Godišnji!I233 -> 45000 | D42: =Kvartalni!I234 -> 45000 | E42: =Mjesecni!I234 -> 45000
A44: 614000 | B44: Tekući grantovi i drugi tekući rashodi | C44: =C45+C54+C63+C75+C80 -> 12388000 | D44: =D45+D54+D63+D75+D80 -> 12388000 | E44: =E45+E54+E63+E75+E80 -> 12388000
A45: 614100 | B45: Tekući grantovi drugim razinama vlasti i fondovima | C45: =SUM(C46:C53) -> 2735000 | D45: =SUM(D46:D53) -> 2735000 | E45: =SUM(E46:E53) -> 2735000
A46: 614100 | B46: o/č Grant za Sveučilište u Mostaru | C46: =Godišnji!I59 -> 300000 | D46: =Kvartalni!I60 -> 300000 | E46: =Mjesecni!I60 -> 300000
A47: 614100 | B47: o/č Grant za razvoj turizma | C47: =Godišnji!I350 -> 50000 | D47: =Kvartalni!I351 -> 50000 | E47: =Mjesecni!I351 -> 50000
A48: 614100 | B48: o/č Grantovi nižim razinama vlasti | C48: =Godišnji!I381 -> 500000 | D48: =Kvartalni!I382 -> 500000 | E48: =Mjesecni!I382 -> 500000
A49: 614100 | B49: o/č Grant za zdravstvene institucije i centre za soc.rad | C49: =Godišnji!I413 -> 1000000 | D49: =Kvartalni!I414 -> 1000000 | E49: =Mjesecni!I414 -> 1000000
A50: 614100 | B50: o/č Grant za zaštitu okoliša | C50: =Godišnji!I442 -> 280000 | D50: =Kvartalni!I443 -> 280000 | E50: =Mjesecni!I443 -> 280000
A51: 614100 | B51: o/č Grant za šumarstvo | C51: =Godišnji!I469 -> 100000 | D51: =Kvartalni!I470 -> 100000 | E51: =Mjesecni!I470 -> 100000
A52: 614100 | B52: o/č Grant za financiranje visokog obrazovanja i Zavoda za školstvo | C52: =Godišnji!I502 -> 165000 | D52: =Kvartalni!I503 -> 165000 | E52: =Mjesecni!I503 -> 165000
A53: 614100 | B53: o/č Grant za sufinanciranje prijevoza učenika | C53: =Godišnji!I503 -> 340000 | D53: =Kvartalni!I504 -> 340000 | E53: =Mjesecni!I504 -> 340000
A54: 614200 | B54: Tekući grantovi pojedincima | C54: =SUM(C55:C62) -> 5685000 | D54: =SUM(D55:D62) -> 5685000 | E54: =SUM(E55:E62) -> 5685000
A55: 614200 | B55: o/č Grant za sufinanciranje nabavke udžbenika učenicima | C55: =Godišnji!I60 -> 220000 | D55: =Kvartalni!I61 -> 220000 | E55: =Mjesecni!I61 -> 220000
A56: 614200 | B56: o/č Grant za pomoć pri stambenom zbrinjavanju mladih obitelji i socijalnih kategorija | C56: =Godišnji!I93 -> 120000 | D56: =Kvartalni!I94 -> 120000 | E56: =Mjesecni!I94 -> 120000
A57: 614200 | B57: o/č Grant za zdravstvene potrebe | C57: =Godišnji!I414 -> 55000 | D57: =Kvartalni!I415 -> 55000 | E57: =Mjesecni!I415 -> 55000
A58: 614200 | B58: o/č Grant za socijalne potrebe | C58: =Godišnji!I415 -> 3410000 | D58: =Kvartalni!I416 -> 3410000 | E58: =Mjesecni!I416 -> 3410000
A59: 614200 | B59: o/č Isplate stipendija | C59: =Godišnji!I504 -> 150000 | D59: =Kvartalni!I505 -> 150000 | E59: =Mjesecni!I505 -> 150000
A60: 614200 | B60: o/č Grant za sufinanciranje osn.i srednjeg obrazovanja djece s posebnim potrebama | C60: =Godišnji!I505 -> 20000 | D60: =Kvartalni!I506 -> 20000 | E60: =Mjesecni!I506 -> 20000
A61: 614200 | B61: o/č Grant za branitelje i stradalnike dom. rata | C61: =Godišnji!I764 -> 1600000 | D61: =Kvartalni!I765 -> 1600000 | E61: =Mjesecni!I765 -> 1600000
A62: 614200 | B62: o/č Grant za zaštitu od prirodnih i drugih nesreća | C62: =Godišnji!I812 -> 110000 | D62: =Kvartalni!I813 -> 110000 | E62: =Mjesecni!I813 -> 110000
A63: 614300 | B63: Tekući grantovi neprofitnim organizacijama | C63: =SUM(C64:C74) -> 1330000 | D63: =SUM(D64:D74) -> 1330000 | E63: =SUM(E64:E74) -> 1330000
A64: 614300 | B64: o/č Grant političkim strankama | C64: =Godišnji!I65 -> 140000 | D64: =Kvartalni!I66 -> 140000 | E64: =Mjesecni!I66 -> 140000
A65: 614300 | B65: o/č Grant neprofitnim organizacijama i udrugama građana | C65: =Godišnji!I61 -> 70000 | D65: =Kvartalni!I62 -> 70000 | E65: =Mjesecni!I62 -> 70000
A66: 614300 | B66: o/č Grant za Crveni križ Županije Posavske | C66: =Godišnji!I62 -> 30000 | D66: =Kvartalni!I63 -> 30000 | E66: =Mjesecni!I63 -> 30000
A67: 614300 | B67: o/č Grant za udruge roditelja djece s posebnim potrebama | C67: =Godišnji!I416 -> 100000 | D67: =Kvartalni!I417 -> 100000 | E67: =Mjesecni!I417 -> 100000
A68: 614300 | B68: o/č Grant za Gospodarsku komoru ŽP | C68: =Godišnji!I63 -> 35000 | D68: =Kvartalni!I64 -> 35000 | E68: =Mjesecni!I64 -> 35000
A69: 614300 | B69: o/č Grant za Obrtničku komoru ŽP | C69: =Godišnji!I64 -> 15000 | D69: =Kvartalni!I65 -> 15000 | E69: =Mjesecni!I65 -> 15000
A70: 614300 | B70: o/č Grant za informiranje | C70: =Godišnji!I506 -> 220000 | D70: =Kvartalni!I507 -> 220000 | E70: =Mjesecni!I507 -> 220000
A71: 614300 | B71: o/č Grant za financiranje vjerskih zajednica | C71: =Godišnji!I507 -> 280000 | D71: =Kvartalni!I508 -> 280000 | E71: =Mjesecni!I508 -> 280000
A72: 614300 | B72: o/č Grant za sufinanciranje profesionalne vatrogasne postrojbe | C72: =Godišnji!I813 -> 0 | D72: =Kvartalni!I814 -> 0 | E72: =Mjesecni!I814 -> 0
A73: 614300 | B73: o/č Grant za sport | C73: =Godišnji!I508 -> 320000 | D73: =Kvartalni!I509 -> 320000 | E73: =Mjesecni!I509 -> 320000
A74: 614300 | B74: o/č Grant za kulturu | C74: =Godišnji!I509 -> 120000 | D74: =Kvartalni!I510 -> 120000 | E74: =Mjesecni!I510 -> 120000
A75: 614500 | B75: Subvencije privatnim poduzećima i poduzetnicima | C75: =SUM(C76:C79) -> 2550000 | D75: =SUM(D76:D79) -> 2550000 | E75: =SUM(E76:E79) -> 2550000
A76: 614500 | B76: o/č Grant za razvoj poduzetništva, obrta i zadruga | C76: =Godišnji!I351 -> 900000 | D76: =Kvartalni!I352 -> 900000 | E76: =Mjesecni!I352 -> 900000
A77: 614500 | B77: o/č Grant za poljoprivredu | C77: =Godišnji!I470 -> 1250000 | D77: =Kvartalni!I471 -> 1250000 | E77: =Mjesecni!I471 -> 1250000
A78: 614500 | B78: o/č Grant za vodoprivredu | C78: =Godišnji!I471 -> 200000 | D78: =Kvartalni!I472 -> 200000 | E78: =Mjesecni!I472 -> 200000
A79: 614500 | B79: o/č Grant za uređenje poljoprivrednog zemljišta | C79: =Godišnji!I472 -> 200000 | D79: =Kvartalni!I473 -> 200000 | E79: =Mjesecni!I473 -> 200000
A80: 614800 | B80: Drugi tekući rashodi | C80: =SUM(C81:C82) -> 88000 | D80: =SUM(D81:D82) -> 88000 | E80: =SUM(E81:E82) -> 88000
A81: 614800 | B81: o/č Ostali grantovi-povrat i drugo | C81: =Godišnji!I382 -> 68000 | D81: =Kvartalni!I383 -> 68000 | E81: =Mjesecni!I383 -> 68000
A82: 614800 | B82: o/č Ostali grantovi-izvršenje sudskih presuda i rješenja o izvršenju | C82: =Godišnji!I383 -> 20000 | D82: =Kvartalni!I384 -> 20000 | E82: =Mjesecni!I384 -> 20000
A84: 615000 | B84: Kapitalni grantovi | C84: =SUM(C85:C89) -> 1350000 | D84: =SUM(D85:D89) -> 1350000 | E84: =SUM(E85:E89) -> 1350000
A85: 615100 | B85: Kapitalni grant | C85: =Godišnji!I67 -> 300000 | D85: =Kvartalni!I68 -> 300000 | E85: =Mjesecni!I68 -> 300000
A86: 615100 | B86: Kapitalni grant za vodoprivredu | C86: =Godišnji!I474 -> 300000 | D86: =Kvartalni!I475 -> 300000 | E86: =Mjesecni!I475 -> 300000
A87: 615100 | B87: Kapitalni grant za uređenje poljoprivrednog zemljišta | C87: =Godišnji!I475 -> 150000 | D87: =Kvartalni!I476 -> 150000 | E87: =Mjesecni!I476 -> 150000
A88: 615500 | B88: Kapitalni grant za razvoj poduzetništva, obrta i zadruga | C88: =Godišnji!I353 -> 600000 | D88: =Kvartalni!I354 -> 600000 | E88: =Mjesecni!I354 -> 600000
A90: 616000 | B90: Izdaci za kamate | C90: =SUM(C91:C92) -> 30430 | D90: =SUM(D91:D92) -> 30430 | E90: =SUM(E91:E92) -> 30430
A91: 616300 | B91: Kamate na domaće pozajmljivanje-Koreja | C91: =Godišnji!I385 -> 17900 | D91: =Kvartalni!I386 -> 17900 | E91: =Mjesecni!I386 -> 17900
A92: 616300 | B92: Kamate na domaće pozajmljivanje-Austrija | C92: =Godišnji!I386 -> 12530 | D92: =Kvartalni!I387 -> 12530 | E92: =Mjesecni!I387 -> 12530
A94: 821000 | B94: Izdaci za nabavku stalnih sredstava | C94: =SUM(C95:C100) -> 2630200 | D94: =SUM(D95:D100) -> 2630200 | E94: =SUM(E95:E100) -> 2630200
A95: 821200 | B95: Nabavka građevina | C95: =SUMIF(Godišnji!$E$12:$E$953,821200,Godišnji!$I$12:$I$953) -> 360000 | D95: =SUMIF(Kvartalni!$E$12:$E$910,821200,Kvartalni!$I$12:$I$910) -> 360000 | E95: =SUMIF(Mjesecni!$E$12:$E$910,821200,Mjesecni!$I$12:$I$910) -> 360000
A96: 821300 | B96: Nabavka opreme | C96: =SUMIF(Godišnji!$E$12:$E$953,821300,Godišnji!$I$12:$I$953)-Godišnji!I817 -> 547200 | D96: =SUMIF(Kvartalni!$E$12:$E$954,821300,Kvartalni!$I$12:$I$954)-Kvartalni!I818 -> 547200 | E96: =SUMIF(Mjesecni!$E$12:$E$933,821300,Mjesecni!$I$12:$I$933)-E97 -> 547200
A97: 821300 | B97: Nabavka opreme - vatrogasna postrojba | C97: =Godišnji!I817 -> 40000 | D97: =Kvartalni!I818 -> 40000 | E97: =Mjesecni!I818 -> 40000
A98: 821500 | B98: Nabavka stalnih sredstava u obliku prava | C98: =Godišnji!I71+Godišnji!I32 -> 3000 | D98: =Kvartalni!I933+Kvartalni!I72 -> 3000 | E98: =Mjesecni!I33+Mjesecni!I72 -> 3000
A99: 821500 | B99: Rekonstrukcija i investicijsko održavanje lok.cesta | C99: =Godišnji!I446 -> 1330000 | D99: =Kvartalni!I447 -> 1330000 | E99: =Mjesecni!I447 -> 1330000
A100: 821600 | B100: Rekonstrukcija i investicijsko održavanje reg.cesta | C100: =Godišnji!I447 -> 350000 | D100: =Kvartalni!I448 -> 350000 | E100: =Mjesecni!I448 -> 350000
A102: 823000 | B102: Izdaci za otplate dugova | C102: =SUM(C103:C104) -> 518890 | D102: =SUM(D103:D104) -> 518890 | E102: =SUM(E103:E104) -> 518890
A103: 823300 | B103: Otplate domaćeg pozajmljivanja - Koreja | C103: =Godišnji!I391 -> 88600 | D103: =Kvartalni!I392 -> 88600 | E103: =Mjesecni!I392 -> 88600
A104: 823300 | B104: Otplate domaćeg pozajmljivanja - Austrija | C104: =Godišnji!I392 -> 430290 | D104: =Kvartalni!I393 -> 430290 | E104: =Mjesecni!I393 -> 430290
B106: Ukupan broj zaposlenih:
B107: Ukupno za potrošačku jedinicu: | C107: =C102+C94+C90+C84+C44+C20+C16+C10+C4 -> 49776740 | D107: =D102+D94+D90+D84+D44+D20+D16+D10+D4 -> 49776740 | E107: =E102+E94+E90+E84+E44+E20+E16+E10+E4 -> 49776740
